Ref No,Fund Type,Dept,Cost Centre Description    ,Description    ,Creditor Name    ,GL Code Net Amount,Payment date        
2,Revenue,CCHD,Under 65s PWLD - KD,Residential Homes,.,6770.72, 01-Nov-2011
3,Revenue,CCHD,Under 65s PWLD - KD,Residential Homes,.,6770.72, 29-Nov-2011
4,Revenue,CCHD,Supporting People Programme,Grants to Voluntary Bodies,1625 Independent People,3135.7, 10-Nov-2011
5,Revenue,CCHD,Supporting People Programme,Grants to Voluntary Bodies,1625 Independent People,12420.1, 10-Nov-2011
6,Revenue,CCHD,Purchase of Non-Res Care - KD,Private & Voluntary Day Care,3 Trees Community Support Ltd,855.96, 08-Nov-2011
7,Revenue,CCHD,Supported Living - PS,Private & Voluntary Home Care,3 Trees Community Support Ltd,713.99, 16-Nov-2011
8,Revenue,CCHD,Supported Living - KH,Private & Voluntary Home Care,3 Trees Community Support Ltd,1485.54, 08-Nov-2011
9,Revenue,CCHD,Purchase of Non-Res Care - KD,Private & Voluntary Day Care,3 Trees Community Support Ltd,1793.42, 07-Nov-2011
10,Revenue,CCHD,Supported Living - PS,Private & Voluntary Home Care,3 Trees Community Support Ltd,571.62, 16-Nov-2011
11,Revenue,CCHD,Supported Living - KH,Private & Voluntary Home Care,3 Trees Community Support Ltd,1209.7, 21-Nov-2011
12,Revenue,CCHD,Home Care Purch North,Other Small Contracts,3 Trees Community Support Ltd,625.8, 21-Nov-2011
13,Revenue,CCHD,Purchase of Non-Res Care - PS,Private & Voluntary Day Care,3 Trees Community Support Ltd,686.86, 16-Nov-2011
14,Revenue,CCHD,Supported Living (S28a),Private & Voluntary Home Care,3 Trees Community Support Ltd,7606.95, 22-Nov-2011
15,Revenue,CCHD,Purchase of Non-Res Care - KD,Private & Voluntary Day Care,3 Trees Community Support Ltd,5087.71, 18-Nov-2011
16,Revenue,CCHD,Purchase of Non-Res Care - KH,Private & Voluntary Day Care,3 Trees Community Support Ltd,3082.84, 21-Nov-2011
17,Revenue,CCHD,Purchase of Non-Res Care - KD,Private & Voluntary Day Care,3 Trees Community Support Ltd,1661.4, 18-Nov-2011
18,Revenue,CCHD,Purchase of Non-Res Care - KD,Private & Voluntary Day Care,3 Trees Community Support Ltd,1132.86, 24-Nov-2011
19,Revenue,CCHD,Purchase of Non-Res Care - KD,Private & Voluntary Home Care,3 Trees Community Support Ltd,1673.12, 18-Nov-2011
20,Revenue,CCHD,Purchase of Non-Res Care - KD,Private & Voluntary Day Care,3 Trees Community Support Ltd,843.16, 24-Nov-2011
21,Revenue,CCHD,Supported Living - KH,Private & Voluntary Home Care,3 Trees Community Support Ltd,7808.2, 21-Nov-2011
22,Revenue,CCHD,Purchase of Non-Res Care - KH,Private & Voluntary Day Care,3 Trees Community Support Ltd,3703.56, 10-Nov-2011
23,Revenue,CCHD,Purchase of Non-Res Care - KD,Private & Voluntary Day Care,3 Trees Community Support Ltd,4869.24, 18-Nov-2011
24,Revenue,CCHD,Better Support for Older People,Furniture & Fittings Loose,A E Horder (Contracting) Limited,472.58, 02-Nov-2011
25,Revenue,CCHD,Elderly Purchasing - South,Nursing Homes,Aabletone Nursing Home,2355.04, 29-Nov-2011
26,Revenue,CCHD,Elderly Purchasing - South,Residential Homes,Ablecare Homes,903.4, 01-Nov-2011
27,Revenue,CCHD,Elderly Purchasing - South,Residential Homes,Ablecare Homes,903.4, 29-Nov-2011
28,Revenue,CCHD,Southmead Hospital Purchasing,Residential Homes,Ablecare Homes,1418.08, 01-Nov-2011
29,Revenue,CCHD,Southmead Hospital Purchasing,Residential Homes,Ablecare Homes,1418.08, 29-Nov-2011
30,Revenue,CCHD,Elderly Mental Health,Residential Homes,Ablecare Homes,1389, 01-Nov-2011
31,Revenue,CCHD,Elderly Mental Health,Residential Homes,Ablecare Homes,1389, 29-Nov-2011
32,Revenue,CCHD,Elderly Purchasing - North,Residential Homes,Ablecare Homes,871.04, 01-Nov-2011
33,Revenue,CCHD,Elderly Purchasing - North,Residential Homes,Ablecare Homes,871.04, 29-Nov-2011
34,Revenue,CCHD,Frenchay Hospital Purchasing,Residential Homes,Ablecare Homes,1283.64, 01-Nov-2011
35,Revenue,CCHD,Frenchay Hospital Purchasing,Residential Homes,Ablecare Homes,1422.8, 29-Nov-2011
36,Revenue,CCHD,Southmead Hospital Purchasing,Residential Homes,Ablecare Homes,1921, 01-Nov-2011
37,Revenue,CCHD,Southmead Hospital Purchasing,Residential Homes,Ablecare Homes,1166.32, 01-Nov-2011
38,Revenue,CCHD,Southmead Hospital Purchasing,Residential Homes,Ablecare Homes,1921, 29-Nov-2011
39,Revenue,CCHD,Elderly Purchasing - North,Residential Homes,Ablecare Homes,778.32, 01-Nov-2011
40,Revenue,CCHD,Elderly Purchasing - North,Residential Homes,Ablecare Homes,778.32, 29-Nov-2011
41,Revenue,CCHD,Elderly Purchasing - South,Residential Homes,Ablecare Homes,1572.44, 01-Nov-2011
42,Revenue,CCHD,Elderly Purchasing - South,Residential Homes,Ablecare Homes,1572.44, 29-Nov-2011
43,Revenue,CCHD,Elderly Purchasing - North,Residential Homes,Ablecare Homes,1226.72, 01-Nov-2011
44,Revenue,CCHD,Elderly Purchasing - North,Residential Homes,Ablecare Homes,1226.72, 29-Nov-2011
45,Revenue,CCHD,Elderly Purchasing - South,Residential Homes,Ablecare Homes,1102.32, 01-Nov-2011
46,Revenue,CCHD,Elderly Purchasing - South,Residential Homes,Ablecare Homes,1102.32, 29-Nov-2011
47,Revenue,CCHD,Frenchay Hospital Purchasing,Residential Homes,Ablecare Homes,1232.16, 01-Nov-2011
48,Revenue,CCHD,Frenchay Hospital Purchasing,Residential Homes,Ablecare Homes,1232.16, 29-Nov-2011
49,Revenue,CCHD,Southmead Hospital Purchasing,Residential Homes,Ablecare Homes,1229, 01-Nov-2011
50,Revenue,CCHD,Southmead Hospital Purchasing,Residential Homes,Ablecare Homes,1152.08, 29-Nov-2011
51,Revenue,CCHD,Elderly Purchasing - North,Residential Homes,Ablecare Homes,782.44, 29-Nov-2011
52,Revenue,CCHD,Elderly Mental Health,Residential Homes,Ablecare Homes,1267.32, 01-Nov-2011
53,Revenue,CCHD,Elderly Mental Health,Residential Homes,Ablecare Homes,1180.8, 01-Nov-2011
54,Revenue,CCHD,Elderly Mental Health,Residential Homes,Ablecare Homes,1180.8, 29-Nov-2011
55,Revenue,CCHD,Elderly Mental Health,Residential Homes,Ablecare Homes,4019.28, 01-Nov-2011
56,Revenue,CCHD,Elderly Mental Health,Residential Homes,Ablecare Homes,1389, 01-Nov-2011
57,Revenue,CCHD,Elderly Mental Health,Residential Homes,Ablecare Homes,1389, 29-Nov-2011
58,Revenue,CCHD,Elderly Purchasing - South,Residential Homes,Ablecare Homes,1263.6, 01-Nov-2011
59,Revenue,CCHD,Elderly Purchasing - South,Residential Homes,Ablecare Homes,1263.6, 29-Nov-2011
60,Revenue,CCHD,Elderly Purchasing - South,Residential Homes,Ablecare Homes,510.08, 01-Nov-2011
61,Revenue,CCHD,Bed and Breakfast,Storage & Removal,Ablemove-Wottons,500, 10-Nov-2011
62,Revenue,CCHD,Day Care - North,Private & Voluntary Day Care,Action on Hearing Loss,525.6, 08-Nov-2011
63,Revenue,CCHD,Day Care - North,Private & Voluntary Day Care,Action on Hearing Loss,505.92, 28-Nov-2011
64,Revenue,CCHD,Day Care - North,Private & Voluntary Day Care,Age UK South Gloucestershire,1693.12, 15-Nov-2011
65,Revenue,CCHD,Day Care - North,Private & Voluntary Day Care,Age UK South Gloucestershire,1465.28, 15-Nov-2011
66,Revenue,CCHD,Day Care - South,Private & Voluntary Day Care,Age UK South Gloucestershire,769.6, 21-Nov-2011
67,Revenue,CCHD,Elderly MH non-res purchasing,Private & Voluntary Day Care,Age UK South Gloucestershire,769.6, 15-Nov-2011
68,Revenue,CCHD,Elderly MH non-res purchasing,Private & Voluntary Day Care,Age UK South Gloucestershire,615.68, 07-Nov-2011
69,Revenue,CCHD,Day Care - South,Private & Voluntary Day Care,Age UK South Gloucestershire,1557.44, 21-Nov-2011
70,Revenue,CCHD,Day Care - South,Private & Voluntary Day Care,Age UK South Gloucestershire,541.76, 21-Nov-2011
71,Revenue,CCHD,Elderly MH non-res purchasing,Private & Voluntary Day Care,Age UK South Gloucestershire,615.68, 15-Nov-2011
72,Revenue,CCHD,Home Care Purch North,Other Small Contracts,Agincare UK Limited,799.96, 21-Nov-2011
73,Revenue,CCHD,Home Care Purch North,Other Small Contracts,Agincare UK Limited,799.96, 21-Nov-2011
74,Revenue,CCHD,Home Care Purch North,Other Small Contracts,Agincare UK Limited,799.96, 23-Nov-2011
75,Revenue,CCHD,Home Care Purch North,Other Small Contracts,Agincare UK Limited,799.96, 23-Nov-2011
76,Revenue,CCHD,Contracts & Commissioning Team,Other Small Contracts,Agincare UK Limited,4500, 04-Nov-2011
77,Revenue,CCHD,Home Care Purch South,Other Small Contracts,Agincare UK Limited,1436.4, 25-Nov-2011
78,Revenue,CCHD,Home Care Purch North,Other Small Contracts,Agincare UK Limited,1664.4, 25-Nov-2011
79,Revenue,CCHD,Day Care - South,Private & Voluntary Day Care,Agincare UK Limited,243.2, 25-Nov-2011
80,Revenue,CCHD,Day Care - North,Private & Voluntary Day Care,Agincare UK Limited,30.4, 25-Nov-2011
81,Revenue,CCHD,Elderly MH Home Care,Other Small Contracts,Agincare UK Limited,98.8, 25-Nov-2011
82,Revenue,CCHD,Elderly MH non-res purchasing,Private & Voluntary Day Care,Agincare UK Limited,209, 25-Nov-2011
83,Revenue,CCHD,Home Care Purch South,Other Small Contracts,Agincare UK Limited,1394.6, 18-Nov-2011
84,Revenue,CCHD,Home Care Purch North,Other Small Contracts,Agincare UK Limited,1759.4, 18-Nov-2011
85,Revenue,CCHD,Day Care - South,Private & Voluntary Day Care,Agincare UK Limited,140.6, 18-Nov-2011
86,Revenue,CCHD,Day Care - North,Private & Voluntary Day Care,Agincare UK Limited,53.2, 18-Nov-2011
87,Revenue,CCHD,Elderly MH Home Care,Other Small Contracts,Agincare UK Limited,98.8, 18-Nov-2011
88,Revenue,CCHD,Elderly MH non-res purchasing,Private & Voluntary Day Care,Agincare UK Limited,209, 18-Nov-2011
89,Revenue,CCHD,S117 Placements PCT,Residential Homes,Alexandra House,6697.76, 01-Nov-2011
90,Revenue,CCHD,S117 Placements PCT,Residential Homes,Alexandra House,6697.76, 29-Nov-2011
91,Revenue,CCHD,Contracts & Commissioning Team,Other Small Contracts,Allied Healthcare Group,5000, 04-Nov-2011
92,Revenue,CCHD,Elderly MH non-res purchasing,Private & Voluntary Day Care,Alzheimers Society,605.52, 22-Nov-2011
93,Revenue,CCHD,Elderly MH non-res purchasing,Private & Voluntary Day Care,Alzheimers Society,874.64, 22-Nov-2011
94,Revenue,CCHD,Elderly MH non-res purchasing,Private & Voluntary Day Care,Alzheimers Society,807.36, 22-Nov-2011
95,Revenue,CCHD,Elderly MH non-res purchasing,Private & Voluntary Day Care,Alzheimers Society,874.64, 22-Nov-2011
96,Revenue,CCHD,Elderly MH non-res purchasing,Private & Voluntary Day Care,Alzheimers Society,538.24, 22-Nov-2011
97,Revenue,CCHD,Section 117 Placements,Private & Voluntary Day Care,Alzheimers Society,538.24, 22-Nov-2011
98,Revenue,CCHD,Frenchay Hospital Purchasing,Residential Homes,Anbridge Care Home,832, 01-Nov-2011
99,Revenue,CCHD,Frenchay Hospital Purchasing,Residential Homes,Anbridge Care Home,832, 29-Nov-2011
100,Revenue,CCHD,Under 65s PWLD - KD,Residential Homes,Ark Care Homes Ltd,10342.92, 01-Nov-2011
101,Revenue,CCHD,Under 65s PWLD - KD,Residential Homes,Ark Care Homes Ltd,10342.92, 29-Nov-2011
102,Revenue,CCHD,Elderly Purchasing - South,Residential Homes,Ashbourne House Care Home Limited,1009.53, 01-Nov-2011
103,Revenue,CCHD,Bed and Breakfast,Bed & Breakfast,Ashley Guest House Ltd,840, 16-Nov-2011
104,Revenue,CCHD,Bed and Breakfast,Bed & Breakfast,Ashley Guest House Ltd,1008, 16-Nov-2011
105,Revenue,CCHD,Bed and Breakfast,Bed & Breakfast,Ashley Guest House Ltd,1008, 18-Nov-2011
106,Revenue,CCHD,S28A - Over 65,Residential Homes,Aspects &  Milestones Trust,3828.08, 01-Nov-2011
107,Revenue,CCHD,S28A - Over 65,Residential Homes,Aspects &  Milestones Trust,3828.08, 29-Nov-2011
108,Revenue,CCHD,Elderly Purchasing - South,Residential Homes,Aspects &  Milestones Trust,1379, 01-Nov-2011
109,Revenue,CCHD,Elderly Purchasing - South,Residential Homes,Aspects &  Milestones Trust,1379, 29-Nov-2011
110,Revenue,CCHD,Elderly Mental Health,Residential Homes,Aspects &  Milestones Trust,1229, 01-Nov-2011
111,Revenue,CCHD,Elderly Mental Health,Residential Homes,Aspects &  Milestones Trust,1229, 29-Nov-2011
112,Revenue,CCHD,Under 65s PWLD - PS,Residential Homes,Aspects &  Milestones Trust,34202.75, 01-Nov-2011
113,Revenue,CCHD,Under 65s PWLD - PS,Residential Homes,Aspects &  Milestones Trust,5985.48, 29-Nov-2011
114,Revenue,CCHD,Section 117 Placements,Residential Homes,Aspects &  Milestones Trust,1304, 01-Nov-2011
115,Revenue,CCHD,Section 117 Placements,Residential Homes,Aspects &  Milestones Trust,1304, 29-Nov-2011
116,Revenue,CCHD,Elderly Mental Health,Nursing Homes,Aspects &  Milestones Trust,797.08, 01-Nov-2011
117,Revenue,CCHD,Elderly Mental Health,Nursing Homes,Aspects &  Milestones Trust,797.08, 29-Nov-2011
118,Revenue,CCHD,Section 117 Placements,Nursing Homes,Aspects &  Milestones Trust,1911.96, 01-Nov-2011
119,Revenue,CCHD,Section 117 Placements,Nursing Homes,Aspects &  Milestones Trust,1911.96, 29-Nov-2011
120,Revenue,CCHD,Elderly PWLD - KD,Residential Homes,Aspects &  Milestones Trust,24351.62, 01-Nov-2011
121,Revenue,CCHD,Elderly PWLD - KD,Residential Homes,Aspects &  Milestones Trust,3505.52, 29-Nov-2011
122,Revenue,CCHD,Under 65s PWLD - PS,Residential Homes,Aspects &  Milestones Trust,21896, 01-Nov-2011
123,Revenue,CCHD,Under 65s PWLD - PS,Residential Homes,Aspects &  Milestones Trust,5152, 01-Nov-2011
124,Revenue,CCHD,Under 65s PWLD - PS,Residential Homes,Aspects &  Milestones Trust,5152, 29-Nov-2011
125,Revenue,CCHD,Under 65s PWLD - PS,Residential Homes,Aspects &  Milestones Trust,5601.08, 01-Nov-2011
126,Revenue,CCHD,Under 65s PWLD - PS,Residential Homes,Aspects &  Milestones Trust,5601.08, 29-Nov-2011
127,Revenue,CCHD,Under 65s PWLD - KD,Nursing Homes,Aspects &  Milestones Trust,2703.44, 01-Nov-2011
128,Revenue,CCHD,Under 65s PWLD - KD,Nursing Homes,Aspects &  Milestones Trust,2703.44, 29-Nov-2011
129,Revenue,CCHD,Section 117 Placements,Nursing Homes,Aspects &  Milestones Trust,1912, 01-Nov-2011
130,Revenue,CCHD,Section 117 Placements,Nursing Homes,Aspects &  Milestones Trust,1912, 29-Nov-2011
131,Revenue,CCHD,Elderly Mental Health,Nursing Homes,Aspects &  Milestones Trust,1453, 01-Nov-2011
132,Revenue,CCHD,Elderly Mental Health,Nursing Homes,Aspects &  Milestones Trust,1453, 29-Nov-2011
133,Revenue,CCHD,Elderly PWLD - PS,Residential Homes,Aspects &  Milestones Trust,21307.05, 01-Nov-2011
134,Revenue,CCHD,Elderly PWLD - PS,Residential Homes,Aspects &  Milestones Trust,2990.89, 01-Nov-2011
135,Revenue,CCHD,Elderly PWLD - PS,Residential Homes,Aspects &  Milestones Trust,3156.6, 29-Nov-2011
136,Revenue,CCHD,Elderly PWLD - PS,Residential Homes,Aspects &  Milestones Trust,4295.72, 01-Nov-2011
137,Revenue,CCHD,Elderly PWLD - PS,Residential Homes,Aspects &  Milestones Trust,4295.72, 29-Nov-2011
138,Revenue,CCHD,S28A - Under 65,Nursing Homes,Aspects &  Milestones Trust,5712.32, 01-Nov-2011
139,Revenue,CCHD,S28A - Under 65,Nursing Homes,Aspects &  Milestones Trust,5712.32, 29-Nov-2011
140,Revenue,CCHD,S28A - Under 65,Residential Homes,Aspects &  Milestones Trust,5272.24, 01-Nov-2011
141,Revenue,CCHD,S28A - Under 65,Residential Homes,Aspects &  Milestones Trust,5272.24, 29-Nov-2011
142,Revenue,CCHD,Under 65s PWLD - KH,Residential Homes,Aspects &  Milestones Trust,3441.76, 01-Nov-2011
143,Revenue,CCHD,Under 65s PWLD - KH,Residential Homes,Aspects &  Milestones Trust,3441.76, 29-Nov-2011
144,Revenue,CCHD,S28A - Under 65,Residential Homes,Aspects &  Milestones Trust,5251.04, 01-Nov-2011
145,Revenue,CCHD,S28A - Under 65,Residential Homes,Aspects &  Milestones Trust,5251.04, 29-Nov-2011
146,Revenue,CCHD,Under 65s PWLD - KD,Residential Homes,Aspects &  Milestones Trust,5638.32, 01-Nov-2011
147,Revenue,CCHD,Under 65s PWLD - KD,Residential Homes,Aspects &  Milestones Trust,5638.32, 29-Nov-2011
148,Revenue,CCHD,Under 65s PWLD - KH,Residential Homes,Aspects &  Milestones Trust,3782.04, 01-Nov-2011
149,Revenue,CCHD,Under 65s PWLD - KH,Residential Homes,Aspects &  Milestones Trust,3782.04, 29-Nov-2011
150,Revenue,CCHD,S28A - Under 65,Residential Homes,Aspects &  Milestones Trust,7624.84, 01-Nov-2011
151,Revenue,CCHD,S28A - Under 65,Residential Homes,Aspects &  Milestones Trust,7624.84, 29-Nov-2011
152,Revenue,CCHD,MH Purchasing - Younger,Residential Homes,Aspects &  Milestones Trust,1009, 01-Nov-2011
153,Revenue,CCHD,MH Purchasing - Younger,Residential Homes,Aspects &  Milestones Trust,1009, 29-Nov-2011
154,Revenue,CCHD,Elderly PWLD - PS,Residential Homes,Aspects &  Milestones Trust,5191.2, 01-Nov-2011
155,Revenue,CCHD,Elderly PWLD - PS,Residential Homes,Aspects &  Milestones Trust,5191.2, 29-Nov-2011
156,Revenue,CCHD,Elderly PWLD - PS,Residential Homes,Aspects &  Milestones Trust,3739.2, 01-Nov-2011
157,Revenue,CCHD,Elderly PWLD - PS,Residential Homes,Aspects &  Milestones Trust,3739.2, 29-Nov-2011
158,Revenue,CCHD,Elderly PWLD - KH,Residential Homes,Aspects &  Milestones Trust,4664.24, 01-Nov-2011
159,Revenue,CCHD,Elderly PWLD - KH,Residential Homes,Aspects &  Milestones Trust,4664.24, 29-Nov-2011
160,Revenue,CCHD,S28A - Under 65,Residential Homes,Aspects &  Milestones Trust,5187.68, 01-Nov-2011
161,Revenue,CCHD,S28A - Under 65,Residential Homes,Aspects &  Milestones Trust,5187.68, 29-Nov-2011
162,Revenue,CCHD,S28A - Under 65,Residential Homes,Aspects &  Milestones Trust,6036, 01-Nov-2011
163,Revenue,CCHD,S28A - Under 65,Residential Homes,Aspects &  Milestones Trust,6036, 29-Nov-2011
164,Revenue,CCHD,S28A - Under 65,Nursing Homes,Aspects &  Milestones Trust,6122.48, 01-Nov-2011
165,Revenue,CCHD,S28A - Under 65,Nursing Homes,Aspects &  Milestones Trust,6122.48, 29-Nov-2011
166,Revenue,CCHD,Section 117 Placements MH Younger,Residential Homes,Aspects &  Milestones Trust,1304, 01-Nov-2011
167,Revenue,CCHD,Section 117 Placements MH Younger,Residential Homes,Aspects &  Milestones Trust,1304, 29-Nov-2011
168,Revenue,CCHD,Under 65s PWLD - PS,Residential Homes,Aspects &  Milestones Trust,3774.91, 01-Nov-2011
169,Revenue,CCHD,Under 65s PWLD - PS,Residential Homes,Aspects &  Milestones Trust,3648.4, 29-Nov-2011
170,Revenue,CCHD,S28A - Under 65,Residential Homes,Aspects &  Milestones Trust,6036, 01-Nov-2011
171,Revenue,CCHD,S28A - Under 65,Residential Homes,Aspects &  Milestones Trust,6036, 29-Nov-2011
172,Revenue,CCHD,S28A - Under 65,Residential Homes,Aspects &  Milestones Trust,4787.92, 01-Nov-2011
173,Revenue,CCHD,S28A - Under 65,Residential Homes,Aspects &  Milestones Trust,4787.92, 29-Nov-2011
174,Revenue,CCHD,S28A - Over 65,Residential Homes,Aspects &  Milestones Trust,31485.24, 01-Nov-2011
175,Revenue,CCHD,S28A - Over 65,Residential Homes,Aspects &  Milestones Trust,4664.48, 01-Nov-2011
176,Revenue,CCHD,S28A - Over 65,Residential Homes,Aspects &  Milestones Trust,4664.48, 29-Nov-2011
177,Revenue,CCHD,S28A - Over 65,Residential Homes,Aspects &  Milestones Trust,26723.79, 01-Nov-2011
178,Revenue,CCHD,S28A - Over 65,Residential Homes,Aspects &  Milestones Trust,3959.08, 01-Nov-2011
179,Revenue,CCHD,S28A - Over 65,Residential Homes,Aspects &  Milestones Trust,3959.08, 29-Nov-2011
180,Revenue,CCHD,Under 65s PWLD - KH,Residential Homes,Aspects &  Milestones Trust,23560.59, 29-Nov-2011
181,Revenue,CCHD,S28A - Under 65,Residential Homes,Aspects &  Milestones Trust,6036, 01-Nov-2011
182,Revenue,CCHD,S28A - Under 65,Residential Homes,Aspects &  Milestones Trust,6036, 29-Nov-2011
183,Revenue,CCHD,S28A - Over 65,Residential Homes,Aspects &  Milestones Trust,4179.08, 01-Nov-2011
184,Revenue,CCHD,S28A - Over 65,Residential Homes,Aspects &  Milestones Trust,4179.08, 29-Nov-2011
185,Revenue,CCHD,S28A - Under 65,Residential Homes,Aspects &  Milestones Trust,6036, 01-Nov-2011
186,Revenue,CCHD,S28A - Under 65,Residential Homes,Aspects &  Milestones Trust,6036, 29-Nov-2011
187,Revenue,CCHD,S28A - Over 65,Residential Homes,Aspects &  Milestones Trust,4543.29, 01-Nov-2011
188,Revenue,CCHD,S28A - Over 65,Residential Homes,Aspects &  Milestones Trust,3854.92, 29-Nov-2011
189,Revenue,CCHD,S28A - Under 65,Residential Homes,Aspects &  Milestones Trust,4980, 01-Nov-2011
190,Revenue,CCHD,S28A - Under 65,Residential Homes,Aspects &  Milestones Trust,4980, 29-Nov-2011
191,Revenue,CCHD,S28A - Under 65,Residential Homes,Aspects &  Milestones Trust,6528.04, 01-Nov-2011
192,Revenue,CCHD,S28A - Under 65,Residential Homes,Aspects &  Milestones Trust,6528.04, 29-Nov-2011
193,Revenue,CCHD,S28A - Under 65,Residential Homes,Aspects &  Milestones Trust,3992.16, 01-Nov-2011
194,Revenue,CCHD,S28A - Under 65,Residential Homes,Aspects &  Milestones Trust,3992.16, 29-Nov-2011
195,Revenue,CCHD,S28A - Over 65,Residential Homes,Aspects &  Milestones Trust,5737.96, 01-Nov-2011
196,Revenue,CCHD,S28A - Over 65,Residential Homes,Aspects &  Milestones Trust,5737.96, 29-Nov-2011
197,Revenue,CCHD,S28A - Over 65,Residential Homes,Aspects &  Milestones Trust,3351.52, 01-Nov-2011
198,Revenue,CCHD,S28A - Over 65,Residential Homes,Aspects &  Milestones Trust,3351.52, 29-Nov-2011
199,Revenue,CCHD,S28A - Over 65,Residential Homes,Aspects &  Milestones Trust,4691.8, 01-Nov-2011
200,Revenue,CCHD,S28A - Over 65,Residential Homes,Aspects &  Milestones Trust,4691.8, 29-Nov-2011
201,Revenue,CCHD,S28A - Over 65,Residential Homes,Aspects &  Milestones Trust,4837.04, 01-Nov-2011
202,Revenue,CCHD,S28A - Over 65,Residential Homes,Aspects &  Milestones Trust,4837.04, 29-Nov-2011
203,Revenue,CCHD,S28A - Over 65,Residential Homes,Aspects &  Milestones Trust,4556.16, 01-Nov-2011
204,Revenue,CCHD,S28A - Over 65,Residential Homes,Aspects &  Milestones Trust,4556.16, 29-Nov-2011
205,Revenue,CCHD,S28A - Over 65,Residential Homes,Aspects &  Milestones Trust,5730.12, 01-Nov-2011
206,Revenue,CCHD,S28A - Over 65,Residential Homes,Aspects &  Milestones Trust,4440, 01-Nov-2011
207,Revenue,CCHD,S28A - Over 65,Residential Homes,Aspects &  Milestones Trust,4440, 29-Nov-2011
208,Revenue,CCHD,S28A - Over 65,Residential Homes,Aspects &  Milestones Trust,4112.28, 01-Nov-2011
209,Revenue,CCHD,S28A - Over 65,Residential Homes,Aspects &  Milestones Trust,4112.28, 29-Nov-2011
210,Revenue,CCHD,S28A - Over 65,Residential Homes,Aspects &  Milestones Trust,3419.64, 01-Nov-2011
211,Revenue,CCHD,S28A - Over 65,Residential Homes,Aspects &  Milestones Trust,3419.64, 29-Nov-2011
212,Revenue,CCHD,S28A - Under 65,Residential Homes,Aspects &  Milestones Trust,7200, 01-Nov-2011
213,Revenue,CCHD,S28A - Under 65,Residential Homes,Aspects &  Milestones Trust,7200, 29-Nov-2011
214,Revenue,CCHD,S28A - Under 65,Nursing Homes,Aspects &  Milestones Trust,6203.68, 01-Nov-2011
215,Revenue,CCHD,S28A - Under 65,Nursing Homes,Aspects &  Milestones Trust,6203.68, 29-Nov-2011
216,Revenue,CCHD,S28A - Over 65,Residential Homes,Aspects &  Milestones Trust,3445.12, 01-Nov-2011
217,Revenue,CCHD,S28A - Over 65,Residential Homes,Aspects &  Milestones Trust,3445.12, 29-Nov-2011
218,Revenue,CCHD,S28A - Over 65,Residential Homes,Aspects &  Milestones Trust,3207.68, 01-Nov-2011
219,Revenue,CCHD,S28A - Over 65,Residential Homes,Aspects &  Milestones Trust,3207.68, 29-Nov-2011
220,Revenue,CCHD,S28A - Over 65,Residential Homes,Aspects &  Milestones Trust,3263.96, 01-Nov-2011
221,Revenue,CCHD,S28A - Over 65,Residential Homes,Aspects &  Milestones Trust,3263.96, 29-Nov-2011
222,Revenue,CCHD,S28A - Over 65,Residential Homes,Aspects &  Milestones Trust,4652.36, 01-Nov-2011
223,Revenue,CCHD,S28A - Over 65,Residential Homes,Aspects &  Milestones Trust,4652.36, 29-Nov-2011
224,Revenue,CCHD,S28A - Over 65,Residential Homes,Aspects &  Milestones Trust,5730.18, 01-Nov-2011
225,Revenue,CCHD,Elderly Mental Health,Residential Homes,Aspects &  Milestones Trust,845.36, 01-Nov-2011
226,Revenue,CCHD,Elderly Mental Health,Residential Homes,Aspects &  Milestones Trust,845.36, 29-Nov-2011
227,Revenue,CCHD,S28A - Under 65,Residential Homes,Aspects &  Milestones Trust,4723.04, 01-Nov-2011
228,Revenue,CCHD,S28A - Under 65,Residential Homes,Aspects &  Milestones Trust,4723.04, 29-Nov-2011
229,Revenue,CCHD,Elderly PWLD - KD,Residential Homes,Aspects &  Milestones Trust,2722.88, 01-Nov-2011
230,Revenue,CCHD,Elderly PWLD - KD,Residential Homes,Aspects &  Milestones Trust,2722.88, 29-Nov-2011
231,Revenue,CCHD,Elderly PWLD - KH,Residential Homes,Aspects &  Milestones Trust,5344.36, 01-Nov-2011
232,Revenue,CCHD,Elderly PWLD - KH,Residential Homes,Aspects &  Milestones Trust,5344.36, 29-Nov-2011
233,Revenue,CCHD,Under 65s PWLD - KD,Residential Homes,Aspects &  Milestones Trust,5420.08, 01-Nov-2011
234,Revenue,CCHD,Under 65s PWLD - KD,Residential Homes,Aspects &  Milestones Trust,5420.08, 29-Nov-2011
235,Revenue,CCHD,Elderly PWLD - KD,Residential Homes,Aspects &  Milestones Trust,4180.6, 01-Nov-2011
236,Revenue,CCHD,Elderly PWLD - KD,Residential Homes,Aspects &  Milestones Trust,4180.6, 29-Nov-2011
237,Revenue,CCHD,Under 65s PWLD - PS,Residential Homes,Aspects &  Milestones Trust,3797.04, 01-Nov-2011
238,Revenue,CCHD,Under 65s PWLD - PS,Residential Homes,Aspects &  Milestones Trust,3797.04, 29-Nov-2011
239,Revenue,CCHD,Under 65s PWLD - KD,Residential Homes,Aspects &  Milestones Trust,5687.48, 01-Nov-2011
240,Revenue,CCHD,Under 65s PWLD - KD,Residential Homes,Aspects &  Milestones Trust,5687.48, 29-Nov-2011
241,Revenue,CCHD,S28A - Over 65,Residential Homes,Aspects &  Milestones Trust,21784.68, 01-Nov-2011
242,Revenue,CCHD,S28A - Over 65,Residential Homes,Aspects &  Milestones Trust,2636.77, 01-Nov-2011
243,Revenue,CCHD,S28A - Over 65,Residential Homes,Aspects &  Milestones Trust,3227.36, 29-Nov-2011
244,Revenue,CCHD,Section 117 Placements MH Younger,Residential Homes,Aspects &  Milestones Trust,1688, 01-Nov-2011
245,Revenue,CCHD,Section 117 Placements MH Younger,Residential Homes,Aspects &  Milestones Trust,1688, 29-Nov-2011
246,Revenue,CCHD,MH Purchasing - Younger,Residential Homes,Aspects &  Milestones Trust,1009, 01-Nov-2011
247,Revenue,CCHD,MH Purchasing - Younger,Residential Homes,Aspects &  Milestones Trust,1009, 29-Nov-2011
248,Revenue,CCHD,S28A - Over 65,Residential Homes,Aspects &  Milestones Trust,3463.2, 01-Nov-2011
249,Revenue,CCHD,S28A - Over 65,Residential Homes,Aspects &  Milestones Trust,3463.2, 29-Nov-2011
250,Revenue,CCHD,S28A - Under 65,Residential Homes,Aspects &  Milestones Trust,3514.96, 01-Nov-2011
251,Revenue,CCHD,S28A - Under 65,Residential Homes,Aspects &  Milestones Trust,3514.96, 29-Nov-2011
252,Revenue,CCHD,S28A - Under 65,Residential Homes,Aspects &  Milestones Trust,4980, 01-Nov-2011
253,Revenue,CCHD,S28A - Under 65,Residential Homes,Aspects &  Milestones Trust,4980, 29-Nov-2011
254,Revenue,CCHD,S28A - Under 65,Residential Homes,Aspects &  Milestones Trust,5936.36, 01-Nov-2011
255,Revenue,CCHD,S28A - Under 65,Residential Homes,Aspects &  Milestones Trust,5936.36, 29-Nov-2011
256,Revenue,CCHD,S28A - Over 65,Residential Homes,Aspects &  Milestones Trust,5810.64, 01-Nov-2011
257,Revenue,CCHD,S28A - Over 65,Residential Homes,Aspects &  Milestones Trust,5810.64, 29-Nov-2011
258,Revenue,CCHD,S28A - Over 65,Residential Homes,Aspects &  Milestones Trust,4106.08, 01-Nov-2011
259,Revenue,CCHD,S28A - Over 65,Residential Homes,Aspects &  Milestones Trust,4106.08, 29-Nov-2011
260,Revenue,CCHD,S28A - Over 65,Residential Homes,Aspects &  Milestones Trust,4652.36, 01-Nov-2011
261,Revenue,CCHD,S28A - Over 65,Residential Homes,Aspects &  Milestones Trust,4652.36, 29-Nov-2011
262,Revenue,CCHD,S28A - Over 65,Residential Homes,Aspects &  Milestones Trust,31683.69, 01-Nov-2011
263,Revenue,CCHD,S28A - Over 65,Residential Homes,Aspects &  Milestones Trust,4693.88, 01-Nov-2011
264,Revenue,CCHD,S28A - Over 65,Residential Homes,Aspects &  Milestones Trust,4693.88, 29-Nov-2011
265,Revenue,CCHD,S28A - Under 65,Residential Homes,Aspects &  Milestones Trust,5524.88, 01-Nov-2011
266,Revenue,CCHD,S28A - Under 65,Residential Homes,Aspects &  Milestones Trust,5524.88, 29-Nov-2011
267,Revenue,CCHD,S28A - Under 65,Residential Homes,Aspects &  Milestones Trust,7621.72, 01-Nov-2011
268,Revenue,CCHD,S28A - Under 65,Residential Homes,Aspects &  Milestones Trust,7621.72, 29-Nov-2011
269,Revenue,CCHD,S28A - Over 65,Residential Homes,Aspects &  Milestones Trust,4831.24, 01-Nov-2011
270,Revenue,CCHD,S28A - Over 65,Residential Homes,Aspects &  Milestones Trust,4831.24, 29-Nov-2011
271,Revenue,CCHD,S28A - Under 65,Residential Homes,Aspects &  Milestones Trust,4675.48, 01-Nov-2011
272,Revenue,CCHD,S28A - Under 65,Residential Homes,Aspects &  Milestones Trust,4675.48, 29-Nov-2011
273,Revenue,CCHD,S28A - Over 65,Residential Homes,Aspects &  Milestones Trust,4814.6, 01-Nov-2011
274,Revenue,CCHD,S28A - Over 65,Residential Homes,Aspects &  Milestones Trust,4814.6, 29-Nov-2011
275,Revenue,CCHD,S28A - Over 65,Residential Homes,Aspects &  Milestones Trust,5393.12, 01-Nov-2011
276,Revenue,CCHD,S28A - Over 65,Residential Homes,Aspects &  Milestones Trust,5393.12, 29-Nov-2011
277,Revenue,CCHD,S28A - Under 65,Residential Homes,Aspects &  Milestones Trust,4546.52, 01-Nov-2011
278,Revenue,CCHD,S28A - Under 65,Residential Homes,Aspects &  Milestones Trust,4546.52, 29-Nov-2011
279,Revenue,CCHD,S28A - Over 65,Residential Homes,Aspects &  Milestones Trust,4814.6, 01-Nov-2011
280,Revenue,CCHD,S28A - Over 65,Residential Homes,Aspects &  Milestones Trust,4814.6, 29-Nov-2011
281,Revenue,CCHD,Elderly PWLD - KD,Residential Homes,Aspects &  Milestones Trust,5200, 01-Nov-2011
282,Revenue,CCHD,Elderly PWLD - KD,Residential Homes,Aspects &  Milestones Trust,5200, 29-Nov-2011
283,Revenue,CCHD,S28A - Over 65,Residential Homes,Aspects &  Milestones Trust,4837.04, 01-Nov-2011
284,Revenue,CCHD,S28A - Over 65,Residential Homes,Aspects &  Milestones Trust,4837.04, 29-Nov-2011
285,Revenue,CCHD,S28A - Under 65,Residential Homes,Aspects &  Milestones Trust,4667.44, 01-Nov-2011
286,Revenue,CCHD,S28A - Under 65,Residential Homes,Aspects &  Milestones Trust,4667.44, 29-Nov-2011
287,Revenue,CCHD,S28A - Under 65,Residential Homes,Aspects &  Milestones Trust,6036, 01-Nov-2011
288,Revenue,CCHD,S28A - Under 65,Residential Homes,Aspects &  Milestones Trust,6036, 29-Nov-2011
289,Revenue,CCHD,S28A - Over 65,Residential Homes,Aspects &  Milestones Trust,5538.72, 01-Nov-2011
290,Revenue,CCHD,S28A - Over 65,Residential Homes,Aspects &  Milestones Trust,5538.72, 29-Nov-2011
291,Revenue,CCHD,S28A - Over 65,Residential Homes,Aspects &  Milestones Trust,3056.07, 01-Nov-2011
292,Revenue,CCHD,S28A - Over 65,Residential Homes,Aspects &  Milestones Trust,3422.8, 29-Nov-2011
293,Revenue,CCHD,S28A - Over 65,Residential Homes,Aspects &  Milestones Trust,3230.96, 01-Nov-2011
294,Revenue,CCHD,S28A - Over 65,Residential Homes,Aspects &  Milestones Trust,3230.96, 29-Nov-2011
295,Revenue,CCHD,S28A - Over 65,Residential Homes,Aspects &  Milestones Trust,3366.4, 01-Nov-2011
296,Revenue,CCHD,S28A - Over 65,Residential Homes,Aspects &  Milestones Trust,3366.4, 29-Nov-2011
297,Revenue,CCHD,S28A - Over 65,Residential Homes,Aspects &  Milestones Trust,3161.2, 01-Nov-2011
298,Revenue,CCHD,S28A - Over 65,Residential Homes,Aspects &  Milestones Trust,3161.2, 29-Nov-2011
299,Revenue,CCHD,Under 65s PWLD - KH,Residential Homes,Aspects &  Milestones Trust,47570.49, 01-Nov-2011
300,Revenue,CCHD,Under 65s PWLD - KH,Residential Homes,Aspects &  Milestones Trust,7047.48, 29-Nov-2011
301,Revenue,CCHD,Section 117 Placements,Residential Homes,Aspects &  Milestones Trust,1913.04, 01-Nov-2011
302,Revenue,CCHD,Section 117 Placements,Residential Homes,Aspects &  Milestones Trust,1913.04, 29-Nov-2011
303,Revenue,CCHD,Elderly Mental Health,Nursing Homes,Aspects &  Milestones Trust,1323.08, 01-Nov-2011
304,Revenue,CCHD,Elderly Mental Health,Nursing Homes,Aspects &  Milestones Trust,1323.08, 29-Nov-2011
305,Revenue,CCHD,Under 65s PWLD - KD,Residential Homes,Aspects &  Milestones Trust,6036, 01-Nov-2011
306,Revenue,CCHD,Under 65s PWLD - KD,Residential Homes,Aspects &  Milestones Trust,6036, 29-Nov-2011
307,Revenue,CCHD,MH Purchasing - Younger,Nursing Homes,Aspects &  Milestones Trust,908.88, 01-Nov-2011
308,Revenue,CCHD,MH Purchasing - Younger,Nursing Homes,Aspects &  Milestones Trust,908.88, 29-Nov-2011
309,Revenue,CCHD,MH Purchasing - Younger,Nursing Homes,Aspects &  Milestones Trust,1097, 01-Nov-2011
310,Revenue,CCHD,MH Purchasing - Younger,Nursing Homes,Aspects &  Milestones Trust,1097, 29-Nov-2011
311,Revenue,CCHD,MH Purchasing - Younger,Residential Homes,Aspects &  Milestones Trust,1009, 01-Nov-2011
312,Revenue,CCHD,MH Purchasing - Younger,Residential Homes,Aspects &  Milestones Trust,1009, 29-Nov-2011
313,Revenue,CCHD,Under 65s PWLD - PS,Residential Homes,Aspects &  Milestones Trust,3353.52, 01-Nov-2011
314,Revenue,CCHD,Under 65s PWLD - PS,Residential Homes,Aspects &  Milestones Trust,3353.52, 29-Nov-2011
315,Revenue,CCHD,Section 117 Placements MH Younger,Nursing Homes,Aspects &  Milestones Trust,1392, 01-Nov-2011
316,Revenue,CCHD,Section 117 Placements MH Younger,Nursing Homes,Aspects &  Milestones Trust,1392, 29-Nov-2011
317,Revenue,CCHD,S28A - Over 65,Residential Homes,Aspects &  Milestones Trust,4997.16, 01-Nov-2011
318,Revenue,CCHD,S28A - Over 65,Residential Homes,Aspects &  Milestones Trust,4997.16, 29-Nov-2011
319,Revenue,CCHD,S28A - Under 65,Residential Homes,Aspects &  Milestones Trust,4796.24, 01-Nov-2011
320,Revenue,CCHD,S28A - Under 65,Residential Homes,Aspects &  Milestones Trust,4796.24, 29-Nov-2011
321,Revenue,CCHD,S28A - Over 65,Residential Homes,Aspects &  Milestones Trust,23428.61, 01-Nov-2011
322,Revenue,CCHD,S28A - Over 65,Residential Homes,Aspects &  Milestones Trust,4562.12, 01-Nov-2011
323,Revenue,CCHD,S28A - Over 65,Residential Homes,Aspects &  Milestones Trust,4562.12, 29-Nov-2011
324,Revenue,CCHD,Under 65s PWLD - KH,Residential Homes,Aspects &  Milestones Trust,4115.4, 01-Nov-2011
325,Revenue,CCHD,Under 65s PWLD - KH,Residential Homes,Aspects &  Milestones Trust,4115.4, 29-Nov-2011
326,Revenue,CCHD,S28A - Over 65,Residential Homes,Aspects &  Milestones Trust,4037.96, 01-Nov-2011
327,Revenue,CCHD,S28A - Over 65,Residential Homes,Aspects &  Milestones Trust,4037.96, 29-Nov-2011
328,Revenue,CCHD,S28A - Over 65,Residential Homes,Aspects &  Milestones Trust,3748.88, 01-Nov-2011
329,Revenue,CCHD,S28A - Over 65,Residential Homes,Aspects &  Milestones Trust,3748.88, 29-Nov-2011
330,Revenue,CCHD,S28A - Over 65,Residential Homes,Aspects &  Milestones Trust,5810.64, 01-Nov-2011
331,Revenue,CCHD,S28A - Over 65,Residential Homes,Aspects &  Milestones Trust,5810.64, 29-Nov-2011
332,Revenue,CCHD,S28A - Over 65,Residential Homes,Aspects &  Milestones Trust,29762.64, 01-Nov-2011
333,Revenue,CCHD,S28A - Over 65,Residential Homes,Aspects &  Milestones Trust,4409.28, 01-Nov-2011
334,Revenue,CCHD,S28A - Over 65,Residential Homes,Aspects &  Milestones Trust,1581.1, 01-Nov-2011
335,Revenue,CCHD,S28A - Over 65,Residential Homes,Aspects &  Milestones Trust,4409.28, 29-Nov-2011
336,Revenue,CCHD,S28A - Over 65,Residential Homes,Aspects &  Milestones Trust,3917.36, 01-Nov-2011
337,Revenue,CCHD,S28A - Over 65,Residential Homes,Aspects &  Milestones Trust,3917.36, 29-Nov-2011
338,Revenue,CCHD,S28A - Over 65,Residential Homes,Aspects &  Milestones Trust,4343.92, 01-Nov-2011
339,Revenue,CCHD,S28A - Over 65,Residential Homes,Aspects &  Milestones Trust,4343.92, 29-Nov-2011
340,Revenue,CCHD,S28A - Over 65,Residential Homes,Aspects &  Milestones Trust,5080.6, 01-Nov-2011
341,Revenue,CCHD,S28A - Over 65,Residential Homes,Aspects &  Milestones Trust,5080.6, 29-Nov-2011
342,Revenue,CCHD,S28A - Over 65,Residential Homes,Aspects &  Milestones Trust,4638.04, 01-Nov-2011
343,Revenue,CCHD,S28A - Over 65,Residential Homes,Aspects &  Milestones Trust,711.76, 29-Nov-2011
344,Revenue,CCHD,Elderly Mental Health,Residential Homes,Aspects &  Milestones Trust,1214, 01-Nov-2011
345,Revenue,CCHD,Elderly Mental Health,Residential Homes,Aspects &  Milestones Trust,1214, 29-Nov-2011
346,Revenue,CCHD,S28A - Over 65,Residential Homes,Aspects &  Milestones Trust,31683.69, 01-Nov-2011
347,Revenue,CCHD,S28A - Over 65,Residential Homes,Aspects &  Milestones Trust,4693.88, 01-Nov-2011
348,Revenue,CCHD,S28A - Over 65,Residential Homes,Aspects &  Milestones Trust,4693.88, 29-Nov-2011
349,Revenue,CCHD,S28A - Under 65,Residential Homes,Aspects &  Milestones Trust,36019.62, 01-Nov-2011
350,Revenue,CCHD,S28A - Under 65,Residential Homes,Aspects &  Milestones Trust,5336.24, 01-Nov-2011
351,Revenue,CCHD,S28A - Under 65,Residential Homes,Aspects &  Milestones Trust,5336.24, 29-Nov-2011
352,Revenue,CCHD,Section 117 Placements,Nursing Homes,Aspects &  Milestones Trust,1912, 01-Nov-2011
353,Revenue,CCHD,Section 117 Placements,Nursing Homes,Aspects &  Milestones Trust,1912, 29-Nov-2011
354,Revenue,CCHD,Elderly Mental Health,Nursing Homes,Aspects &  Milestones Trust,1425, 01-Nov-2011
355,Revenue,CCHD,Elderly Mental Health,Nursing Homes,Aspects &  Milestones Trust,1425, 29-Nov-2011
356,Revenue,CCHD,Section 117 Placements,Nursing Homes,Aspects &  Milestones Trust,1912, 01-Nov-2011
357,Revenue,CCHD,Section 117 Placements,Nursing Homes,Aspects &  Milestones Trust,1912, 29-Nov-2011
358,Revenue,CCHD,Section 117 Placements,Residential Homes,Aspects &  Milestones Trust,1304, 01-Nov-2011
359,Revenue,CCHD,Section 117 Placements,Residential Homes,Aspects &  Milestones Trust,1304, 29-Nov-2011
360,Revenue,CCHD,Under 65s PWLD - KD,Residential Homes,Aspects & Milestones Trust,8708.64, 01-Nov-2011
361,Revenue,CCHD,Under 65s PWLD - KD,Residential Homes,Aspects & Milestones Trust,8708.64, 29-Nov-2011
362,Revenue,CCHD,Under 65s PWLD - KD,Residential Homes,Aspects & Milestones Trust,10805.44, 01-Nov-2011
363,Revenue,CCHD,Supporting People Programme,Grants to Voluntary Bodies,Aspects and Milestones Trust,1426.32, 29-Nov-2011
364,Revenue,CCHD,Supporting People Programme,Grants to Voluntary Bodies,Aspects and Milestones Trust,1737.24, 29-Nov-2011
365,Revenue,CCHD,Supporting People Programme,Grants to Voluntary Bodies,Aspects and Milestones Trust,2165.04, 29-Nov-2011
366,Revenue,CCHD,Supporting People Programme,Grants to Voluntary Bodies,Aspects and Milestones Trust,2783.52, 29-Nov-2011
367,Revenue,CCHD,Supporting People Programme,Grants to Voluntary Bodies,Aspects and Milestones Trust,2844.96, 29-Nov-2011
368,Revenue,CCHD,Supporting People Programme,Grants to Voluntary Bodies,Aspects and Milestones Trust,3996.4, 29-Nov-2011
369,Revenue,CCHD,Supporting People Programme,Grants to Voluntary Bodies,Aspects and Milestones Trust,1426.32, 01-Nov-2011
370,Revenue,CCHD,Supporting People Programme,Grants to Voluntary Bodies,Aspects and Milestones Trust,1737.24, 01-Nov-2011
371,Revenue,CCHD,Supporting People Programme,Grants to Voluntary Bodies,Aspects and Milestones Trust,2165.04, 01-Nov-2011
372,Revenue,CCHD,Supporting People Programme,Grants to Voluntary Bodies,Aspects and Milestones Trust,2783.52, 01-Nov-2011
373,Revenue,CCHD,Supporting People Programme,Grants to Voluntary Bodies,Aspects and Milestones Trust,2844.96, 01-Nov-2011
374,Revenue,CCHD,Supporting People Programme,Grants to Voluntary Bodies,Aspects and Milestones Trust,3996.4, 01-Nov-2011
375,Revenue,CCHD,Elderly MH non-res purchasing,Private & Voluntary Day Care,Aspects and Milestones Trust,680, 03-Nov-2011
376,Revenue,CCHD,Supported Living - PS,Private & Voluntary Home Care,Aspirations Support Bristol Limited,3670.87, 30-Nov-2011
377,Revenue,CCHD,Purchase of Non-Res Care - KH,Private & Voluntary Day Care,Aspirations Support Bristol Limited,3043.5, 28-Nov-2011
378,Revenue,CCHD,Under 65s PWLD - KH,Residential Homes,Autism Specialised Care Homes,5425.76, 01-Nov-2011
379,Revenue,CCHD,Under 65s PWLD - KH,Residential Homes,Autism Specialised Care Homes,5425.76, 29-Nov-2011
380,Revenue,CCHD,Training - Adult Services,Other Supplies & Services,Avenues Cafe,1570.5, 04-Nov-2011
381,Revenue,CCHD,Purchase of Non-Res Care - KD,Private & Voluntary Day Care,Avon Autistic Foundation Limited,4113.3, 18-Nov-2011
382,Revenue,CCHD,Purchase of Non-Res Care - KD,Private & Voluntary Day Care,Avon Autistic Foundation Limited,2242.08, 18-Nov-2011
383,Revenue,CCHD,Tenancy Start Up Scheme,Other Supplies & Services,Azure Property Solutions,1290, 18-Nov-2011
384,Revenue,CCHD,Better Support for Older People,Other Supplies & Services,Barberry,580, 16-Nov-2011
385,Revenue,CCHD,Better Support for Older People,Other Supplies & Services,Barberry,580, 30-Nov-2011
386,Revenue,CCHD,Frenchay Hospital Purchasing,Residential Homes,Beaufort House,670.32, 01-Nov-2011
387,Revenue,CCHD,Frenchay Hospital Purchasing,Residential Homes,Beaufort House,670.32, 29-Nov-2011
388,Revenue,CCHD,Elderly Mental Health,Residential Homes,Beaufort House,1414.6, 01-Nov-2011
389,Revenue,CCHD,Elderly Mental Health,Residential Homes,Beaufort House,1414.6, 29-Nov-2011
390,Revenue,CCHD,Southmead Hospital Purchasing,Residential Homes,Beaufort House,1545, 01-Nov-2011
391,Revenue,CCHD,Southmead Hospital Purchasing,Residential Homes,Beaufort House,1545, 29-Nov-2011
392,Revenue,CCHD,Frenchay Hospital Purchasing,Residential Homes,Beaufort House,1189.24, 01-Nov-2011
393,Revenue,CCHD,Frenchay Hospital Purchasing,Residential Homes,Beaufort House,1258.76, 01-Nov-2011
394,Revenue,CCHD,Frenchay Hospital Purchasing,Residential Homes,Beaufort House,1258.76, 29-Nov-2011
395,Revenue,CCHD,Elderly Mental Health,Residential Homes,Beaufort House,1285.84, 01-Nov-2011
396,Revenue,CCHD,Elderly Mental Health,Residential Homes,Beaufort House,1285.84, 29-Nov-2011
397,Revenue,CCHD,Frenchay Hospital Purchasing,Residential Homes,Beaufort House,1263.8, 01-Nov-2011
398,Revenue,CCHD,Frenchay Hospital Purchasing,Residential Homes,Beaufort House,1263.8, 29-Nov-2011
399,Revenue,CCHD,Elderly Mental Health,Residential Homes,Beaufort House,1288.32, 01-Nov-2011
400,Revenue,CCHD,Elderly Mental Health,Residential Homes,Beaufort House,1288.32, 29-Nov-2011
401,Revenue,CCHD,Elderly Mental Health,Residential Homes,Beaufort House,1307.68, 01-Nov-2011
402,Revenue,CCHD,Elderly Mental Health,Residential Homes,Beaufort House,1307.68, 29-Nov-2011
403,Revenue,CCHD,Elderly Purchasing - North,Residential Homes,Beaufort House,1670.64, 01-Nov-2011
404,Revenue,CCHD,Elderly Purchasing - North,Residential Homes,Beaufort House,1670.64, 29-Nov-2011
405,Revenue,CCHD,Elderly Mental Health,Residential Homes,Beaufort House,1229.65, 01-Nov-2011
406,Revenue,CCHD,Elderly Mental Health,Residential Homes,Beaufort House,1057.88, 01-Nov-2011
407,Revenue,CCHD,Elderly Mental Health,Residential Homes,Beaufort House,1057.88, 29-Nov-2011
408,Revenue,CCHD,Elderly Mental Health,Residential Homes,Beaufort House,1328.16, 01-Nov-2011
409,Revenue,CCHD,Elderly Mental Health,Residential Homes,Beaufort House,1328.16, 29-Nov-2011
410,Revenue,CCHD,Southmead Hospital Purchasing,Residential Homes,Beaufort House,1120.94, 01-Nov-2011
411,Revenue,CCHD,Elderly Mental Health,Residential Homes,Beaufort House,1032.16, 01-Nov-2011
412,Revenue,CCHD,Elderly Mental Health,Residential Homes,Beaufort House,1032.16, 29-Nov-2011
413,Revenue,CCHD,Elderly Mental Health,Residential Homes,Beaufort House,1654.92, 01-Nov-2011
414,Revenue,CCHD,Elderly Mental Health,Residential Homes,Beaufort House,1654.92, 29-Nov-2011
415,Revenue,CCHD,Southmead Hospital Purchasing,Residential Homes,Beaufort House,3770.14, 01-Nov-2011
416,Revenue,CCHD,Southmead Hospital Purchasing,Residential Homes,Beaufort House,1389, 01-Nov-2011
417,Revenue,CCHD,Elderly PWLD - KH,Residential Homes,Bedrock Lodge,5642.56, 01-Nov-2011
418,Revenue,CCHD,Elderly PWLD - KH,Residential Homes,Bedrock Lodge,2821.28, 29-Nov-2011
419,Revenue,CCHD,Section 117 Placements MH Younger,Residential Homes,Bedrock Lodge,3580.24, 01-Nov-2011
420,Revenue,CCHD,Section 117 Placements MH Younger,Residential Homes,Bedrock Lodge,1790.12, 29-Nov-2011
421,Revenue,CCHD,South Glos Users in South Glos Homes,Nursing Homes,Beech House,869.6, 29-Nov-2011
422,Revenue,CCHD,South Glos Users in South Glos Homes,Nursing Homes,Beech House,869.6, 29-Nov-2011
423,Revenue,CCHD,South Glos Users in South Glos Homes,Nursing Homes,Beech House,869.6, 29-Nov-2011
424,Revenue,CCHD,Elderly Purchasing - North,Nursing Homes,Beech House,1043.76, 29-Nov-2011
425,Revenue,CCHD,Elderly Purchasing - North,Nursing Homes,Beech House,2087.52, 29-Nov-2011
426,Revenue,CCHD,South Glos Users in South Glos Homes,Nursing Homes,Beech House,869.6, 29-Nov-2011
427,Revenue,CCHD,South Glos Users in South Glos Homes,Nursing Homes,Beech House,869.6, 29-Nov-2011
428,Revenue,CCHD,South Glos Users in South Glos Homes,Nursing Homes,Beech House,869.6, 29-Nov-2011
429,Revenue,CCHD,South Glos Users in South Glos Homes,Nursing Homes,Beech House,869.6, 29-Nov-2011
430,Revenue,CCHD,South Glos Users in South Glos Homes,Nursing Homes,Beech House,869.6, 29-Nov-2011
431,Revenue,CCHD,South Glos Users in South Glos Homes,Nursing Homes,Beech House,869.6, 29-Nov-2011
432,Revenue,CCHD,South Glos Users in South Glos Homes,Nursing Homes,Beech House,869.6, 29-Nov-2011
433,Revenue,CCHD,South Glos Users in South Glos Homes,Nursing Homes,Beech House,3090.19, 29-Nov-2011
434,Revenue,CCHD,South Glos Users in South Glos Homes,Nursing Homes,Beech House,1583.91, 29-Nov-2011
435,Revenue,CCHD,South Glos Users in South Glos Homes,Nursing Homes,Beech House,869.6, 29-Nov-2011
436,Revenue,CCHD,South Glos Users in South Glos Homes,Nursing Homes,Beech House,869.6, 29-Nov-2011
437,Revenue,CCHD,South Glos Users in South Glos Homes,Nursing Homes,Beech House,869.6, 29-Nov-2011
438,Revenue,CCHD,Elderly Purchasing - North,Nursing Homes,Beech House,1113.1, 29-Nov-2011
439,Revenue,CCHD,South Glos Users in South Glos Homes,Nursing Homes,Beech House,869.6, 29-Nov-2011
440,Revenue,CCHD,South Glos Users in South Glos Homes,Nursing Homes,Beech House,869.6, 29-Nov-2011
441,Revenue,CCHD,Frenchay Hospital Purchasing,Nursing Homes,Beech House,1565.08, 29-Nov-2011
442,Revenue,CCHD,Frenchay Hospital Purchasing,Nursing Homes,Beech House,3130.16, 29-Nov-2011
443,Revenue,CCHD,South Glos Users in South Glos Homes,Nursing Homes,Beech House,869.6, 29-Nov-2011
444,Revenue,CCHD,Southmead Hospital Purchasing,Nursing Homes,Beech House,1432.36, 29-Nov-2011
445,Revenue,CCHD,Southmead Hospital Purchasing,Nursing Homes,Beech House,2864.72, 29-Nov-2011
446,Revenue,CCHD,Elderly Purchasing - North,Nursing Homes,Beech House,1922.32, 29-Nov-2011
447,Revenue,CCHD,Elderly Purchasing - North,Nursing Homes,Beech House,3844.64, 29-Nov-2011
448,Revenue,CCHD,South Glos Users in South Glos Homes,Nursing Homes,Beech House,869.6, 29-Nov-2011
449,Revenue,CCHD,South Glos Users in South Glos Homes,Nursing Homes,Beech House,869.6, 29-Nov-2011
450,Revenue,CCHD,South Glos Users in South Glos Homes,Nursing Homes,Beech House,869.6, 29-Nov-2011
451,Revenue,CCHD,Elderly Purchasing - North,Nursing Homes,Beech House,668.64, 29-Nov-2011
452,Revenue,CCHD,South Glos Users in South Glos Homes,Nursing Homes,Beech House,1257.81, 29-Nov-2011
453,Revenue,CCHD,Elderly Purchasing - North,Nursing Homes,Beech House,1337.28, 29-Nov-2011
454,Revenue,CCHD,South Glos Users in South Glos Homes,Nursing Homes,Beech House,869.6, 29-Nov-2011
455,Revenue,CCHD,South Glos Users in South Glos Homes,Nursing Homes,Beech House,869.6, 29-Nov-2011
456,Revenue,CCHD,Elderly Purchasing - North,Nursing Homes,Beech House,1370.56, 29-Nov-2011
457,Revenue,CCHD,Elderly Purchasing - North,Nursing Homes,Beech House,2741.12, 29-Nov-2011
458,Revenue,CCHD,South Glos Users in South Glos Homes,Nursing Homes,Beech House,869.6, 29-Nov-2011
459,Revenue,CCHD,Southmead Hospital Purchasing,Nursing Homes,Beech House,1571.4, 29-Nov-2011
460,Revenue,CCHD,Southmead Hospital Purchasing,Nursing Homes,Beech House,3142.8, 29-Nov-2011
461,Revenue,CCHD,South Glos Users in South Glos Homes,Nursing Homes,Beech House,869.6, 29-Nov-2011
462,Revenue,CCHD,Elderly Purchasing - North,Nursing Homes,Beech House,1190.56, 29-Nov-2011
463,Revenue,CCHD,Elderly Purchasing - North,Nursing Homes,Beech House,2381.12, 29-Nov-2011
464,Revenue,CCHD,South Glos Users in South Glos Homes,Nursing Homes,Beech House,869.6, 29-Nov-2011
465,Revenue,CCHD,South Glos Users in South Glos Homes,Nursing Homes,Beech House,869.6, 29-Nov-2011
466,Revenue,CCHD,South Glos Users in South Glos Homes,Nursing Homes,Blossom Field,1195.7, 01-Nov-2011
467,Revenue,CCHD,South Glos Users in South Glos Homes,Nursing Homes,Blossom Field,760.9, 29-Nov-2011
468,Revenue,CCHD,South Glos Users in South Glos Homes,Nursing Homes,Blossom Field,838.54, 01-Nov-2011
469,Revenue,CCHD,South Glos Users in South Glos Homes,Nursing Homes,Blossom Field,652.2, 01-Nov-2011
470,Revenue,CCHD,Elderly Mental Health,Nursing Homes,Blossom Field,1378.68, 01-Nov-2011
471,Revenue,CCHD,Elderly Mental Health,Nursing Homes,Blossom Field,1378.68, 29-Nov-2011
472,Revenue,CCHD,South Glos Users in South Glos Homes,Nursing Homes,Blossom Field,1055.94, 29-Nov-2011
473,Revenue,CCHD,Southmead Hospital Purchasing,Nursing Homes,Blossom Field,4941.86, 01-Nov-2011
474,Revenue,CCHD,Southmead Hospital Purchasing,Nursing Homes,Blossom Field,2753.57, 29-Nov-2011
475,Revenue,CCHD,Southmead Hospital Purchasing,Nursing Homes,Blossom Field,1285, 29-Nov-2011
476,Revenue,CCHD,South Glos Users in South Glos Homes,Nursing Homes,Blossom Field,931.71, 29-Nov-2011
477,Revenue,CCHD,Elderly Purchasing - South,Private & Voluntary Day Care,Blossom Fields,7921.23, 08-Nov-2011
478,Revenue,CCHD,Training - Adult Services,Training Expenses,Bob Dawson,1102.5, 18-Nov-2011
479,Revenue,CCHD,Frenchay Hospital Purchasing,Nursing Homes,Bradbury House,1350.32, 01-Nov-2011
480,Revenue,CCHD,Home Care Purch South,Other Small Contracts,Bradley House Home Care Services,82, 09-Nov-2011
481,Revenue,CCHD,Home Care Purch North,Other Small Contracts,Bradley House Home Care Services,1648.2, 09-Nov-2011
482,Revenue,CCHD,Day Care - South,Private & Voluntary Day Care,Bradley House Home Care Services,57.4, 09-Nov-2011
483,Revenue,CCHD,Day Care - North,Private & Voluntary Day Care,Bradley House Home Care Services,131.2, 09-Nov-2011
484,Revenue,CCHD,Younger MH non-res purchasing,Private & Voluntary Day Care,Bradley House Home Care Services,61.5, 09-Nov-2011
485,Revenue,CCHD,Home Care Purch South,Other Small Contracts,Bradley House Home Care Services,82, 09-Nov-2011
486,Revenue,CCHD,Home Care Purch North,Other Small Contracts,Bradley House Home Care Services,1594.9, 09-Nov-2011
487,Revenue,CCHD,Day Care - South,Private & Voluntary Day Care,Bradley House Home Care Services,49.2, 09-Nov-2011
488,Revenue,CCHD,Day Care - North,Private & Voluntary Day Care,Bradley House Home Care Services,131.2, 09-Nov-2011
489,Revenue,CCHD,Younger MH non-res purchasing,Private & Voluntary Day Care,Bradley House Home Care Services,65.6, 09-Nov-2011
490,Revenue,CCHD,Home Care Purch South,Other Small Contracts,Bradley House Home Care Services,82, 09-Nov-2011
491,Revenue,CCHD,Home Care Purch North,Other Small Contracts,Bradley House Home Care Services,1886, 09-Nov-2011
492,Revenue,CCHD,Day Care - South,Private & Voluntary Day Care,Bradley House Home Care Services,57.4, 09-Nov-2011
493,Revenue,CCHD,Day Care - North,Private & Voluntary Day Care,Bradley House Home Care Services,131.2, 09-Nov-2011
494,Revenue,CCHD,Younger MH non-res purchasing,Private & Voluntary Day Care,Bradley House Home Care Services,65.6, 09-Nov-2011
495,Revenue,CCHD,Home Care Purch South,Other Small Contracts,Bradley House Home Care Services,86.1, 10-Nov-2011
496,Revenue,CCHD,Home Care Purch North,Other Small Contracts,Bradley House Home Care Services,1845, 10-Nov-2011
497,Revenue,CCHD,Day Care - South,Private & Voluntary Day Care,Bradley House Home Care Services,57.4, 10-Nov-2011
498,Revenue,CCHD,Day Care - North,Private & Voluntary Day Care,Bradley House Home Care Services,131.2, 10-Nov-2011
499,Revenue,CCHD,Younger MH non-res purchasing,Private & Voluntary Day Care,Bradley House Home Care Services,65.6, 10-Nov-2011
500,Revenue,CCHD,Home Care Purch South,Other Small Contracts,Bradley House Home Care Services,86.2, 09-Nov-2011
501,Revenue,CCHD,Home Care Purch North,Other Small Contracts,Bradley House Home Care Services,2030.01, 09-Nov-2011
502,Revenue,CCHD,Day Care - South,Private & Voluntary Day Care,Bradley House Home Care Services,60.34, 09-Nov-2011
503,Revenue,CCHD,Day Care - North,Private & Voluntary Day Care,Bradley House Home Care Services,137.92, 09-Nov-2011
504,Revenue,CCHD,Younger MH non-res purchasing,Private & Voluntary Day Care,Bradley House Home Care Services,73.27, 09-Nov-2011
505,Revenue,CCHD,Home Care Purch South,Other Small Contracts,Bradley House Home Care Services,61.5, 17-Nov-2011
506,Revenue,CCHD,Home Care Purch North,Other Small Contracts,Bradley House Home Care Services,1857.3, 17-Nov-2011
507,Revenue,CCHD,Day Care - South,Private & Voluntary Day Care,Bradley House Home Care Services,57.4, 17-Nov-2011
508,Revenue,CCHD,Day Care - North,Private & Voluntary Day Care,Bradley House Home Care Services,131.2, 17-Nov-2011
509,Revenue,CCHD,Younger MH non-res purchasing,Private & Voluntary Day Care,Bradley House Home Care Services,65.6, 17-Nov-2011
510,Revenue,CCHD,Home Care Purch South,Other Small Contracts,Bradley House Home Care Services,12.3, 23-Nov-2011
511,Revenue,CCHD,Home Care Purch North,Other Small Contracts,Bradley House Home Care Services,1820.4, 23-Nov-2011
512,Revenue,CCHD,Day Care - South,Private & Voluntary Day Care,Bradley House Home Care Services,57.4, 23-Nov-2011
513,Revenue,CCHD,Day Care - North,Private & Voluntary Day Care,Bradley House Home Care Services,131.2, 23-Nov-2011
514,Revenue,CCHD,Younger MH non-res purchasing,Private & Voluntary Day Care,Bradley House Home Care Services,65.6, 23-Nov-2011
515,Revenue,CCHD,Woodleaze,"Provisions (Food, etc)",Brake Bros,606.01, 04-Nov-2011
516,Revenue,CCHD,Alexandra Way,"Provisions (Food, etc)",Brake Bros,543.22, 09-Nov-2011
517,Revenue,CCHD,Woodleaze,"Provisions (Food, etc)",Brake Bros,518.45, 14-Nov-2011
518,Revenue,CCHD,Charlton,"Provisions (Food, etc)",Brake Bros,498.88, 21-Nov-2011
519,Revenue,CCHD,Woodleaze,"Provisions (Food, etc)",Brake Bros,582.82, 28-Nov-2011
520,Revenue,CCHD,Alexandra Way,"Provisions (Food, etc)",Brake Bros,606.1, 29-Nov-2011
521,Revenue,CCHD,Elderly Purchasing - North,Residential Homes,Bridge House Care Home,1232.6, 01-Nov-2011
522,Revenue,CCHD,Elderly Purchasing - North,Residential Homes,Bridge House Care Home,1232.6, 29-Nov-2011
523,Revenue,CCHD,Elderly Purchasing - South,Residential Homes,Bridge House Care Home,1532.68, 01-Nov-2011
524,Revenue,CCHD,Elderly Purchasing - South,Residential Homes,Bridge House Care Home,711.6, 01-Nov-2011
525,Revenue,CCHD,Elderly Purchasing - South,Residential Homes,Bridge House Care Home,1238.02, 29-Nov-2011
526,Revenue,CCHD,Elderly Purchasing - North,Residential Homes,Bridge House Care Home,1029.16, 01-Nov-2011
527,Revenue,CCHD,Elderly Purchasing - North,Residential Homes,Bridge House Care Home,1029.16, 29-Nov-2011
528,Revenue,CCHD,Elderly Mental Health,Residential Homes,Brightbow,4974.4, 01-Nov-2011
529,Revenue,CCHD,Elderly Mental Health,Residential Homes,Brightbow,2487.2, 29-Nov-2011
530,Revenue,CCHD,MH Purchasing - Younger,Residential Homes,Brightbow,1809.68, 01-Nov-2011
531,Revenue,CCHD,MH Purchasing - Younger,Residential Homes,Brightbow,904.84, 29-Nov-2011
532,Revenue,CCHD,Supporting People Programme,Grants to Voluntary Bodies,Bristol Care & Repair,9780.82, 10-Nov-2011
533,Revenue,CCHD,Enabling Activities,Fees - General,Bristol City Council,10000, 08-Nov-2011
534,Revenue,CCHD,Purchase of RAC places,Other L.A.'s - General,Bristol City Council,9069.73, 07-Nov-2011
535,Revenue,CCHD,Purchase of RAC places,Other L.A.'s - General,Bristol City Council,9075.36, 07-Nov-2011
536,Revenue,CCHD,Purchase of RAC places,Other L.A.'s - General,Bristol City Council,4107.2, 08-Nov-2011
537,Revenue,CCHD,TSG Practice Placements,Training Expenses,Bristol City Council,825, 09-Nov-2011
538,Revenue,CCHD,Training - Adult Services,Training Expenses,Bristol City Council,1860, 17-Nov-2011
539,Revenue,CCHD,Purchase of RAC places,Other L.A.'s - General,Bristol City Council,5061.93, 30-Nov-2011
540,Revenue,CCHD,Supported Living - KD,Private & Voluntary Home Care,Bristol Houses UK Ltd,1200.5, 25-Nov-2011
541,Revenue,CCHD,Supported Living - KD,Private & Voluntary Home Care,Bristol Houses UK Ltd,1256.24, 28-Nov-2011
542,Revenue,CCHD,Supported Living - KD,Private & Voluntary Home Care,Bristol Houses UK Ltd,857.5, 08-Nov-2011
543,Revenue,CCHD,Supported Living - KD,Private & Voluntary Home Care,Bristol Houses UK Ltd,994.7, 28-Nov-2011
544,Revenue,CCHD,Supported Living - KD,Private & Voluntary Home Care,Bristol Houses UK Ltd,1963.68, 08-Nov-2011
545,Revenue,CCHD,Supported Living - KD,Private & Voluntary Home Care,Bristol Houses UK Ltd,1406.3, 28-Nov-2011
546,Revenue,CCHD,Day Care - North,Private & Voluntary Day Care,Bristol Houses UK Ltd,1208.75, 08-Nov-2011
547,Revenue,CCHD,Day Care - North,Private & Voluntary Day Care,Bristol Houses UK Ltd,1521.72, 28-Nov-2011
548,Revenue,CCHD,Supported Living - KD,Private & Voluntary Home Care,Bristol Houses UK Ltd,1029, 08-Nov-2011
549,Revenue,CCHD,Supported Living - KD,Private & Voluntary Home Care,Bristol Houses UK Ltd,1024.71, 28-Nov-2011
550,Revenue,CCHD,Supported Living - KD,Private & Voluntary Home Care,Bristol Houses UK Ltd,567.88, 08-Nov-2011
551,Revenue,CCHD,Supported Living - KD,Private & Voluntary Home Care,Bristol Houses UK Ltd,560.5, 28-Nov-2011
552,Revenue,CCHD,Supported Living - KD,Private & Voluntary Home Care,Bristol Houses UK Ltd,944, 25-Nov-2011
553,Revenue,CCHD,Supported Living - KD,Private & Voluntary Home Care,Bristol Houses UK Ltd,936.63, 28-Nov-2011
554,Revenue,CCHD,Day Care - North,Private & Voluntary Day Care,Bristol Houses UK Ltd,2448.16, 08-Nov-2011
555,Revenue,CCHD,Day Care - North,Private & Voluntary Day Care,Bristol Houses UK Ltd,2632.53, 28-Nov-2011
556,Revenue,CCHD,Supported Living - KD,Private & Voluntary Home Care,Bristol Houses UK Ltd,560.5, 08-Nov-2011
557,Revenue,CCHD,Supported Living - KD,Private & Voluntary Home Care,Bristol Houses UK Ltd,531, 28-Nov-2011
558,Revenue,CCHD,Bed and Breakfast,Bed & Breakfast,Bristol Housing & Support Limited,672, 16-Nov-2011
559,Revenue,CCHD,Bed and Breakfast,Bed & Breakfast,Bristol Housing & Support Limited,672, 18-Nov-2011
560,Revenue,CCHD,Bed and Breakfast,Bed & Breakfast,Bristol Housing & Support Limited,672, 18-Nov-2011
561,Revenue,CCHD,Section 117 Placements,Residential Homes,Brockley Court Care Home,1788, 01-Nov-2011
562,Revenue,CCHD,Section 117 Placements,Residential Homes,Brockley Court Care Home,1788, 29-Nov-2011
563,Revenue,CCHD,Supporting People Programme,Grants to Voluntary Bodies,Bromford Housing Group,14293.2, 10-Nov-2011
564,Revenue,CCHD,Supporting People Programme,Grants to Voluntary Bodies,Bromford Housing Group,14293.2, 10-Nov-2011
565,Revenue,CCHD,Supporting People Programme,Grants to Voluntary Bodies,Bromford Housing Group,13272.26, 10-Nov-2011
566,Revenue,CCHD,Elderly Purchasing - North,Residential Homes,Brook Lane Residential Home,886.4, 01-Nov-2011
567,Revenue,CCHD,Elderly Purchasing - North,Residential Homes,Brook Lane Residential Home,886.4, 29-Nov-2011
568,Revenue,CCHD,Section 117 Placements,Nursing Homes,Brunel Care,2264.33, 01-Nov-2011
569,Revenue,CCHD,Southmead Hospital Purchasing,Nursing Homes,Brunel Care,4878.08, 01-Nov-2011
570,Revenue,CCHD,Southmead Hospital Purchasing,Nursing Homes,Brunel Care,1326.08, 01-Nov-2011
571,Revenue,CCHD,Southmead Hospital Purchasing,Nursing Homes,Brunel Care,1326.08, 29-Nov-2011
572,Revenue,CCHD,South Glos Users in South Glos Homes,Nursing Homes,Brunel Care,3028.07, 29-Nov-2011
573,Revenue,CCHD,South Glos Users in South Glos Homes,Nursing Homes,Brunel Care,2670.91, 29-Nov-2011
574,Revenue,CCHD,South Glos Users in South Glos Homes,Nursing Homes,Brunel Care,7298.43, 29-Nov-2011
575,Revenue,CCHD,Southmead Hospital Purchasing,Nursing Homes,Brunel Care,1525.16, 01-Nov-2011
576,Revenue,CCHD,Section 117 Placements,Nursing Homes,Brunel Care,1744, 01-Nov-2011
577,Revenue,CCHD,Section 117 Placements,Nursing Homes,Brunel Care,1744, 29-Nov-2011
578,Revenue,CCHD,Southmead Hospital Purchasing,Residential Homes,Brunel Care,1237.12, 01-Nov-2011
579,Revenue,CCHD,Southmead Hospital Purchasing,Residential Homes,Brunel Care,1237.12, 29-Nov-2011
580,Revenue,CCHD,Elderly Mental Health,Nursing Homes,Brunel Care,3439.2, 01-Nov-2011
581,Revenue,CCHD,Southmead Hospital Purchasing,Residential Homes,Brunel Care,1300.32, 01-Nov-2011
582,Revenue,CCHD,Southmead Hospital Purchasing,Residential Homes,Brunel Care,1300.32, 29-Nov-2011
583,Revenue,CCHD,Elderly Purchasing - South,Residential Homes,Brunel Care,1120.5, 01-Nov-2011
584,Revenue,CCHD,Elderly Purchasing - South,Residential Homes,Brunel Care,1366.32, 01-Nov-2011
585,Revenue,CCHD,Elderly Purchasing - South,Residential Homes,Brunel Care,1366.32, 29-Nov-2011
586,Revenue,CCHD,Elderly Purchasing - South,Nursing Homes,Brunelcare,11882.34, 24-Nov-2011
587,Revenue,CCHD,Elderly Purchasing - North,Nursing Homes,Brunelcare,3148.27, 24-Nov-2011
588,Revenue,CCHD,Frenchay Hospital Purchasing,Nursing Homes,Brunelcare,2647.39, 24-Nov-2011
589,Revenue,CCHD,Southmead Hospital Purchasing,Nursing Homes,Brunelcare,4224.24, 24-Nov-2011
590,Revenue,CCHD,South Glos Users in South Glos Homes,Nursing Homes,Brunelcare,7764.29, 24-Nov-2011
591,Revenue,CCHD,Elderly Mental Health,Nursing Homes,Brunelcare,14570.84, 24-Nov-2011
592,Revenue,CCHD,Section 117 Placements,Nursing Homes,Brunelcare,6687.59, 24-Nov-2011
593,Revenue,CCHD,Contracts & Commissioning Team,Other Small Contracts,Brunelcare,10500, 04-Nov-2011
594,Revenue,CCHD,Information Systems - Software,Computer Equipment - Purchase,BT Global Services Solutions,759.31, 18-Nov-2011
595,Revenue,CCHD,Woodleaze,Cleaning & Domestic Supplies,Bunzl Cleaning & Hygiene Supplies,617.72, 14-Nov-2011
596,Revenue,CCHD,Supported Living - KD,Private & Voluntary Home Care,Camphill Communities Thornbury Limited,1017.22, 10-Nov-2011
597,Revenue,CCHD,Supported Living - KD,Private & Voluntary Home Care,Camphill Communities Thornbury Limited,2231.64, 11-Nov-2011
598,Revenue,CCHD,Supported Living - KD,Private & Voluntary Home Care,Camphill Communities Thornbury Limited,1996.72, 11-Nov-2011
599,Revenue,CCHD,Supported Living - KD,Private & Voluntary Home Care,Camphill Communities Thornbury Limited,2211.36, 11-Nov-2011
600,Revenue,CCHD,Purchase of Non-Res Care - KD,Private & Voluntary Day Care,Camphill Communities Thornbury Limited,1964.32, 11-Nov-2011
601,Revenue,CCHD,Supported Living - KD,Private & Voluntary Home Care,Camphill Communities Thornbury Limited,2077.72, 18-Nov-2011
602,Revenue,CCHD,Supported Living - KD,Private & Voluntary Home Care,Camphill Communities Thornbury Limited,1017.22, 18-Nov-2011
603,Revenue,CCHD,Supported Living - KD,Private & Voluntary Home Care,Camphill Communities Thornbury Limited,1964.32, 21-Nov-2011
604,Revenue,CCHD,Supported Living - KD,Private & Voluntary Home Care,Camphill Communities Thornbury Limited,2179.44, 21-Nov-2011
605,Revenue,CCHD,Under 65s PWLD - KD,Residential Homes,Camphill Devon Community,3143.88, 01-Nov-2011
606,Revenue,CCHD,Under 65s PWLD - KD,Residential Homes,Camphill Devon Community,3143.88, 29-Nov-2011
607,Revenue,CCHD,Under 65s PWLD - KD,Residential Homes,Camphill Devon Community,2208.44, 01-Nov-2011
608,Revenue,CCHD,Under 65s PWLD - KD,Residential Homes,Camphill Devon Community,2208.44, 29-Nov-2011
609,Revenue,CCHD,Home Care Purch South,Other Small Contracts,Care 1st Homecare,4942.04, 09-Nov-2011
610,Revenue,CCHD,Home Care Purch North,Other Small Contracts,Care 1st Homecare,4171.04, 09-Nov-2011
611,Revenue,CCHD,Day Care - South,Private & Voluntary Day Care,Care 1st Homecare,464.02, 09-Nov-2011
612,Revenue,CCHD,Day Care - North,Private & Voluntary Day Care,Care 1st Homecare,408.94, 09-Nov-2011
613,Revenue,CCHD,Elderly MH Home Care,Other Small Contracts,Care 1st Homecare,238.8, 09-Nov-2011
614,Revenue,CCHD,Elderly MH non-res purchasing,Private & Voluntary Day Care,Care 1st Homecare,58.14, 09-Nov-2011
615,Revenue,CCHD,PWLD Home Care - Under 65 - PS,Private & Voluntary Home Care,Care 1st Homecare,31.84, 09-Nov-2011
616,Revenue,CCHD,PWLD Home Care - Under 65 - KH,Private & Voluntary Home Care,Care 1st Homecare,147.26, 09-Nov-2011
617,Revenue,CCHD,Home Care Purch South,Other Small Contracts,Care 1st Homecare,5579.96, 09-Nov-2011
618,Revenue,CCHD,Home Care Purch North,Other Small Contracts,Care 1st Homecare,5651.6, 09-Nov-2011
619,Revenue,CCHD,Day Care - South,Private & Voluntary Day Care,Care 1st Homecare,465.26, 09-Nov-2011
620,Revenue,CCHD,Day Care - North,Private & Voluntary Day Care,Care 1st Homecare,431.7, 09-Nov-2011
621,Revenue,CCHD,Elderly MH Home Care,Other Small Contracts,Care 1st Homecare,242.78, 09-Nov-2011
622,Revenue,CCHD,Elderly MH non-res purchasing,Private & Voluntary Day Care,Care 1st Homecare,58.14, 09-Nov-2011
623,Revenue,CCHD,PWLD Home Care - Under 65 - PS,Private & Voluntary Home Care,Care 1st Homecare,31.84, 09-Nov-2011
624,Revenue,CCHD,PWLD Home Care - Under 65 - KH,Private & Voluntary Home Care,Care 1st Homecare,159.2, 09-Nov-2011
625,Revenue,CCHD,Home Care Purch South,Other Small Contracts,Care 1st Homecare,5476.48, 09-Nov-2011
626,Revenue,CCHD,Home Care Purch North,Other Small Contracts,Care 1st Homecare,5002.86, 09-Nov-2011
627,Revenue,CCHD,Day Care - South,Private & Voluntary Day Care,Care 1st Homecare,478.82, 09-Nov-2011
628,Revenue,CCHD,Day Care - North,Private & Voluntary Day Care,Care 1st Homecare,347, 09-Nov-2011
629,Revenue,CCHD,Elderly MH Home Care,Other Small Contracts,Care 1st Homecare,230.84, 09-Nov-2011
630,Revenue,CCHD,Elderly MH non-res purchasing,Private & Voluntary Day Care,Care 1st Homecare,58.14, 09-Nov-2011
631,Revenue,CCHD,PWLD Home Care - Under 65 - PS,Private & Voluntary Home Care,Care 1st Homecare,31.84, 09-Nov-2011
632,Revenue,CCHD,PWLD Home Care - Under 65 - KH,Private & Voluntary Home Care,Care 1st Homecare,103.48, 09-Nov-2011
633,Revenue,CCHD,Home Care Purch South,Other Small Contracts,Care 1st Homecare,5460.56, 09-Nov-2011
634,Revenue,CCHD,Home Care Purch North,Other Small Contracts,Care 1st Homecare,4879.48, 09-Nov-2011
635,Revenue,CCHD,Day Care - South,Private & Voluntary Day Care,Care 1st Homecare,447.1, 09-Nov-2011
636,Revenue,CCHD,Day Care - North,Private & Voluntary Day Care,Care 1st Homecare,415.78, 09-Nov-2011
637,Revenue,CCHD,Elderly MH Home Care,Other Small Contracts,Care 1st Homecare,310.44, 09-Nov-2011
638,Revenue,CCHD,Elderly MH non-res purchasing,Private & Voluntary Day Care,Care 1st Homecare,54.72, 09-Nov-2011
639,Revenue,CCHD,PWLD Home Care - Under 65 - PS,Private & Voluntary Home Care,Care 1st Homecare,11.94, 09-Nov-2011
640,Revenue,CCHD,PWLD Home Care - Under 65 - KH,Private & Voluntary Home Care,Care 1st Homecare,135.32, 09-Nov-2011
641,Revenue,CCHD,Home Care Purch South,Other Small Contracts,Care 1st Homecare,5030.72, 10-Nov-2011
642,Revenue,CCHD,Home Care Purch North,Other Small Contracts,Care 1st Homecare,5177.98, 10-Nov-2011
643,Revenue,CCHD,Day Care - South,Private & Voluntary Day Care,Care 1st Homecare,411.1, 10-Nov-2011
644,Revenue,CCHD,Day Care - North,Private & Voluntary Day Care,Care 1st Homecare,422.06, 10-Nov-2011
645,Revenue,CCHD,Elderly MH Home Care,Other Small Contracts,Care 1st Homecare,210.94, 10-Nov-2011
646,Revenue,CCHD,Elderly MH non-res purchasing,Private & Voluntary Day Care,Care 1st Homecare,58.14, 10-Nov-2011
647,Revenue,CCHD,PWLD Home Care - Under 65 - PS,Private & Voluntary Home Care,Care 1st Homecare,27.86, 10-Nov-2011
648,Revenue,CCHD,PWLD Home Care - Under 65 - KH,Private & Voluntary Home Care,Care 1st Homecare,135.32, 10-Nov-2011
649,Revenue,CCHD,PWLD S 117 Placements,Residential Homes,Care Community Ltd,7341.4, 01-Nov-2011
650,Revenue,CCHD,PWLD S 117 Placements,Residential Homes,Care Community Ltd,7341.4, 29-Nov-2011
651,Revenue,CCHD,Purchase of Non-Res Care - PS,Private & Voluntary Day Care,Care Horizons Limited,1563.8, 02-Nov-2011
652,Revenue,CCHD,Purchase of Non-Res Care - KD,Private & Voluntary Day Care,Care Horizons Limited,1747.32, 04-Nov-2011
653,Revenue,CCHD,Day Care - South,Private & Voluntary Day Care,Care Horizons Limited,696.77, 08-Nov-2011
654,Revenue,CCHD,Purchase of Non-Res Care - PS,Private & Voluntary Day Care,Care Horizons Limited,1521.41, 02-Nov-2011
655,Revenue,CCHD,Purchase of Non-Res Care - KD,Private & Voluntary Day Care,Care Horizons Limited,828.49, 08-Nov-2011
656,Revenue,CCHD,Supported Living - KD,Private & Voluntary Home Care,Care Horizons Limited,5234.74, 08-Nov-2011
657,Revenue,CCHD,Supported Living - KD,Private & Voluntary Home Care,Care Horizons Limited,5682.13, 28-Nov-2011
658,Revenue,CCHD,Day Care - North,Private & Voluntary Day Care,Care Horizons Limited,685.16, 22-Nov-2011
659,Revenue,CCHD,Purchase of Non-Res Care - KD,Private & Voluntary Day Care,Care Horizons Limited,1149.8, 21-Nov-2011
660,Revenue,CCHD,Purchase of Non-Res Care - KD,Private & Voluntary Day Care,Care Horizons Limited,1038.43, 28-Nov-2011
661,Revenue,CCHD,Purchase of Non-Res Care - KD,Private & Voluntary Day Care,Care Horizons Limited,1143.49, 28-Nov-2011
662,Revenue,CCHD,Purchase of Non-Res Care - KD,Private & Voluntary Day Care,Care Horizons Limited,870.74, 18-Nov-2011
663,Revenue,CCHD,Day Care - South,Private & Voluntary Day Care,Care Horizons Limited,616.39, 28-Nov-2011
664,Revenue,CCHD,Supported Living - KH,Private & Voluntary Home Care,Care Horizons Limited,1786.97, 25-Nov-2011
665,Revenue,CCHD,Purchase of Non-Res Care - KD,Private & Voluntary Day Care,Care Horizons Limited,1588.92, 25-Nov-2011
666,Revenue,CCHD,Supported Living - KD,Private & Voluntary Home Care,Care Horizons Limited,5234.74, 28-Nov-2011
667,Revenue,CCHD,Electronic Home Care Monitoring,Other Supplies & Services,Care Monitoring 2000 Limited,5528.9, 03-Nov-2011
668,Revenue,CCHD,Home Care - General,Other Supplies & Services,Care Monitoring 2000 Limited,7046.3, 03-Nov-2011
669,Revenue,CCHD,Electronic Home Care Monitoring,Other Supplies & Services,Care Monitoring 2000 Limited,5687.3, 09-Nov-2011
670,Revenue,CCHD,Home Care - General,Other Supplies & Services,Care Monitoring 2000 Limited,7067.4, 09-Nov-2011
671,Revenue,CCHD,Contracts & Commissioning Team,Other Small Contracts,Care UK Homecare,16000, 04-Nov-2011
672,Revenue,CCHD,Contracts & Commissioning Team,Other Small Contracts,Carewatch (Bristol),2200, 04-Nov-2011
673,Revenue,CCHD,Elderly Mental Health,Residential Homes,Carlton Mansions,2770.26, 29-Nov-2011
674,Revenue,CCHD,Home Care Purch South,Other Small Contracts,Cash Friday at Lloyds TSB,181.92, 22-Nov-2011
675,Revenue,CCHD,Home Care Purch North,Other Small Contracts,Cash Friday at Lloyds TSB,1807.83, 22-Nov-2011
676,Revenue,CCHD,Day Care - South,Private & Voluntary Day Care,Cash Friday at Lloyds TSB,26.53, 22-Nov-2011
677,Revenue,CCHD,Day Care - North,Private & Voluntary Day Care,Cash Friday at Lloyds TSB,90.96, 22-Nov-2011
678,Revenue,CCHD,Home Care Purch South,Other Small Contracts,Cash Friday at Lloyds TSB,181.92, 22-Nov-2011
679,Revenue,CCHD,Home Care Purch North,Other Small Contracts,Cash Friday at Lloyds TSB,1735.82, 22-Nov-2011
680,Revenue,CCHD,Day Care - South,Private & Voluntary Day Care,Cash Friday at Lloyds TSB,30.32, 22-Nov-2011
681,Revenue,CCHD,Day Care - North,Private & Voluntary Day Care,Cash Friday at Lloyds TSB,53.06, 22-Nov-2011
682,Revenue,CCHD,Home Care Purch South,Other Small Contracts,Cash Friday at Lloyds TSB,181.92, 25-Nov-2011
683,Revenue,CCHD,Home Care Purch North,Other Small Contracts,Cash Friday at Lloyds TSB,1750.98, 25-Nov-2011
684,Revenue,CCHD,Day Care - South,Private & Voluntary Day Care,Cash Friday at Lloyds TSB,30.32, 25-Nov-2011
685,Revenue,CCHD,Day Care - North,Private & Voluntary Day Care,Cash Friday at Lloyds TSB,90.96, 25-Nov-2011
686,Revenue,CCHD,User Involvement,Other Supplies & Services,Cathy Truman,1000, 16-Nov-2011
687,Revenue,CCHD,Frenchay Hospital Purchasing,Nursing Homes,Cedar Care Homes Ltd,1051.8, 01-Nov-2011
688,Revenue,CCHD,Frenchay Hospital Purchasing,Nursing Homes,Cedar Care Homes Ltd,1051.8, 29-Nov-2011
689,Revenue,CCHD,Frenchay Hospital Purchasing,Residential Homes,Centenary Care Homes Ltd,1229, 01-Nov-2011
690,Revenue,CCHD,Frenchay Hospital Purchasing,Residential Homes,Centenary Care Homes Ltd,1229, 29-Nov-2011
691,Revenue,CCHD,Elderly Purchasing - South,Residential Homes,Cepen Lodge Care Home,2120, 01-Nov-2011
692,Revenue,CCHD,Elderly Purchasing - South,Residential Homes,Cepen Lodge Care Home,2120, 29-Nov-2011
693,Revenue,CCHD,Elderly Purchasing - South,Residential Homes,Cepen Lodge Care Home,2120, 01-Nov-2011
694,Revenue,CCHD,Elderly Purchasing - South,Residential Homes,Cepen Lodge Care Home,2120, 29-Nov-2011
695,Revenue,CCHD,Frenchay Hospital Purchasing,Residential Homes,Chatsworth House,1389, 01-Nov-2011
696,Revenue,CCHD,Frenchay Hospital Purchasing,Residential Homes,Chatsworth House,1389, 29-Nov-2011
697,Revenue,CCHD,Elderly Mental Health,Residential Homes,Chatsworth House,1280.24, 01-Nov-2011
698,Revenue,CCHD,Elderly Mental Health,Residential Homes,Chatsworth House,1280.24, 29-Nov-2011
699,Revenue,CCHD,Southmead Hospital Purchasing,Residential Homes,Chatsworth House,1008.6, 01-Nov-2011
700,Revenue,CCHD,Southmead Hospital Purchasing,Residential Homes,Chatsworth House,1008.6, 29-Nov-2011
701,Revenue,CCHD,S28A - Under 65,Residential Homes,Chescombe Lodge,8360.04, 01-Nov-2011
702,Revenue,CCHD,S28A - Under 65,Residential Homes,Chescombe Lodge,8360.04, 29-Nov-2011
703,Revenue,CCHD,Under 65s PWLD - PS,Residential Homes,Chosen Court,14080.88, 29-Nov-2011
704,Revenue,CCHD,Under 65s PWLD - KD,Residential Homes,Church House,5668, 01-Nov-2011
705,Revenue,CCHD,Under 65s PWLD - KD,Residential Homes,Church House,5868.79, 29-Nov-2011
706,Revenue,CCHD,Under 65s PWLD - KH,Nursing Homes,Churchill House,19009.76, 29-Nov-2011
707,Revenue,CCHD,Under 65s PWLD - PS,Residential Homes,Churchill House,24805.2, 29-Nov-2011
708,Revenue,CCHD,Day Care - South,Private & Voluntary Day Care,Cleeve Lodge,585, 22-Nov-2011
709,Revenue,CCHD,Elderly Purchasing - North,Residential Homes,Cleeve Lodge,1596.44, 01-Nov-2011
710,Revenue,CCHD,Elderly Purchasing - North,Residential Homes,Cleeve Lodge,1596.44, 29-Nov-2011
711,Revenue,CCHD,Southmead Hospital Purchasing,Residential Homes,Cleeve Lodge,1065.6, 01-Nov-2011
712,Revenue,CCHD,Southmead Hospital Purchasing,Residential Homes,Cleeve Lodge,1065.6, 29-Nov-2011
713,Revenue,CCHD,Southmead Hospital Purchasing,Residential Homes,Cleeve Lodge,1406.2, 01-Nov-2011
714,Revenue,CCHD,Southmead Hospital Purchasing,Residential Homes,Cleeve Lodge,1406.2, 29-Nov-2011
715,Revenue,CCHD,Elderly Purchasing - North,Residential Homes,Cleeve Lodge,1228.98, 01-Nov-2011
716,Revenue,CCHD,Southmead Hospital Purchasing,Residential Homes,Cleeve Lodge,1591.07, 01-Nov-2011
717,Revenue,CCHD,Elderly Purchasing - North,Residential Homes,Cleeve Lodge,1639.24, 01-Nov-2011
718,Revenue,CCHD,Elderly Purchasing - North,Residential Homes,Cleeve Lodge,1639.24, 29-Nov-2011
719,Revenue,CCHD,Elderly Purchasing - North,Residential Homes,Cleeve Lodge,1497.16, 01-Nov-2011
720,Revenue,CCHD,Elderly Purchasing - North,Residential Homes,Cleeve Lodge,1497.16, 29-Nov-2011
721,Revenue,CCHD,Frenchay Hospital Purchasing,Residential Homes,Cleeve Lodge,1831.76, 01-Nov-2011
722,Revenue,CCHD,Elderly Purchasing - South,Residential Homes,Cleeve Lodge,1272.24, 01-Nov-2011
723,Revenue,CCHD,Elderly Purchasing - South,Residential Homes,Cleeve Lodge,1272.24, 29-Nov-2011
724,Revenue,CCHD,Frenchay Hospital Purchasing,Residential Homes,Cleeve Lodge,1711.82, 01-Nov-2011
725,Revenue,CCHD,Elderly Purchasing - North,Residential Homes,Cleeve Lodge,792.5, 01-Nov-2011
726,Revenue,CCHD,Elderly Purchasing - North,Residential Homes,Cleeve Lodge,1474.32, 01-Nov-2011
727,Revenue,CCHD,Elderly Purchasing - North,Residential Homes,Cleeve Lodge,1474.32, 29-Nov-2011
728,Revenue,CCHD,Elderly Purchasing - North,Residential Homes,Cleeve Lodge,1647.6, 01-Nov-2011
729,Revenue,CCHD,Elderly Purchasing - North,Residential Homes,Cleeve Lodge,1647.6, 29-Nov-2011
730,Revenue,CCHD,Elderly Purchasing - South,Residential Homes,Cleeve Lodge,1439.52, 01-Nov-2011
731,Revenue,CCHD,Elderly Purchasing - South,Residential Homes,Cleeve Lodge,1439.52, 29-Nov-2011
732,Revenue,CCHD,Elderly Purchasing - South,Residential Homes,Cleeve Lodge,2200, 01-Nov-2011
733,Revenue,CCHD,Elderly Purchasing - South,Residential Homes,Cleeve Lodge,2200, 29-Nov-2011
734,Revenue,CCHD,Southmead Hospital Purchasing,Residential Homes,Cleeve Lodge,954.63, 01-Nov-2011
735,Revenue,CCHD,Elderly Purchasing - North,Residential Homes,Cleeve Lodge,1752.2, 01-Nov-2011
736,Revenue,CCHD,Elderly Purchasing - North,Residential Homes,Cleeve Lodge,1752.2, 29-Nov-2011
737,Revenue,CCHD,Southmead Hospital Purchasing,Residential Homes,Cleeve Lodge,1419.76, 01-Nov-2011
738,Revenue,CCHD,Southmead Hospital Purchasing,Residential Homes,Cleeve Lodge,1419.76, 29-Nov-2011
739,Revenue,CCHD,Southmead Hospital Purchasing,Residential Homes,Clifftop Care Home,1175.72, 01-Nov-2011
740,Revenue,CCHD,Southmead Hospital Purchasing,Residential Homes,Clifftop Care Home,1175.72, 29-Nov-2011
741,Revenue,CCHD,Frenchay Hospital Purchasing,Residential Homes,Collingwood Residential Home,1035.92, 01-Nov-2011
742,Revenue,CCHD,Frenchay Hospital Purchasing,Residential Homes,Collingwood Residential Home,1035.92, 29-Nov-2011
743,Revenue,CCHD,Elderly Purchasing - South,Residential Homes,Collingwood Residential Home,4232.62, 01-Nov-2011
744,Revenue,CCHD,Elderly Purchasing - South,Residential Homes,Collingwood Residential Home,1173.4, 01-Nov-2011
745,Revenue,CCHD,Elderly Purchasing - South,Residential Homes,Collingwood Residential Home,1253.4, 29-Nov-2011
746,Revenue,CCHD,Elderly Purchasing - South,Residential Homes,Collingwood Residential Home,1472.31, 01-Nov-2011
747,Revenue,CCHD,Elderly Purchasing - South,Residential Homes,Collingwood Residential Home,1342.78, 01-Nov-2011
748,Revenue,CCHD,Elderly Purchasing - South,Residential Homes,Collingwood Residential Home,859.12, 29-Nov-2011
749,Revenue,CCHD,Elderly Purchasing - South,Residential Homes,Collingwood Residential Home,1066.44, 01-Nov-2011
750,Revenue,CCHD,Elderly Purchasing - South,Residential Homes,Collingwood Residential Home,1066.44, 29-Nov-2011
751,Revenue,CCHD,Elderly Purchasing - South,Residential Homes,Collingwood Residential Home,1297.84, 01-Nov-2011
752,Revenue,CCHD,Elderly Purchasing - South,Residential Homes,Collingwood Residential Home,1297.84, 29-Nov-2011
753,Revenue,CCHD,Frenchay Hospital Purchasing,Residential Homes,Collingwood Residential Home,954.59, 01-Nov-2011
754,Revenue,CCHD,Frenchay Hospital Purchasing,Residential Homes,Collingwood Residential Home,1214.6, 01-Nov-2011
755,Revenue,CCHD,Frenchay Hospital Purchasing,Residential Homes,Collingwood Residential Home,1214.6, 29-Nov-2011
756,Revenue,CCHD,Elderly Mental Health,Residential Homes,Collingwood Residential Home,1286.88, 01-Nov-2011
757,Revenue,CCHD,Elderly Mental Health,Residential Homes,Collingwood Residential Home,1286.88, 29-Nov-2011
758,Revenue,CCHD,Elderly Purchasing - South,Residential Homes,Collingwood Residential Home,1231, 01-Nov-2011
759,Revenue,CCHD,Elderly Purchasing - South,Residential Homes,Collingwood Residential Home,1231, 29-Nov-2011
760,Revenue,CCHD,Elderly Purchasing - North,Residential Homes,Collingwood Residential Home,1110, 01-Nov-2011
761,Revenue,CCHD,Elderly Purchasing - North,Residential Homes,Collingwood Residential Home,1110, 29-Nov-2011
762,Revenue,CCHD,Elderly Purchasing - South,Residential Homes,Collingwood Residential Home,1176.32, 01-Nov-2011
763,Revenue,CCHD,Elderly Purchasing - South,Residential Homes,Collingwood Residential Home,1176.32, 29-Nov-2011
764,Revenue,CCHD,Elderly Purchasing - South,Residential Homes,Collingwood Residential Home,1363.88, 01-Nov-2011
765,Revenue,CCHD,Elderly Purchasing - South,Residential Homes,Collingwood Residential Home,1363.88, 29-Nov-2011
766,Revenue,CCHD,S28A - Under 65,Residential Homes,Compass Care,9441.64, 01-Nov-2011
767,Revenue,CCHD,S28A - Under 65,Residential Homes,Compass Care,9441.64, 29-Nov-2011
768,Revenue,CCHD,Woodleaze,Prop.Serv. General Repairs,Complete Fire Protection Limited,5890, 18-Nov-2011
769,Revenue,CCHD,Bed and Breakfast,Bed & Breakfast,Connolly & Callaghan Limited,476, 16-Nov-2011
770,Revenue,CCHD,Bed and Breakfast,Bed & Breakfast,Connolly & Callaghan Limited,511, 11-Nov-2011
771,Revenue,CCHD,Bed and Breakfast,Bed & Breakfast,Connolly & Callaghan Limited,441, 10-Nov-2011
772,Revenue,CCHD,Bed and Breakfast,Bed & Breakfast,Connolly & Callaghan Limited,581, 10-Nov-2011
773,Revenue,CCHD,Bed and Breakfast,Bed & Breakfast,Connolly & Callaghan Limited,511, 16-Nov-2011
774,Revenue,CCHD,Bed and Breakfast,Bed & Breakfast,Connolly & Callaghan Limited,476, 16-Nov-2011
775,Revenue,CCHD,Bed and Breakfast,Bed & Breakfast,Connolly & Callaghan Limited,511, 16-Nov-2011
776,Revenue,CCHD,Bed and Breakfast,Bed & Breakfast,Connolly & Callaghan Limited,441, 16-Nov-2011
777,Revenue,CCHD,Bed and Breakfast,Bed & Breakfast,Connolly & Callaghan Limited,581, 30-Nov-2011
778,Revenue,CCHD,Bed and Breakfast,Bed & Breakfast,Connolly & Callaghan Limited,511, 21-Nov-2011
779,Revenue,CCHD,Bed and Breakfast,Bed & Breakfast,Connolly & Callaghan Limited,476, 21-Nov-2011
780,Revenue,CCHD,Bed and Breakfast,Bed & Breakfast,Connolly & Callaghan Limited,581, 21-Nov-2011
781,Revenue,CCHD,Under 65s PWLD - KD,Residential Homes,Consensus Support Services Ltd,8938, 16-Nov-2011
782,Revenue,CCHD,Frenchay Hospital Purchasing,Nursing Homes,Corbie Steps,1422.68, 01-Nov-2011
783,Revenue,CCHD,Elderly Purchasing - South,Nursing Homes,Corbie Steps,2265.36, 01-Nov-2011
784,Revenue,CCHD,Southmead Hospital Purchasing,Nursing Homes,Corbie Steps,2570, 01-Nov-2011
785,Revenue,CCHD,South Glos Users in B&NES Homes,Nursing Homes,Corbie Steps,869.6, 01-Nov-2011
786,Revenue,CCHD,Woodleaze,Furniture & Fittings Loose,Countrywide Healthcare Supplies Ltd,1459.1, 29-Nov-2011
787,Revenue,CCHD,Research & Conferences,Consultation Expenses,CPEA Ltd,9022.48, 18-Nov-2011
788,Revenue,CCHD,Detained,Nursing Homes,Craegmoor Tyn y Coed Priory,13135.8, 11-Nov-2011
789,Revenue,CCHD,S28A - Under 65,Residential Homes,Cream Ii Ltd,15451.36, 29-Nov-2011
790,Revenue,CCHD,S28A - Under 65,Residential Homes,Creedy Court,8934.84, 01-Nov-2011
791,Revenue,CCHD,S28A - Under 65,Residential Homes,Creedy Court,8934.84, 29-Nov-2011
792,Revenue,CCHD,S28A - Over 65,Residential Homes,Creedy Court,7434.12, 01-Nov-2011
793,Revenue,CCHD,S28A - Over 65,Residential Homes,Creedy Court,7434.12, 29-Nov-2011
794,Revenue,CCHD,Tenancy Start Up Scheme,Other Supplies & Services,Individual,625, 18-Nov-2011
795,Revenue,CCHD,Brokerage and Information Service,Grants to Voluntary Bodies,D H I,9738.71, 25-Nov-2011
796,Revenue,CCHD,Under 65s PWLD - PS,Residential Homes,Daneswood,10588.2, 01-Nov-2011
797,Revenue,CCHD,Under 65s PWLD - PS,Residential Homes,Daneswood,10588.2, 29-Nov-2011
798,Revenue,CCHD,Under 65s PWLD - KD,Residential Homes,Daneswood,8756, 01-Nov-2011
799,Revenue,CCHD,Under 65s PWLD - KD,Residential Homes,Daneswood,8756, 29-Nov-2011
800,Revenue,CCHD,Learning Difficulties PSL,Rent,Individual,1800, 22-Nov-2011
801,Revenue,CCHD,Day Care - North,Private & Voluntary Day Care,Deafblind UK,1121.12, 15-Nov-2011
802,Revenue,CCHD,Day Care - South,Private & Voluntary Day Care,Deafblind UK,988.17, 21-Nov-2011
803,Revenue,CCHD,Day Care - South,Private & Voluntary Day Care,Deafblind UK,1840, 21-Nov-2011
804,Revenue,CCHD,Day Care - North,Private & Voluntary Day Care,Deafblind UK,1151.15, 29-Nov-2011
805,Revenue,CCHD,Purchase of Non-Res Care - KD,Private & Voluntary Day Care,Design 4 Life Ltd,1368, 21-Nov-2011
806,Revenue,CCHD,Purchase of Non-Res Care - KD,Private & Voluntary Day Care,Design 4 Life Ltd,1482, 21-Nov-2011
807,Revenue,CCHD,Day Care - South,Private & Voluntary Day Care,Dhek Bhal,919.16, 08-Nov-2011
808,Revenue,CCHD,Day Care - South,Private & Voluntary Day Care,Dhek Bhal,919.16, 08-Nov-2011
809,Revenue,CCHD,Day Care - South,Private & Voluntary Day Care,Dhek Bhal,898.27, 08-Nov-2011
810,Revenue,CCHD,Supported Living - PS,Private & Voluntary Home Care,Dimensions (UK) Ltd,8006.68, 02-Nov-2011
811,Revenue,CCHD,Supported Living - PS,Private & Voluntary Home Care,Dimensions (UK) Ltd,7748.4, 02-Nov-2011
812,Revenue,CCHD,Under 65s PWLD - KH,Residential Homes,Dimensions(Uk) Ltd,4696, 01-Nov-2011
813,Revenue,CCHD,Under 65s PWLD - KH,Residential Homes,Dimensions(Uk) Ltd,4696, 29-Nov-2011
814,Revenue,CCHD,Under 65s PWLD - PS,Residential Homes,Dimensions(Uk) Ltd,1708.92, 01-Nov-2011
815,Revenue,CCHD,Under 65s PWLD - PS,Residential Homes,Dimensions(Uk) Ltd,1708.92, 29-Nov-2011
816,Revenue,CCHD,Training - Adult Services,Training Expenses,Do The Right Thing Ltd,466.67, 24-Nov-2011
817,Revenue,CCHD,Care Management Team - North,Preventative Assistance,Dobbins Industrial Cleaning Limited,497.55, 14-Nov-2011
818,Revenue,CCHD,Home Care Purch South,Other Small Contracts,DoCare Ltd,1506.6, 14-Nov-2011
819,Revenue,CCHD,Home Care Purch North,Other Small Contracts,DoCare Ltd,3654.9, 14-Nov-2011
820,Revenue,CCHD,Day Care - South,Private & Voluntary Day Care,DoCare Ltd,269.7, 14-Nov-2011
821,Revenue,CCHD,Day Care - North,Private & Voluntary Day Care,DoCare Ltd,302.25, 14-Nov-2011
822,Revenue,CCHD,Elderly MH Home Care,Other Small Contracts,DoCare Ltd,176.7, 14-Nov-2011
823,Revenue,CCHD,Elderly MH non-res purchasing,Private & Voluntary Day Care,DoCare Ltd,55.8, 14-Nov-2011
824,Revenue,CCHD,Home Care Purch South,Other Small Contracts,DoCare Ltd,1576.35, 14-Nov-2011
825,Revenue,CCHD,Home Care Purch North,Other Small Contracts,DoCare Ltd,3673.5, 14-Nov-2011
826,Revenue,CCHD,Day Care - South,Private & Voluntary Day Care,DoCare Ltd,269.7, 14-Nov-2011
827,Revenue,CCHD,Day Care - North,Private & Voluntary Day Care,DoCare Ltd,292.95, 14-Nov-2011
828,Revenue,CCHD,Elderly MH Home Care,Other Small Contracts,DoCare Ltd,186, 14-Nov-2011
829,Revenue,CCHD,Elderly MH non-res purchasing,Private & Voluntary Day Care,DoCare Ltd,55.8, 14-Nov-2011
830,Revenue,CCHD,Elderly Purchasing - North,Residential Homes,Drakes Court,2979.56, 01-Nov-2011
831,Revenue,CCHD,Elderly Purchasing - North,Residential Homes,Drakes Court,2979.56, 29-Nov-2011
832,Revenue,CCHD,Elderly PWLD - PS,Residential Homes,Drakes Court,2527.88, 01-Nov-2011
833,Revenue,CCHD,Elderly PWLD - PS,Residential Homes,Drakes Court,2527.88, 29-Nov-2011
834,Revenue,CCHD,S28A - Over 65,Residential Homes,Drakes Court,3074.48, 01-Nov-2011
835,Revenue,CCHD,S28A - Over 65,Residential Homes,Drakes Court,3074.48, 29-Nov-2011
836,Revenue,CCHD,S28A - Over 65,Residential Homes,Drakes Court,3024.76, 01-Nov-2011
837,Revenue,CCHD,S28A - Over 65,Residential Homes,Drakes Court,3024.76, 29-Nov-2011
838,Revenue,CCHD,Elderly Purchasing - South,Nursing Homes,Dunkirk Memorial House,1163.84, 01-Nov-2011
839,Revenue,CCHD,Elderly Purchasing - South,Nursing Homes,Dunkirk Memorial House,1163.84, 29-Nov-2011
840,Revenue,CCHD,MH Purchasing - Younger,Residential Homes,Dunraven House,1791.6, 01-Nov-2011
841,Revenue,CCHD,MH Purchasing - Younger,Residential Homes,Dunraven House,1791.6, 29-Nov-2011
842,Revenue,CCHD,Bed and Breakfast,Bed & Breakfast,E J Bartlett,455, 02-Nov-2011
843,Revenue,CCHD,Bed and Breakfast,Bed & Breakfast,E J Bartlett,546, 02-Nov-2011
844,Revenue,CCHD,Bed and Breakfast,Bed & Breakfast,E J Bartlett,546, 02-Nov-2011
845,Revenue,CCHD,Bed and Breakfast,Bed & Breakfast,E J Bartlett,455, 07-Nov-2011
846,Revenue,CCHD,Bed and Breakfast,Bed & Breakfast,E J Bartlett,546, 07-Nov-2011
847,Revenue,CCHD,Bed and Breakfast,Bed & Breakfast,E J Bartlett,546, 07-Nov-2011
848,Revenue,CCHD,Bed and Breakfast,Bed & Breakfast,E J Bartlett,455, 10-Nov-2011
849,Revenue,CCHD,Bed and Breakfast,Bed & Breakfast,E J Bartlett,546, 10-Nov-2011
850,Revenue,CCHD,Bed and Breakfast,Bed & Breakfast,E J Bartlett,546, 10-Nov-2011
851,Revenue,CCHD,Bed and Breakfast,Bed & Breakfast,E J Bartlett,546, 11-Nov-2011
852,Revenue,CCHD,Bed and Breakfast,Bed & Breakfast,E J Bartlett,455, 18-Nov-2011
853,Revenue,CCHD,Bed and Breakfast,Bed & Breakfast,E J Bartlett,546, 18-Nov-2011
854,Revenue,CCHD,Bed and Breakfast,Bed & Breakfast,E J Bartlett,832, 18-Nov-2011
855,Revenue,CCHD,Bed and Breakfast,Bed & Breakfast,E J Bartlett,546, 18-Nov-2011
856,Revenue,CCHD,Bed and Breakfast,Bed & Breakfast,E J Bartlett,546, 18-Nov-2011
857,Revenue,CCHD,Bed and Breakfast,Bed & Breakfast,E J Bartlett,455, 29-Nov-2011
858,Revenue,CCHD,Bed and Breakfast,Bed & Breakfast,E J Bartlett,546, 29-Nov-2011
859,Revenue,CCHD,Bed and Breakfast,Bed & Breakfast,E J Bartlett,728, 29-Nov-2011
860,Revenue,CCHD,Bed and Breakfast,Bed & Breakfast,E J Bartlett,546, 29-Nov-2011
861,Revenue,CCHD,Bed and Breakfast,Bed & Breakfast,E J Bartlett,546, 29-Nov-2011
862,Revenue,CCHD,Under 65s PWLD - KH,Residential Homes,East Court,2136.36, 01-Nov-2011
863,Revenue,CCHD,Under 65s PWLD - KH,Residential Homes,East Court,2136.36, 29-Nov-2011
864,Revenue,CCHD,Elderly Mental Health,Residential Homes,Eastfield House,1265.36, 04-Nov-2011
865,Revenue,CCHD,Charlton,Electricity,EDF Energy 1 Limited,1147.14, 09-Nov-2011
866,Revenue,CCHD,Kerr House,Electricity,EDF Energy 1 Limited,835.51, 09-Nov-2011
867,Revenue,CCHD,Woodleaze,Electricity,EDF Energy 1 Limited,1019.03, 09-Nov-2011
868,Revenue,CCHD,Newton House,Electricity,EDF Energy 1 Limited,707.18, 09-Nov-2011
869,Revenue,CCHD,Alexandra Way,Electricity,EDF Energy 1 Limited,1208.67, 09-Nov-2011
870,Revenue,CCHD,Section 117 Placements,Residential Homes,Edgecumbe Lodge,1879.56, 01-Nov-2011
871,Revenue,CCHD,Section 117 Placements,Residential Homes,Edgecumbe Lodge,1879.56, 29-Nov-2011
872,Revenue,CCHD,Frenchay Hospital Purchasing,Residential Homes,Edgecumbe Lodge,1170, 01-Nov-2011
873,Revenue,CCHD,Frenchay Hospital Purchasing,Residential Homes,Edgecumbe Lodge,1170, 29-Nov-2011
874,Revenue,CCHD,Elderly Purchasing - South,Residential Homes,Edgecumbe Lodge,1216.68, 01-Nov-2011
875,Revenue,CCHD,Elderly Purchasing - South,Residential Homes,Edgecumbe Lodge,1216.68, 29-Nov-2011
876,Revenue,CCHD,Frenchay Hospital Purchasing,Residential Homes,Edgecumbe Lodge,1100.32, 01-Nov-2011
877,Revenue,CCHD,Frenchay Hospital Purchasing,Residential Homes,Edgecumbe Lodge,1100.32, 29-Nov-2011
878,Revenue,CCHD,Frenchay Hospital Purchasing,Residential Homes,Edgecumbe Lodge,1062.8, 01-Nov-2011
879,Revenue,CCHD,Frenchay Hospital Purchasing,Residential Homes,Edgecumbe Lodge,1062.8, 29-Nov-2011
880,Revenue,CCHD,Elderly Mental Health,Residential Homes,Edgecumbe Lodge,1146.36, 01-Nov-2011
881,Revenue,CCHD,Elderly Mental Health,Residential Homes,Edgecumbe Lodge,1146.36, 29-Nov-2011
882,Revenue,CCHD,Elderly Mental Health,Residential Homes,Edgecumbe Lodge,1350.6, 01-Nov-2011
883,Revenue,CCHD,Elderly Mental Health,Residential Homes,Edgecumbe Lodge,1350.6, 29-Nov-2011
884,Revenue,CCHD,Frenchay Hospital Purchasing,Residential Homes,Edgemont House Ltd,1187.84, 01-Nov-2011
885,Revenue,CCHD,Frenchay Hospital Purchasing,Residential Homes,Edgemont House Ltd,1187.84, 29-Nov-2011
886,Revenue,CCHD,Elderly PWLD - PS,Residential Homes,Edgemont House Ltd,1299.16, 01-Nov-2011
887,Revenue,CCHD,Elderly PWLD - PS,Residential Homes,Edgemont House Ltd,1299.16, 29-Nov-2011
888,Revenue,CCHD,Frenchay Hospital Purchasing,Residential Homes,Edgemont House Ltd,1240.12, 01-Nov-2011
889,Revenue,CCHD,Frenchay Hospital Purchasing,Residential Homes,Edgemont House Ltd,1240.12, 29-Nov-2011
890,Revenue,CCHD,Elderly Purchasing - South,Residential Homes,Edgemont House Ltd,1122.4, 01-Nov-2011
891,Revenue,CCHD,Elderly Purchasing - South,Residential Homes,Edgemont House Ltd,1122.4, 29-Nov-2011
892,Revenue,CCHD,Elderly Purchasing - South,Residential Homes,Edgemont House Ltd,1262.6, 01-Nov-2011
893,Revenue,CCHD,Elderly Purchasing - South,Residential Homes,Edgemont House Ltd,967.64, 01-Nov-2011
894,Revenue,CCHD,Elderly Purchasing - South,Residential Homes,Edgemont House Ltd,967.64, 29-Nov-2011
895,Revenue,CCHD,Elderly Purchasing - South,Nursing Homes,Edgemont View Nursing Home,1405, 01-Nov-2011
896,Revenue,CCHD,Elderly Purchasing - South,Nursing Homes,Edgemont View Nursing Home,1405, 29-Nov-2011
897,Revenue,CCHD,Frenchay Hospital Purchasing,Nursing Homes,Edgemont View Nursing Home,1335.8, 01-Nov-2011
898,Revenue,CCHD,Frenchay Hospital Purchasing,Nursing Homes,Edgemont View Nursing Home,1335.8, 29-Nov-2011
899,Revenue,CCHD,Elderly Purchasing - North,Nursing Homes,Edgemont View Nursing Home,1440.84, 01-Nov-2011
900,Revenue,CCHD,Elderly Purchasing - North,Nursing Homes,Edgemont View Nursing Home,1440.84, 29-Nov-2011
901,Revenue,CCHD,Elderly Purchasing - South,Nursing Homes,Edgemont View Nursing Home,1247.8, 01-Nov-2011
902,Revenue,CCHD,Elderly Purchasing - South,Nursing Homes,Edgemont View Nursing Home,1247.8, 29-Nov-2011
903,Revenue,CCHD,Elderly Purchasing - South,Nursing Homes,Edgemont View Nursing Home,1586.2, 01-Nov-2011
904,Revenue,CCHD,Elderly Purchasing - South,Nursing Homes,Edgemont View Nursing Home,1586.2, 29-Nov-2011
905,Revenue,CCHD,South Glos Users in South Glos Homes,Nursing Homes,Edgemont View Nursing Home,1614.97, 01-Nov-2011
906,Revenue,CCHD,Frenchay Hospital Purchasing,Nursing Homes,Edgemont View Nursing Home,636.04, 01-Nov-2011
907,Revenue,CCHD,Frenchay Hospital Purchasing,Nursing Homes,Edgemont View Nursing Home,636.04, 29-Nov-2011
908,Revenue,CCHD,Frenchay Hospital Purchasing,Nursing Homes,Edgemont View Nursing Home,1253.16, 01-Nov-2011
909,Revenue,CCHD,Frenchay Hospital Purchasing,Nursing Homes,Edgemont View Nursing Home,1253.16, 29-Nov-2011
910,Revenue,CCHD,Supporting People Programme,Grants to Voluntary Bodies,Elim Housing Association Ltd,4434.56, 21-Nov-2011
911,Revenue,CCHD,Elderly Purchasing - South,Residential Homes,Elmbridge Residential Home Ltd,1294.4, 01-Nov-2011
912,Revenue,CCHD,Elderly Purchasing - South,Residential Homes,Elmbridge Residential Home Ltd,1294.4, 29-Nov-2011
913,Revenue,CCHD,Frenchay Hospital Purchasing,Nursing Homes,Elmwood Nursing Home,2162.96, 01-Nov-2011
914,Revenue,CCHD,Frenchay Hospital Purchasing,Nursing Homes,Elmwood Nursing Home,2162.96, 29-Nov-2011
915,Revenue,CCHD,Tenancy Start Up Scheme,Other Supplies & Services,Individual,575, 28-Nov-2011
916,Revenue,CCHD,Younger MH non-res purchasing,Private & Voluntary Day Care,Enham,638.72, 18-Nov-2011
917,Revenue,CCHD,Elderly Mental Health,Residential Homes,Exmouth House,1305.6, 01-Nov-2011
918,Revenue,CCHD,Elderly Mental Health,Residential Homes,Exmouth House,1305.6, 29-Nov-2011
919,Revenue,CCHD,Southmead Hospital Purchasing,Residential Homes,Fairview Court,1661.48, 01-Nov-2011
920,Revenue,CCHD,Southmead Hospital Purchasing,Residential Homes,Fairview Court,1661.48, 29-Nov-2011
921,Revenue,CCHD,Elderly Mental Health,Nursing Homes,Fairview Court,983.52, 01-Nov-2011
922,Revenue,CCHD,Elderly Mental Health,Nursing Homes,Fairview Court,983.52, 29-Nov-2011
923,Revenue,CCHD,South Glos Users in South Glos Homes,Nursing Homes,Fairview Court,916.19, 01-Nov-2011
924,Revenue,CCHD,Elderly Mental Health,Residential Homes,Fairview Court,1389, 01-Nov-2011
925,Revenue,CCHD,Elderly Mental Health,Residential Homes,Fairview Court,1389, 29-Nov-2011
926,Revenue,CCHD,Frenchay Hospital Purchasing,Residential Homes,Fairview Court,1507.64, 01-Nov-2011
927,Revenue,CCHD,Frenchay Hospital Purchasing,Residential Homes,Fairview Court,1507.64, 29-Nov-2011
928,Revenue,CCHD,Elderly Mental Health,Residential Homes,Fairview Court,1611.36, 01-Nov-2011
929,Revenue,CCHD,Elderly Mental Health,Residential Homes,Fairview Court,1611.36, 29-Nov-2011
930,Revenue,CCHD,Frenchay Hospital Purchasing,Nursing Homes,Fairview Court,878.32, 01-Nov-2011
931,Revenue,CCHD,Frenchay Hospital Purchasing,Nursing Homes,Fairview Court,878.32, 29-Nov-2011
932,Revenue,CCHD,Elderly Purchasing - South,Residential Homes,Fairview Court,2093, 01-Nov-2011
933,Revenue,CCHD,Elderly Purchasing - South,Residential Homes,Fairview Court,2093, 29-Nov-2011
934,Revenue,CCHD,South Glos Users in South Glos Homes,Nursing Homes,Fairview Court,5217.6, 01-Nov-2011
935,Revenue,CCHD,Southmead Hospital Purchasing,Nursing Homes,Fairview Court Care Home,1629.36, 16-Nov-2011
936,Revenue,CCHD,South Glos Users in South Glos Homes,Nursing Homes,Fairview Court Care Home,2795.14, 16-Nov-2011
937,Revenue,CCHD,Purchasing Phys Dis - North,Nursing Homes,Fairview Court Care Home,1949.28, 16-Nov-2011
938,Revenue,CCHD,Elderly Mental Health,Nursing Homes,Fairview Court Care Home,6507.23, 16-Nov-2011
939,Revenue,CCHD,Section 117 Placements,Nursing Homes,Fairview Court Care Home,2507.91, 16-Nov-2011
940,Revenue,CCHD,Elderly Purchasing - South,Residential Homes,Fairview House,637.28, 01-Nov-2011
941,Revenue,CCHD,Elderly Purchasing - South,Residential Homes,Fairview House,637.28, 29-Nov-2011
942,Revenue,CCHD,Frenchay Hospital Purchasing,Residential Homes,Fairview House,873.4, 01-Nov-2011
943,Revenue,CCHD,South Glos Users in B&NES Homes,Nursing Homes,Fairview House,9566.6, 29-Nov-2011
944,Revenue,CCHD,Frenchay Hospital Purchasing,Residential Homes,Fairview House,1234.4, 29-Nov-2011
945,Revenue,CCHD,Frenchay Hospital Purchasing,Residential Homes,Fairview House,1105, 01-Nov-2011
946,Revenue,CCHD,Frenchay Hospital Purchasing,Residential Homes,Fairview House,828.75, 01-Nov-2011
947,Revenue,CCHD,Frenchay Hospital Purchasing,Residential Homes,Fairview House,1105, 29-Nov-2011
948,Revenue,CCHD,Frenchay Hospital Purchasing,Residential Homes,Fairview House,1005.24, 01-Nov-2011
949,Revenue,CCHD,Frenchay Hospital Purchasing,Residential Homes,Fairview House,1005.24, 29-Nov-2011
950,Revenue,CCHD,Section 117 Placements,Residential Homes,Fairview House,1840, 01-Nov-2011
951,Revenue,CCHD,Section 117 Placements,Residential Homes,Fairview House,1840, 29-Nov-2011
952,Revenue,CCHD,Southmead Hospital Purchasing,Residential Homes,Fairview House,2019.07, 01-Nov-2011
953,Revenue,CCHD,Southmead Hospital Purchasing,Residential Homes,Fairview House,1492.35, 29-Nov-2011
954,Revenue,CCHD,Southmead Hospital Purchasing,Residential Homes,Fairview House,1229, 29-Nov-2011
955,Revenue,CCHD,Southmead Hospital Purchasing,Residential Homes,Fairview House,1101.04, 01-Nov-2011
956,Revenue,CCHD,Southmead Hospital Purchasing,Residential Homes,Fairview House,1101.04, 29-Nov-2011
957,Revenue,CCHD,Elderly Mental Health,Residential Homes,Fairview House,1084.72, 01-Nov-2011
958,Revenue,CCHD,Elderly Mental Health,Residential Homes,Fairview House,1084.72, 29-Nov-2011
959,Revenue,CCHD,Frenchay Hospital Purchasing,Residential Homes,Fairview House,1229, 01-Nov-2011
960,Revenue,CCHD,Frenchay Hospital Purchasing,Residential Homes,Fairview House,1229, 29-Nov-2011
961,Revenue,CCHD,Southmead Hospital Purchasing,Residential Homes,Fairview House,588.92, 01-Nov-2011
962,Revenue,CCHD,Southmead Hospital Purchasing,Residential Homes,Fairview House,588.92, 29-Nov-2011
963,Revenue,CCHD,Elderly Mental Health,Residential Homes,Fairview House,1049.28, 01-Nov-2011
964,Revenue,CCHD,Elderly Mental Health,Residential Homes,Fairview House,1049.28, 29-Nov-2011
965,Revenue,CCHD,Elderly Mental Health,Residential Homes,Fairview House,1163.88, 01-Nov-2011
966,Revenue,CCHD,Elderly Mental Health,Residential Homes,Fairview House,1163.88, 29-Nov-2011
967,Revenue,CCHD,Frenchay Hospital Purchasing,Residential Homes,Fairview House,1269.32, 01-Nov-2011
968,Revenue,CCHD,Frenchay Hospital Purchasing,Residential Homes,Fairview House,1269.32, 29-Nov-2011
969,Revenue,CCHD,Elderly Mental Health,Residential Homes,Fairview House,1061.72, 01-Nov-2011
970,Revenue,CCHD,Elderly Mental Health,Residential Homes,Fairview House,1061.72, 29-Nov-2011
971,Revenue,CCHD,Elderly Purchasing - North,Residential Homes,Faith House,892.2, 01-Nov-2011
972,Revenue,CCHD,Elderly Purchasing - North,Residential Homes,Faith House,892.2, 29-Nov-2011
973,Revenue,CCHD,Frenchay Hospital Purchasing,Residential Homes,Faith House,1284.48, 01-Nov-2011
974,Revenue,CCHD,Frenchay Hospital Purchasing,Residential Homes,Faith House,1284.48, 29-Nov-2011
975,Revenue,CCHD,Elderly Purchasing - North,Residential Homes,Faith House,1110.8, 01-Nov-2011
976,Revenue,CCHD,Elderly Purchasing - North,Residential Homes,Faith House,1110.8, 29-Nov-2011
977,Revenue,CCHD,Under 65s PWLD - KD,Residential Homes,Fernbank,8350.56, 01-Nov-2011
978,Revenue,CCHD,Under 65s PWLD - KD,Residential Homes,Fernbank,8350.56, 29-Nov-2011
979,Revenue,CCHD,Purchasing Phys Dis - North,Nursing Homes,Field House Care Home,1385.1, 01-Nov-2011
980,Revenue,CCHD,Southmead Hospital Purchasing,Residential Homes,Four Seasons Health Care,1136.2, 01-Nov-2011
981,Revenue,CCHD,Southmead Hospital Purchasing,Residential Homes,Four Seasons Health Care,1136.2, 29-Nov-2011
982,Revenue,CCHD,Frenchay Hospital Purchasing,Residential Homes,Four Seasons Health Care,907.04, 01-Nov-2011
983,Revenue,CCHD,Frenchay Hospital Purchasing,Residential Homes,Four Seasons Health Care,907.04, 29-Nov-2011
984,Revenue,CCHD,Frenchay Hospital Purchasing,Nursing Homes,Four Seasons Health Care,1349, 01-Nov-2011
985,Revenue,CCHD,South Glos Users in South Glos Homes,Nursing Homes,Four Seasons Health Care,1801.31, 29-Nov-2011
986,Revenue,CCHD,Frenchay Hospital Purchasing,Nursing Homes,Four Seasons Health Care,1349, 29-Nov-2011
987,Revenue,CCHD,Frenchay Hospital Purchasing,Nursing Homes,Four Seasons Health Care,2107.4, 01-Nov-2011
988,Revenue,CCHD,Frenchay Hospital Purchasing,Nursing Homes,Four Seasons Health Care,1513, 01-Nov-2011
989,Revenue,CCHD,Frenchay Hospital Purchasing,Nursing Homes,Four Seasons Health Care,1808, 29-Nov-2011
990,Revenue,CCHD,Frenchay Hospital Purchasing,Nursing Homes,Four Seasons Health Care,705.89, 29-Nov-2011
991,Revenue,CCHD,Southmead Hospital Purchasing,Nursing Homes,Four Seasons Health Care,8142.18, 29-Nov-2011
992,Revenue,CCHD,South Glos Users in South Glos Homes,Nursing Homes,Four Seasons Health Care,2624.33, 29-Nov-2011
993,Revenue,CCHD,Southmead Hospital Purchasing,Nursing Homes,Four Seasons Health Care,1349, 29-Nov-2011
994,Revenue,CCHD,Elderly Purchasing - South,Nursing Homes,Four Seasons Health Care,835.52, 01-Nov-2011
995,Revenue,CCHD,Elderly Purchasing - South,Nursing Homes,Four Seasons Health Care,835.52, 29-Nov-2011
996,Revenue,CCHD,Southmead Hospital Purchasing,Nursing Homes,Four Seasons Health Care,1349, 01-Nov-2011
997,Revenue,CCHD,Southmead Hospital Purchasing,Nursing Homes,Four Seasons Health Care,1349, 29-Nov-2011
998,Revenue,CCHD,Elderly Purchasing - South,Nursing Homes,Four Seasons Health Care,1345.8, 01-Nov-2011
999,Revenue,CCHD,South Glos Users in South Glos Homes,Nursing Homes,Four Seasons Health Care,823.01, 01-Nov-2011
1000,Revenue,CCHD,Elderly Purchasing - South,Nursing Homes,Four Seasons Health Care,1345.8, 29-Nov-2011
1001,Revenue,CCHD,South Glos Users in South Glos Homes,Nursing Homes,Four Seasons Health Care,527.97, 29-Nov-2011
1002,Revenue,CCHD,Cash for Change Discharges,Nursing Homes,Four Seasons Health Care,1349, 01-Nov-2011
1003,Revenue,CCHD,Cash for Change Discharges,Nursing Homes,Four Seasons Health Care,1349, 29-Nov-2011
1004,Revenue,CCHD,Elderly Purchasing - South,Nursing Homes,Four Seasons Health Care,1349, 01-Nov-2011
1005,Revenue,CCHD,Southmead Hospital Purchasing,Nursing Homes,Four Seasons Health Care,5852.85, 29-Nov-2011
1006,Revenue,CCHD,Elderly Purchasing - South,Nursing Homes,Four Seasons Health Care,1205, 29-Nov-2011
1007,Revenue,CCHD,Southmead Hospital Purchasing,Nursing Homes,Four Seasons Health Care,2312.57, 01-Nov-2011
1008,Revenue,CCHD,Southmead Hospital Purchasing,Nursing Homes,Four Seasons Health Care,1349, 01-Nov-2011
1009,Revenue,CCHD,Southmead Hospital Purchasing,Nursing Homes,Four Seasons Health Care,915.4, 01-Nov-2011
1010,Revenue,CCHD,Southmead Hospital Purchasing,Residential Homes,Four Seasons Health Care,3164, 01-Nov-2011
1011,Revenue,CCHD,Southmead Hospital Purchasing,Nursing Homes,Four Seasons Health Care,1349, 29-Nov-2011
1012,Revenue,CCHD,Elderly Purchasing - South,Nursing Homes,Four Seasons Health Care,1245.4, 01-Nov-2011
1013,Revenue,CCHD,Elderly Purchasing - South,Nursing Homes,Four Seasons Health Care,1245.4, 29-Nov-2011
1014,Revenue,CCHD,Southmead Hospital Purchasing,Residential Homes,Four Seasons Health Care,580.48, 01-Nov-2011
1015,Revenue,CCHD,Southmead Hospital Purchasing,Residential Homes,Four Seasons Health Care,580.48, 29-Nov-2011
1016,Revenue,CCHD,Frenchay Hospital Purchasing,Nursing Homes,Four Seasons Health Care,1349, 01-Nov-2011
1017,Revenue,CCHD,Frenchay Hospital Purchasing,Nursing Homes,Four Seasons Health Care,1349, 29-Nov-2011
1018,Revenue,CCHD,Elderly Purchasing - South,Nursing Homes,Four Seasons Health Care,1046.64, 01-Nov-2011
1019,Revenue,CCHD,Elderly Purchasing - South,Nursing Homes,Four Seasons Health Care,1046.64, 29-Nov-2011
1020,Revenue,CCHD,Southmead Hospital Purchasing,Nursing Homes,Four Seasons Health Care,1253.28, 01-Nov-2011
1021,Revenue,CCHD,Southmead Hospital Purchasing,Nursing Homes,Four Seasons Health Care,1253.28, 29-Nov-2011
1022,Revenue,CCHD,Elderly Purchasing - South,Nursing Homes,Four Seasons Health Care,1349, 01-Nov-2011
1023,Revenue,CCHD,Elderly Purchasing - South,Nursing Homes,Four Seasons Health Care,1349, 29-Nov-2011
1024,Revenue,CCHD,Elderly Purchasing - South,Nursing Homes,Four Seasons Health Care,1290.4, 01-Nov-2011
1025,Revenue,CCHD,Elderly Purchasing - South,Nursing Homes,Four Seasons Health Care,1290.4, 29-Nov-2011
1026,Revenue,CCHD,Elderly Mental Health,Nursing Homes,Four Seasons Health Care,1342.84, 01-Nov-2011
1027,Revenue,CCHD,South Glos Users in South Glos Homes,Nursing Homes,Four Seasons Health Care,1397.57, 29-Nov-2011
1028,Revenue,CCHD,Elderly Mental Health,Nursing Homes,Four Seasons Health Care,1342.84, 29-Nov-2011
1029,Revenue,CCHD,Elderly Purchasing - South,Residential Homes,Four Seasons Health Care,948.64, 01-Nov-2011
1030,Revenue,CCHD,Elderly Purchasing - South,Residential Homes,Four Seasons Health Care,948.64, 29-Nov-2011
1031,Revenue,CCHD,Elderly Purchasing - North,Nursing Homes,Four Seasons Health Care,1313, 01-Nov-2011
1032,Revenue,CCHD,Elderly Purchasing - North,Nursing Homes,Four Seasons Health Care,1313, 29-Nov-2011
1033,Revenue,CCHD,Frenchay Hospital Purchasing,Nursing Homes,Four Seasons Health Care,1052.2, 01-Nov-2011
1034,Revenue,CCHD,Frenchay Hospital Purchasing,Nursing Homes,Four Seasons Health Care,1052.2, 29-Nov-2011
1035,Revenue,CCHD,Elderly Mental Health,Residential Homes,Four Seasons Health Care,1056.64, 01-Nov-2011
1036,Revenue,CCHD,Elderly Mental Health,Residential Homes,Four Seasons Health Care,1056.64, 29-Nov-2011
1037,Revenue,CCHD,Frenchay Hospital Purchasing,Nursing Homes,Four Seasons Health Care,1830.78, 01-Nov-2011
1038,Revenue,CCHD,Frenchay Hospital Purchasing,Nursing Homes,Four Seasons Health Care,1349, 01-Nov-2011
1039,Revenue,CCHD,South Glos Users in South Glos Homes,Nursing Homes,Four Seasons Health Care,590.09, 01-Nov-2011
1040,Revenue,CCHD,Frenchay Hospital Purchasing,Nursing Homes,Four Seasons Health Care,1349, 29-Nov-2011
1041,Revenue,CCHD,Frenchay Hospital Purchasing,Residential Homes,Four Seasons Health Care,1063.88, 01-Nov-2011
1042,Revenue,CCHD,Frenchay Hospital Purchasing,Residential Homes,Four Seasons Health Care,1063.88, 29-Nov-2011
1043,Revenue,CCHD,Elderly Purchasing - South,Nursing Homes,Four Seasons Health Care,1349, 01-Nov-2011
1044,Revenue,CCHD,South Glos Users in South Glos Homes,Nursing Homes,Four Seasons Health Care,1164.64, 01-Nov-2011
1045,Revenue,CCHD,Elderly Purchasing - South,Nursing Homes,Four Seasons Health Care,1349, 29-Nov-2011
1046,Revenue,CCHD,Elderly Purchasing - South,Nursing Homes,Four Seasons Health Care,1291.44, 01-Nov-2011
1047,Revenue,CCHD,Elderly Purchasing - South,Nursing Homes,Four Seasons Health Care,1291.44, 29-Nov-2011
1048,Revenue,CCHD,Elderly Mental Health,Nursing Homes,Four Seasons Health Care,1302.2, 01-Nov-2011
1049,Revenue,CCHD,Elderly Mental Health,Nursing Homes,Four Seasons Health Care,1302.2, 29-Nov-2011
1050,Revenue,CCHD,Elderly Purchasing - South,Nursing Homes,Four Seasons Health Care,1341.32, 01-Nov-2011
1051,Revenue,CCHD,Elderly Purchasing - South,Nursing Homes,Four Seasons Health Care,1341.32, 29-Nov-2011
1052,Revenue,CCHD,Frenchay Hospital Purchasing,Nursing Homes,Four Seasons Health Care,1297, 01-Nov-2011
1053,Revenue,CCHD,Frenchay Hospital Purchasing,Nursing Homes,Four Seasons Health Care,1297, 29-Nov-2011
1054,Revenue,CCHD,Elderly Mental Health,Nursing Homes,Four Seasons Health Care,1199.32, 01-Nov-2011
1055,Revenue,CCHD,Elderly Mental Health,Nursing Homes,Four Seasons Health Care,1199.32, 29-Nov-2011
1056,Revenue,CCHD,Southmead Hospital Purchasing,Nursing Homes,Four Seasons Health Care,1007.24, 01-Nov-2011
1057,Revenue,CCHD,Southmead Hospital Purchasing,Nursing Homes,Four Seasons Health Care,1007.24, 29-Nov-2011
1058,Revenue,CCHD,Elderly Purchasing - North,Nursing Homes,Four Seasons Health Care,1000, 01-Nov-2011
1059,Revenue,CCHD,Elderly Purchasing - North,Nursing Homes,Four Seasons Health Care,1000, 29-Nov-2011
1060,Revenue,CCHD,Frenchay Hospital Purchasing,Nursing Homes,Four Seasons Health Care,1517, 01-Nov-2011
1061,Revenue,CCHD,Frenchay Hospital Purchasing,Nursing Homes,Four Seasons Health Care,1517, 29-Nov-2011
1062,Revenue,CCHD,South Glos Users in South Glos Homes,Nursing Homes,Four Seasons Health Care,1521.8, 01-Nov-2011
1063,Revenue,CCHD,Frenchay Hospital Purchasing,Nursing Homes,Four Seasons Health Care,1283.16, 01-Nov-2011
1064,Revenue,CCHD,South Glos Users in South Glos Homes,Nursing Homes,Four Seasons Health Care,1444.16, 29-Nov-2011
1065,Revenue,CCHD,Frenchay Hospital Purchasing,Nursing Homes,Four Seasons Health Care,1283.16, 29-Nov-2011
1066,Revenue,CCHD,Southmead Hospital Purchasing,Nursing Homes,Four Seasons Health Care,1507.68, 01-Nov-2011
1067,Revenue,CCHD,Southmead Hospital Purchasing,Nursing Homes,Four Seasons Health Care,1507.68, 29-Nov-2011
1068,Revenue,CCHD,Southmead Hospital Purchasing,Residential Homes,Four Seasons Health Care,1232, 01-Nov-2011
1069,Revenue,CCHD,Southmead Hospital Purchasing,Residential Homes,Four Seasons Health Care,1232, 29-Nov-2011
1070,Revenue,CCHD,Elderly Mental Health,Nursing Homes,Four Seasons Health Care,1134.44, 01-Nov-2011
1071,Revenue,CCHD,Elderly Mental Health,Nursing Homes,Four Seasons Health Care,1134.44, 29-Nov-2011
1072,Revenue,CCHD,Elderly Purchasing - North,Residential Homes,Four Seasons Health Care,1143.08, 01-Nov-2011
1073,Revenue,CCHD,Elderly Purchasing - North,Residential Homes,Four Seasons Health Care,1222.41, 01-Nov-2011
1074,Revenue,CCHD,Elderly Purchasing - North,Residential Homes,Four Seasons Health Care,1022.72, 01-Nov-2011
1075,Revenue,CCHD,Elderly Purchasing - South,Nursing Homes,Four Seasons Health Care,1544.4, 29-Nov-2011
1076,Revenue,CCHD,Elderly Purchasing - North,Residential Homes,Four Seasons Health Care,1177.96, 29-Nov-2011
1077,Revenue,CCHD,Elderly Purchasing - North,Residential Homes,Four Seasons Health Care,1022.72, 29-Nov-2011
1078,Revenue,CCHD,South Glos Users in South Glos Homes,Nursing Homes,Four Seasons Health Care,1133.59, 01-Nov-2011
1079,Revenue,CCHD,Elderly Purchasing - South,Nursing Homes,Four Seasons Health Care,1206.96, 01-Nov-2011
1080,Revenue,CCHD,Elderly Purchasing - South,Nursing Homes,Four Seasons Health Care,1206.96, 29-Nov-2011
1081,Revenue,CCHD,Elderly Mental Health,Nursing Homes,Four Seasons Health Care,1313, 01-Nov-2011
1082,Revenue,CCHD,Elderly Mental Health,Nursing Homes,Four Seasons Health Care,1313, 29-Nov-2011
1083,Revenue,CCHD,Frenchay Hospital Purchasing,Nursing Homes,Four Seasons Health Care,1268.08, 01-Nov-2011
1084,Revenue,CCHD,Frenchay Hospital Purchasing,Nursing Homes,Four Seasons Health Care,1268.08, 29-Nov-2011
1085,Revenue,CCHD,Elderly Purchasing - South,Nursing Homes,Four Seasons Health Care,1349, 01-Nov-2011
1086,Revenue,CCHD,Elderly Purchasing - South,Nursing Homes,Four Seasons Health Care,1349, 29-Nov-2011
1087,Revenue,CCHD,Elderly Purchasing - South,Nursing Homes,Four Seasons Health Care,1459.32, 01-Nov-2011
1088,Revenue,CCHD,Elderly Purchasing - South,Nursing Homes,Four Seasons Health Care,1459.32, 29-Nov-2011
1089,Revenue,CCHD,Southmead Hospital Purchasing,Nursing Homes,Four Seasons Health Care,1349, 01-Nov-2011
1090,Revenue,CCHD,Southmead Hospital Purchasing,Nursing Homes,Four Seasons Health Care,1349, 29-Nov-2011
1091,Revenue,CCHD,Elderly Purchasing - South,Nursing Homes,Four Seasons Health Care,1349, 01-Nov-2011
1092,Revenue,CCHD,Elderly Purchasing - South,Nursing Homes,Four Seasons Health Care,1349, 29-Nov-2011
1093,Revenue,CCHD,Southmead Hospital Purchasing,Nursing Homes,Four Seasons Health Care,726, 01-Nov-2011
1094,Revenue,CCHD,Elderly Mental Health,Nursing Homes,Four Seasons Health Care,1431.72, 01-Nov-2011
1095,Revenue,CCHD,Elderly Mental Health,Nursing Homes,Four Seasons Health Care,1431.72, 29-Nov-2011
1096,Revenue,CCHD,Elderly Purchasing - North,Nursing Homes,Four Seasons Health Care,1248.52, 01-Nov-2011
1097,Revenue,CCHD,Elderly Purchasing - North,Nursing Homes,Four Seasons Health Care,1248.52, 29-Nov-2011
1098,Revenue,CCHD,Elderly Purchasing - North,Nursing Homes,Four Seasons Health Care,1103.48, 01-Nov-2011
1099,Revenue,CCHD,Elderly Purchasing - North,Nursing Homes,Four Seasons Health Care,1103.48, 29-Nov-2011
1100,Revenue,CCHD,Southmead Hospital Purchasing,Nursing Homes,Four Seasons Health Care,1336.4, 01-Nov-2011
1101,Revenue,CCHD,Southmead Hospital Purchasing,Nursing Homes,Four Seasons Health Care,1336.4, 29-Nov-2011
1102,Revenue,CCHD,Frenchay Hospital Purchasing,Nursing Homes,Four Seasons Health Care,1284.56, 01-Nov-2011
1103,Revenue,CCHD,Frenchay Hospital Purchasing,Nursing Homes,Four Seasons Health Care,1284.56, 29-Nov-2011
1104,Revenue,CCHD,Elderly Mental Health,Nursing Homes,Four Seasons Health Care,1517, 01-Nov-2011
1105,Revenue,CCHD,Elderly Mental Health,Nursing Homes,Four Seasons Health Care,1517, 29-Nov-2011
1106,Revenue,CCHD,Elderly Purchasing - North,Residential Homes,Four Seasons Health Care,729.44, 01-Nov-2011
1107,Revenue,CCHD,Elderly Purchasing - North,Residential Homes,Four Seasons Health Care,729.44, 29-Nov-2011
1108,Revenue,CCHD,Elderly Purchasing - North,Nursing Homes,Four Seasons Health Care,719.68, 01-Nov-2011
1109,Revenue,CCHD,Elderly Purchasing - North,Nursing Homes,Four Seasons Health Care,719.68, 29-Nov-2011
1110,Revenue,CCHD,Elderly Mental Health,Nursing Homes,Four Seasons Health Care,1416, 01-Nov-2011
1111,Revenue,CCHD,Elderly Mental Health,Nursing Homes,Four Seasons Health Care,1416, 29-Nov-2011
1112,Revenue,CCHD,Frenchay Hospital Purchasing,Nursing Homes,Four Seasons Health Care,1323.8, 01-Nov-2011
1113,Revenue,CCHD,Frenchay Hospital Purchasing,Nursing Homes,Four Seasons Health Care,1323.8, 29-Nov-2011
1114,Revenue,CCHD,Southmead Hospital Purchasing,Nursing Homes,Four Seasons Health Care,3343.69, 01-Nov-2011
1115,Revenue,CCHD,Southmead Hospital Purchasing,Nursing Homes,Four Seasons Health Care,1397.36, 01-Nov-2011
1116,Revenue,CCHD,South Glos Users in South Glos Homes,Nursing Homes,Four Seasons Health Care,1040.41, 01-Nov-2011
1117,Revenue,CCHD,Southmead Hospital Purchasing,Nursing Homes,Four Seasons Health Care,1397.36, 29-Nov-2011
1118,Revenue,CCHD,Elderly Purchasing - North,Nursing Homes,Four Seasons Health Care,1517, 01-Nov-2011
1119,Revenue,CCHD,Elderly Purchasing - North,Nursing Homes,Four Seasons Health Care,1517, 29-Nov-2011
1120,Revenue,CCHD,Elderly Purchasing - North,Nursing Homes,Four Seasons Health Care,1349, 01-Nov-2011
1121,Revenue,CCHD,Elderly Purchasing - North,Nursing Homes,Four Seasons Health Care,1349, 29-Nov-2011
1122,Revenue,CCHD,Elderly Purchasing - South,Residential Homes,Four Seasons Health Care,1229, 01-Nov-2011
1123,Revenue,CCHD,Elderly Purchasing - South,Residential Homes,Four Seasons Health Care,1229, 29-Nov-2011
1124,Revenue,CCHD,Elderly Purchasing - North,Nursing Homes,Four Seasons Health Care,1412.48, 01-Nov-2011
1125,Revenue,CCHD,Elderly Purchasing - North,Nursing Homes,Four Seasons Health Care,1412.48, 29-Nov-2011
1126,Revenue,CCHD,Southmead Hospital Purchasing,Residential Homes,Four Seasons Health Care,729.36, 01-Nov-2011
1127,Revenue,CCHD,Southmead Hospital Purchasing,Residential Homes,Four Seasons Health Care,729.36, 29-Nov-2011
1128,Revenue,CCHD,Elderly Mental Health,Nursing Homes,Four Seasons Health Care,1402.52, 01-Nov-2011
1129,Revenue,CCHD,Elderly Mental Health,Nursing Homes,Four Seasons Health Care,1402.52, 29-Nov-2011
1130,Revenue,CCHD,Southmead Hospital Purchasing,Nursing Homes,Four Seasons Health Care,1422.32, 01-Nov-2011
1131,Revenue,CCHD,South Glos Users in South Glos Homes,Nursing Homes,Four Seasons Health Care,1040.41, 01-Nov-2011
1132,Revenue,CCHD,Southmead Hospital Purchasing,Nursing Homes,Four Seasons Health Care,1422.32, 29-Nov-2011
1133,Revenue,CCHD,Frenchay Hospital Purchasing,Nursing Homes,Four Seasons Health Care,1199.6, 01-Nov-2011
1134,Revenue,CCHD,Frenchay Hospital Purchasing,Nursing Homes,Four Seasons Health Care,1199.6, 29-Nov-2011
1135,Revenue,CCHD,Southmead Hospital Purchasing,Nursing Homes,Four Seasons Health Care,1517, 01-Nov-2011
1136,Revenue,CCHD,South Glos Users in South Glos Homes,Nursing Homes,Four Seasons Health Care,1304.4, 01-Nov-2011
1137,Revenue,CCHD,Southmead Hospital Purchasing,Nursing Homes,Four Seasons Health Care,1517, 29-Nov-2011
1138,Revenue,CCHD,Elderly Purchasing - North,Nursing Homes,Four Seasons Health Care,820.24, 01-Nov-2011
1139,Revenue,CCHD,Elderly Purchasing - North,Nursing Homes,Four Seasons Health Care,820.24, 29-Nov-2011
1140,Revenue,CCHD,Frenchay Hospital Purchasing,Nursing Homes,Four Seasons Health Care,1161.72, 01-Nov-2011
1141,Revenue,CCHD,Frenchay Hospital Purchasing,Nursing Homes,Four Seasons Health Care,1161.72, 29-Nov-2011
1142,Revenue,CCHD,Elderly Mental Health,Residential Homes,Four Seasons Health Care,1202.24, 01-Nov-2011
1143,Revenue,CCHD,Elderly Mental Health,Residential Homes,Four Seasons Health Care,1202.24, 29-Nov-2011
1144,Revenue,CCHD,Southmead Hospital Purchasing,Nursing Homes,Four Seasons Health Care,1349, 01-Nov-2011
1145,Revenue,CCHD,Southmead Hospital Purchasing,Nursing Homes,Four Seasons Health Care,1349, 29-Nov-2011
1146,Revenue,CCHD,Southmead Hospital Purchasing,Residential Homes,Four Seasons Health Care,9840.81, 01-Nov-2011
1147,Revenue,CCHD,Southmead Hospital Purchasing,Residential Homes,Four Seasons Health Care,1229, 01-Nov-2011
1148,Revenue,CCHD,Southmead Hospital Purchasing,Residential Homes,Four Seasons Health Care,1229, 29-Nov-2011
1149,Revenue,CCHD,Southmead Hospital Purchasing,Nursing Homes,Four Seasons Health Care,1349, 01-Nov-2011
1150,Revenue,CCHD,Southmead Hospital Purchasing,Nursing Homes,Four Seasons Health Care,529.97, 01-Nov-2011
1151,Revenue,CCHD,Southmead Hospital Purchasing,Nursing Homes,Four Seasons Health Care,1349, 29-Nov-2011
1152,Revenue,CCHD,Elderly Mental Health,Nursing Homes,Four Seasons Health Care,1349, 01-Nov-2011
1153,Revenue,CCHD,Elderly Mental Health,Nursing Homes,Four Seasons Health Care,1349, 29-Nov-2011
1154,Revenue,CCHD,Elderly Mental Health,Residential Homes,Four Seasons Health Care,1344.16, 01-Nov-2011
1155,Revenue,CCHD,Elderly Mental Health,Residential Homes,Four Seasons Health Care,1344.16, 29-Nov-2011
1156,Revenue,CCHD,Elderly Purchasing - North,Nursing Homes,Four Seasons Health Care,1341.32, 01-Nov-2011
1157,Revenue,CCHD,Elderly Purchasing - North,Nursing Homes,Four Seasons Health Care,1341.32, 29-Nov-2011
1158,Revenue,CCHD,Elderly Mental Health,Nursing Homes,Four Seasons Health Care,1034.84, 01-Nov-2011
1159,Revenue,CCHD,Elderly Mental Health,Nursing Homes,Four Seasons Health Care,1034.84, 29-Nov-2011
1160,Revenue,CCHD,Frenchay Hospital Purchasing,Nursing Homes,Four Seasons Health Care,1349, 01-Nov-2011
1161,Revenue,CCHD,Frenchay Hospital Purchasing,Nursing Homes,Four Seasons Health Care,1349, 29-Nov-2011
1162,Revenue,CCHD,Section 117 Placements,Residential Homes,Four Seasons Health Care,783.71, 29-Nov-2011
1163,Revenue,CCHD,Elderly Mental Health,Residential Homes,Four Seasons Health Care,1139.16, 01-Nov-2011
1164,Revenue,CCHD,Elderly Mental Health,Residential Homes,Four Seasons Health Care,1139.16, 29-Nov-2011
1165,Revenue,CCHD,Southmead Hospital Purchasing,Nursing Homes,Four Seasons Health Care,833.4, 01-Nov-2011
1166,Revenue,CCHD,Southmead Hospital Purchasing,Nursing Homes,Four Seasons Health Care,833.4, 29-Nov-2011
1167,Revenue,CCHD,Frenchay Hospital Purchasing,Nursing Homes,Four Seasons Health Care,1371.77, 29-Nov-2011
1168,Revenue,CCHD,Frenchay Hospital Purchasing,Nursing Homes,Four Seasons Health Care,1349, 01-Nov-2011
1169,Revenue,CCHD,Frenchay Hospital Purchasing,Nursing Homes,Four Seasons Health Care,1349, 29-Nov-2011
1170,Revenue,CCHD,Elderly Purchasing - South,Nursing Homes,Four Seasons Health Care,1251.72, 01-Nov-2011
1171,Revenue,CCHD,Elderly Purchasing - South,Nursing Homes,Four Seasons Health Care,1251.72, 29-Nov-2011
1172,Revenue,CCHD,Elderly Mental Health,Nursing Homes,Four Seasons Health Care,1224.72, 01-Nov-2011
1173,Revenue,CCHD,Elderly Mental Health,Nursing Homes,Four Seasons Health Care,1224.72, 29-Nov-2011
1174,Revenue,CCHD,Frenchay Hospital Purchasing,Nursing Homes,Four Seasons Health Care,1277, 01-Nov-2011
1175,Revenue,CCHD,Frenchay Hospital Purchasing,Nursing Homes,Four Seasons Health Care,1277, 29-Nov-2011
1176,Revenue,CCHD,Southmead Hospital Purchasing,Nursing Homes,Four Seasons Health Care,1686.25, 01-Nov-2011
1177,Revenue,CCHD,Frenchay Hospital Purchasing,Nursing Homes,Four Seasons Health Care,803.08, 01-Nov-2011
1178,Revenue,CCHD,Frenchay Hospital Purchasing,Nursing Homes,Four Seasons Health Care,803.08, 29-Nov-2011
1179,Revenue,CCHD,Elderly Purchasing - North,Nursing Homes,Four Seasons Health Care,674.5, 01-Nov-2011
1180,Revenue,CCHD,Frenchay Hospital Purchasing,Nursing Homes,Four Seasons Health Care,1349, 01-Nov-2011
1181,Revenue,CCHD,Frenchay Hospital Purchasing,Nursing Homes,Four Seasons Health Care,1349, 29-Nov-2011
1182,Revenue,CCHD,Frenchay Hospital Purchasing,Nursing Homes,Four Seasons Health Care,1137, 01-Nov-2011
1183,Revenue,CCHD,Elderly Purchasing - North,Nursing Homes,Four Seasons Health Care,4367.9, 01-Nov-2011
1184,Revenue,CCHD,Elderly Purchasing - North,Nursing Homes,Four Seasons Health Care,1739.11, 01-Nov-2011
1185,Revenue,CCHD,Elderly Purchasing - North,Nursing Homes,Four Seasons Health Care,1385, 01-Nov-2011
1186,Revenue,CCHD,Elderly Purchasing - North,Nursing Homes,Four Seasons Health Care,690.38, 01-Nov-2011
1187,Revenue,CCHD,Elderly Purchasing - North,Nursing Homes,Four Seasons Health Care,951.8, 01-Nov-2011
1188,Revenue,CCHD,Elderly Purchasing - North,Nursing Homes,Four Seasons Health Care,1385, 29-Nov-2011
1189,Revenue,CCHD,Frenchay Hospital Purchasing,Nursing Homes,Four Seasons Health Care,1349, 01-Nov-2011
1190,Revenue,CCHD,Frenchay Hospital Purchasing,Nursing Homes,Four Seasons Health Care,1349, 29-Nov-2011
1191,Revenue,CCHD,Frenchay Hospital Purchasing,Nursing Homes,Four Seasons Health Care,1349, 01-Nov-2011
1192,Revenue,CCHD,Frenchay Hospital Purchasing,Nursing Homes,Four Seasons Health Care,1349, 29-Nov-2011
1193,Revenue,CCHD,Frenchay Hospital Purchasing,Nursing Homes,Four Seasons Health Care,1365, 01-Nov-2011
1194,Revenue,CCHD,Frenchay Hospital Purchasing,Nursing Homes,Four Seasons Health Care,1365, 29-Nov-2011
1195,Revenue,CCHD,Elderly Purchasing - South,Nursing Homes,Four Seasons Health Care,1057.92, 01-Nov-2011
1196,Revenue,CCHD,Elderly Purchasing - South,Nursing Homes,Four Seasons Health Care,1057.92, 29-Nov-2011
1197,Revenue,CCHD,Elderly Purchasing - North,Nursing Homes,Four Seasons Health Care,1908.07, 01-Nov-2011
1198,Revenue,CCHD,Southmead Hospital Purchasing,Nursing Homes,Four Seasons Health Care,1205, 01-Nov-2011
1199,Revenue,CCHD,Elderly Purchasing - North,Nursing Homes,Four Seasons Health Care,567.73, 01-Nov-2011
1200,Revenue,CCHD,Southmead Hospital Purchasing,Nursing Homes,Four Seasons Health Care,1205, 29-Nov-2011
1201,Revenue,CCHD,Elderly Purchasing - North,Nursing Homes,Four Seasons Health Care,857.96, 01-Nov-2011
1202,Revenue,CCHD,Elderly Purchasing - North,Nursing Homes,Four Seasons Health Care,857.96, 29-Nov-2011
1203,Revenue,CCHD,Southmead Hospital Purchasing,Residential Homes,Four Seasons Health Care,1103.44, 01-Nov-2011
1204,Revenue,CCHD,Southmead Hospital Purchasing,Residential Homes,Four Seasons Health Care,1103.44, 29-Nov-2011
1205,Revenue,CCHD,Southmead Hospital Purchasing,Nursing Homes,Four Seasons Health Care,1349, 01-Nov-2011
1206,Revenue,CCHD,Southmead Hospital Purchasing,Nursing Homes,Four Seasons Health Care,1349, 29-Nov-2011
1207,Revenue,CCHD,Southmead Hospital Purchasing,Nursing Homes,Four Seasons Health Care,2794, 29-Nov-2011
1208,Revenue,CCHD,South Glos Users in South Glos Homes,Nursing Homes,Four Seasons Health Care,1242.29, 01-Nov-2011
1209,Revenue,CCHD,Purchasing Phys Dis - North,Nursing Homes,Four Seasons Health Care,1152.8, 01-Nov-2011
1210,Revenue,CCHD,Elderly Purchasing - North,Nursing Homes,Four Seasons Health Care,658.74, 01-Nov-2011
1211,Revenue,CCHD,Purchasing Phys Dis - North,Nursing Homes,Four Seasons Health Care,1152.8, 29-Nov-2011
1212,Revenue,CCHD,Southmead Hospital Purchasing,Nursing Homes,Four Seasons Health Care,1317.56, 01-Nov-2011
1213,Revenue,CCHD,Southmead Hospital Purchasing,Nursing Homes,Four Seasons Health Care,1317.56, 29-Nov-2011
1214,Revenue,CCHD,Purchasing Phys Dis - North,Nursing Homes,Four Seasons Health Care,1355.08, 01-Nov-2011
1215,Revenue,CCHD,Purchasing Phys Dis - North,Nursing Homes,Four Seasons Health Care,1355.08, 29-Nov-2011
1216,Revenue,CCHD,Elderly Purchasing - South,Nursing Homes,Four Seasons Health Care,1225.28, 01-Nov-2011
1217,Revenue,CCHD,Elderly Purchasing - South,Nursing Homes,Four Seasons Health Care,1225.28, 29-Nov-2011
1218,Revenue,CCHD,Southmead Hospital Purchasing,Nursing Homes,Four Seasons Health Care,1275.28, 01-Nov-2011
1219,Revenue,CCHD,Southmead Hospital Purchasing,Nursing Homes,Four Seasons Health Care,1275.28, 29-Nov-2011
1220,Revenue,CCHD,Elderly Mental Health,Residential Homes,Four Seasons Health Care,1375.96, 01-Nov-2011
1221,Revenue,CCHD,Elderly Mental Health,Residential Homes,Four Seasons Health Care,1375.96, 29-Nov-2011
1222,Revenue,CCHD,Southmead Hospital Purchasing,Nursing Homes,Four Seasons Health Care,2023.5, 01-Nov-2011
1223,Revenue,CCHD,Southmead Hospital Purchasing,Nursing Homes,Four Seasons Health Care,529.97, 01-Nov-2011
1224,Revenue,CCHD,Elderly Mental Health,Residential Homes,Four Seasons Health Care,1280.12, 01-Nov-2011
1225,Revenue,CCHD,Elderly Mental Health,Residential Homes,Four Seasons Health Care,1280.12, 29-Nov-2011
1226,Revenue,CCHD,Southmead Hospital Purchasing,Residential Homes,Four Seasons Health Care,1151.56, 01-Nov-2011
1227,Revenue,CCHD,Southmead Hospital Purchasing,Residential Homes,Four Seasons Health Care,1151.56, 29-Nov-2011
1228,Revenue,CCHD,Frenchay Hospital Purchasing,Nursing Homes,Four Seasons Health Care,4047, 01-Nov-2011
1229,Revenue,CCHD,South Glos Users in South Glos Homes,Nursing Homes,Four Seasons Health Care,869.6, 01-Nov-2011
1230,Revenue,CCHD,Frenchay Hospital Purchasing,Nursing Homes,Four Seasons Health Care,2423.6, 29-Nov-2011
1231,Revenue,CCHD,Frenchay Hospital Purchasing,Nursing Homes,Four Seasons Health Care,1211.8, 29-Nov-2011
1232,Revenue,CCHD,Southmead Hospital Purchasing,Nursing Homes,Four Seasons Health Care,1445.35, 01-Nov-2011
1233,Revenue,CCHD,Southmead Hospital Purchasing,Nursing Homes,Four Seasons Health Care,1349, 01-Nov-2011
1234,Revenue,CCHD,Southmead Hospital Purchasing,Nursing Homes,Four Seasons Health Care,1349, 29-Nov-2011
1235,Revenue,CCHD,South Glos Users in South Glos Homes,Nursing Homes,Four Seasons Health Care,2391.4, 01-Nov-2011
1236,Revenue,CCHD,South Glos Users in South Glos Homes,Nursing Homes,Four Seasons Health Care,931.71, 01-Nov-2011
1237,Revenue,CCHD,Elderly PWLD - PS,Residential Homes,Four Seasons Health Care,1229, 01-Nov-2011
1238,Revenue,CCHD,Elderly PWLD - PS,Residential Homes,Four Seasons Health Care,1229, 29-Nov-2011
1239,Revenue,CCHD,Frenchay Hospital Purchasing,Nursing Homes,Four Seasons Health Care,1349, 01-Nov-2011
1240,Revenue,CCHD,Frenchay Hospital Purchasing,Nursing Homes,Four Seasons Health Care,1349, 29-Nov-2011
1241,Revenue,CCHD,Southmead Hospital Purchasing,Nursing Homes,Four Seasons Health Care,1349, 01-Nov-2011
1242,Revenue,CCHD,Southmead Hospital Purchasing,Nursing Homes,Four Seasons Health Care,1252.65, 01-Nov-2011
1243,Revenue,CCHD,Southmead Hospital Purchasing,Nursing Homes,Four Seasons Health Care,1349, 29-Nov-2011
1244,Revenue,CCHD,Elderly Purchasing - South,Nursing Homes,Four Seasons Health Care,1265.52, 01-Nov-2011
1245,Revenue,CCHD,Elderly Purchasing - South,Nursing Homes,Four Seasons Health Care,1265.52, 29-Nov-2011
1246,Revenue,CCHD,Elderly Purchasing - South,Nursing Homes,Four Seasons Health Care,1335.64, 01-Nov-2011
1247,Revenue,CCHD,Elderly Purchasing - South,Nursing Homes,Four Seasons Health Care,1335.64, 29-Nov-2011
1248,Revenue,CCHD,Southmead Hospital Purchasing,Nursing Homes,Four Seasons Health Care,7068.42, 01-Nov-2011
1249,Revenue,CCHD,Southmead Hospital Purchasing,Nursing Homes,Four Seasons Health Care,1125.12, 01-Nov-2011
1250,Revenue,CCHD,Southmead Hospital Purchasing,Nursing Homes,Four Seasons Health Care,1125.12, 29-Nov-2011
1251,Revenue,CCHD,Elderly Purchasing - South,Residential Homes,Four Seasons Health Care,859.68, 01-Nov-2011
1252,Revenue,CCHD,Elderly Purchasing - South,Residential Homes,Four Seasons Health Care,859.68, 29-Nov-2011
1253,Revenue,CCHD,Southmead Hospital Purchasing,Nursing Homes,Four Seasons Health Care,1349, 01-Nov-2011
1254,Revenue,CCHD,Southmead Hospital Purchasing,Nursing Homes,Four Seasons Health Care,626.32, 01-Nov-2011
1255,Revenue,CCHD,Southmead Hospital Purchasing,Nursing Homes,Four Seasons Health Care,1884.89, 29-Nov-2011
1256,Revenue,CCHD,Southmead Hospital Purchasing,Nursing Homes,Four Seasons Health Care,1287.24, 29-Nov-2011
1257,Revenue,CCHD,Frenchay Hospital Purchasing,Nursing Homes,Four Seasons Health Care,1341.12, 01-Nov-2011
1258,Revenue,CCHD,Southmead Hospital Purchasing,Residential Homes,Four Seasons Health Care,1367.48, 01-Nov-2011
1259,Revenue,CCHD,Southmead Hospital Purchasing,Residential Homes,Four Seasons Health Care,1367.48, 29-Nov-2011
1260,Revenue,CCHD,Frenchay Hospital Purchasing,Nursing Homes,Four Seasons Health Care,774.32, 01-Nov-2011
1261,Revenue,CCHD,Frenchay Hospital Purchasing,Nursing Homes,Four Seasons Health Care,774.32, 29-Nov-2011
1262,Revenue,CCHD,Elderly Purchasing - South,Residential Homes,Four Seasons Health Care,1102.04, 01-Nov-2011
1263,Revenue,CCHD,Elderly Purchasing - South,Residential Homes,Four Seasons Health Care,1102.04, 29-Nov-2011
1264,Revenue,CCHD,Elderly Purchasing - South,Nursing Homes,Four Seasons Health Care,960.32, 01-Nov-2011
1265,Revenue,CCHD,Elderly Purchasing - South,Nursing Homes,Four Seasons Health Care,960.32, 29-Nov-2011
1266,Revenue,CCHD,Frenchay Hospital Purchasing,Residential Homes,Four Seasons Health Care,1227.8, 01-Nov-2011
1267,Revenue,CCHD,Frenchay Hospital Purchasing,Residential Homes,Four Seasons Health Care,1227.8, 29-Nov-2011
1268,Revenue,CCHD,Frenchay Hospital Purchasing,Residential Homes,Four Seasons Health Care,1195.84, 01-Nov-2011
1269,Revenue,CCHD,Section 117 Placements,Residential Homes,Four Seasons Health Care,1688, 01-Nov-2011
1270,Revenue,CCHD,Section 117 Placements,Nursing Homes,Four Seasons Health Care,4455.43, 29-Nov-2011
1271,Revenue,CCHD,Section 117 Placements,Nursing Homes,Four Seasons Health Care,1808, 29-Nov-2011
1272,Revenue,CCHD,Frenchay Hospital Purchasing,Residential Homes,Four Seasons Health Care,1092.96, 01-Nov-2011
1273,Revenue,CCHD,Frenchay Hospital Purchasing,Residential Homes,Four Seasons Health Care,1092.96, 29-Nov-2011
1274,Revenue,CCHD,Elderly Mental Health,Residential Homes,Four Seasons Health Care,861.4, 01-Nov-2011
1275,Revenue,CCHD,Frenchay Hospital Purchasing,Residential Homes,Four Seasons Health Care,1237.4, 01-Nov-2011
1276,Revenue,CCHD,Frenchay Hospital Purchasing,Residential Homes,Four Seasons Health Care,1237.4, 29-Nov-2011
1277,Revenue,CCHD,Elderly Purchasing - South,Residential Homes,Four Seasons Health Care,562.76, 01-Nov-2011
1278,Revenue,CCHD,Elderly Purchasing - South,Residential Homes,Four Seasons Health Care,562.76, 29-Nov-2011
1279,Revenue,CCHD,Frenchay Hospital Purchasing,Nursing Homes,Four Seasons Health Care,1361, 01-Nov-2011
1280,Revenue,CCHD,Frenchay Hospital Purchasing,Nursing Homes,Four Seasons Health Care,1361, 29-Nov-2011
1281,Revenue,CCHD,Southmead Hospital Purchasing,Nursing Homes,Four Seasons Health Care,2412.18, 01-Nov-2011
1282,Revenue,CCHD,South Glos Users in South Glos Homes,Nursing Homes,Four Seasons Health Care,1785.79, 01-Nov-2011
1283,Revenue,CCHD,Southmead Hospital Purchasing,Nursing Homes,Four Seasons Health Care,1250.76, 01-Nov-2011
1284,Revenue,CCHD,Southmead Hospital Purchasing,Nursing Homes,Four Seasons Health Care,1250.76, 29-Nov-2011
1285,Revenue,CCHD,Frenchay Hospital Purchasing,Nursing Homes,Four Seasons Health Care,1345.8, 01-Nov-2011
1286,Revenue,CCHD,Frenchay Hospital Purchasing,Nursing Homes,Four Seasons Health Care,1345.8, 29-Nov-2011
1287,Revenue,CCHD,Southmead Hospital Purchasing,Nursing Homes,Four Seasons Health Care,1624.33, 01-Nov-2011
1288,Revenue,CCHD,Southmead Hospital Purchasing,Nursing Homes,Four Seasons Health Care,1337.68, 01-Nov-2011
1289,Revenue,CCHD,Southmead Hospital Purchasing,Nursing Homes,Four Seasons Health Care,1337.68, 29-Nov-2011
1290,Revenue,CCHD,Elderly Purchasing - South,Nursing Homes,Four Seasons Health Care,1349, 01-Nov-2011
1291,Revenue,CCHD,Elderly Purchasing - South,Nursing Homes,Four Seasons Health Care,1189.52, 29-Nov-2011
1292,Revenue,CCHD,Elderly Mental Health,Residential Homes,Four Seasons Health Care,954.64, 01-Nov-2011
1293,Revenue,CCHD,Elderly Mental Health,Residential Homes,Four Seasons Health Care,954.64, 29-Nov-2011
1294,Revenue,CCHD,Southmead Hospital Purchasing,Nursing Homes,Four Seasons Health Care,1291.43, 29-Nov-2011
1295,Revenue,CCHD,Southmead Hospital Purchasing,Nursing Homes,Four Seasons Health Care,739, 01-Nov-2011
1296,Revenue,CCHD,Southmead Hospital Purchasing,Nursing Homes,Four Seasons Health Care,739, 29-Nov-2011
1297,Revenue,CCHD,Elderly Purchasing - North,Nursing Homes,Four Seasons Health Care,1285.16, 01-Nov-2011
1298,Revenue,CCHD,Elderly Purchasing - North,Nursing Homes,Four Seasons Health Care,1285.16, 29-Nov-2011
1299,Revenue,CCHD,Elderly Mental Health,Nursing Homes,Four Seasons Health Care,2842.53, 01-Nov-2011
1300,Revenue,CCHD,Elderly Mental Health,Nursing Homes,Four Seasons Health Care,1204.47, 29-Nov-2011
1301,Revenue,CCHD,Southmead Hospital Purchasing,Nursing Homes,Four Seasons Health Care,1011.75, 01-Nov-2011
1302,Revenue,CCHD,Frenchay Hospital Purchasing,Nursing Homes,Four Seasons Health Care,774.32, 01-Nov-2011
1303,Revenue,CCHD,Frenchay Hospital Purchasing,Nursing Homes,Four Seasons Health Care,774.32, 29-Nov-2011
1304,Revenue,CCHD,Southmead Hospital Purchasing,Nursing Homes,Four Seasons Health Care,1349, 29-Nov-2011
1305,Revenue,CCHD,Southmead Hospital Purchasing,Nursing Homes,Four Seasons Health Care,1011.75, 29-Nov-2011
1306,Revenue,CCHD,Tenancy Start Up Scheme,Other Supplies & Services,Franklin Cole Limited,1500, 28-Nov-2011
1307,Revenue,CCHD,Freeways,Residential Homes,Freeways Trust Limited,54406.29, 15-Nov-2011
1308,Revenue,CCHD,Supported Living - PS,Private & Voluntary Home Care,Freeways Trust Limited,1952.9, 02-Nov-2011
1309,Revenue,CCHD,Supported Living - PS,Private & Voluntary Home Care,Freeways Trust Limited,1559.25, 02-Nov-2011
1310,Revenue,CCHD,Supported Living - PS,Private & Voluntary Home Care,Freeways Trust Limited,1820.5, 15-Nov-2011
1311,Revenue,CCHD,Under 65s PWLD - KD,Residential Homes,Freeways Trust Ltd,2757, 01-Nov-2011
1312,Revenue,CCHD,Under 65s PWLD - KD,Residential Homes,Freeways Trust Ltd,2757, 29-Nov-2011
1313,Revenue,CCHD,S28A - Under 65,Residential Homes,Freeways Trust Ltd,2838.8, 01-Nov-2011
1314,Revenue,CCHD,S28A - Under 65,Residential Homes,Freeways Trust Ltd,2838.8, 29-Nov-2011
1315,Revenue,CCHD,Under 65s PWLD - KD,Residential Homes,Freeways Trust Ltd,4413.76, 29-Nov-2011
1316,Revenue,CCHD,Under 65s PWLD - KD,Residential Homes,Freeways Trust Ltd,2625, 01-Nov-2011
1317,Revenue,CCHD,Under 65s PWLD - KD,Residential Homes,Freeways Trust Ltd,1593.75, 01-Nov-2011
1318,Revenue,CCHD,Under 65s PWLD - KD,Residential Homes,Freeways Trust Ltd,2625, 29-Nov-2011
1319,Revenue,CCHD,Under 65s PWLD - KD,Residential Homes,Freeways Trust Ltd,2217.28, 01-Nov-2011
1320,Revenue,CCHD,Under 65s PWLD - KD,Residential Homes,Freeways Trust Ltd,2217.28, 29-Nov-2011
1321,Revenue,CCHD,Under 65s PWLD - KD,Residential Homes,Freeways Trust Ltd,2633.48, 01-Nov-2011
1322,Revenue,CCHD,Under 65s PWLD - KD,Residential Homes,Freeways Trust Ltd,2633.48, 29-Nov-2011
1323,Revenue,CCHD,Under 65s PWLD - KH,Residential Homes,Freeways Trust Ltd,3216.52, 01-Nov-2011
1324,Revenue,CCHD,Under 65s PWLD - KH,Residential Homes,Freeways Trust Ltd,3216.52, 29-Nov-2011
1325,Revenue,CCHD,Elderly PWLD - KD,Residential Homes,Freeways Trust Ltd,2192.48, 01-Nov-2011
1326,Revenue,CCHD,Elderly PWLD - KD,Residential Homes,Freeways Trust Ltd,2192.48, 29-Nov-2011
1327,Revenue,CCHD,Under 65s PWLD - KH,Residential Homes,Freeways Trust Ltd,2335.12, 01-Nov-2011
1328,Revenue,CCHD,Under 65s PWLD - KH,Residential Homes,Freeways Trust Ltd,2335.12, 29-Nov-2011
1329,Revenue,CCHD,Under 65s PWLD - KH,Residential Homes,Freeways Trust Ltd,2633.48, 01-Nov-2011
1330,Revenue,CCHD,Under 65s PWLD - KH,Residential Homes,Freeways Trust Ltd,2633.48, 29-Nov-2011
1331,Revenue,CCHD,Section 117 Placements MH Younger,Residential Homes,Freeways Trust Ltd,3238, 01-Nov-2011
1332,Revenue,CCHD,Section 117 Placements MH Younger,Residential Homes,Freeways Trust Ltd,3238, 29-Nov-2011
1333,Revenue,CCHD,Frenchay Hospital Purchasing,Nursing Homes,Frenchay Park Nursing Home,1198, 01-Nov-2011
1334,Revenue,CCHD,Frenchay Hospital Purchasing,Nursing Homes,Frenchay Park Nursing Home,1198, 29-Nov-2011
1335,Revenue,CCHD,Directorate,Advertising - General,Gatenby Sanderson Limited,5227.51, 15-Nov-2011
1336,Revenue,CCHD,Directorate,Directorate (JNC Staff) Pay,Gatenby Sanderson Limited,10008, 21-Nov-2011
1337,Revenue,CCHD,Charlton,Furniture & Fittings Loose,Geoff Lewis Flooring Limited,685.21, 04-Nov-2011
1338,Revenue,CCHD,Under 65s PWLD - PS,Residential Homes,Glasallt Fawr,4442.2, 01-Nov-2011
1339,Revenue,CCHD,Under 65s PWLD - PS,Residential Homes,Glasallt Fawr,4442.2, 29-Nov-2011
1340,Revenue,CCHD,Elderly Purchasing - North,Nursing Homes,Glebe House Nursing Home,1366.64, 01-Nov-2011
1341,Revenue,CCHD,Elderly Purchasing - North,Nursing Homes,Glebe House Nursing Home,1366.64, 29-Nov-2011
1342,Revenue,CCHD,South Glos Users in South Glos Homes,Nursing Homes,Glebe House Nursing Home,1195.7, 01-Nov-2011
1343,Revenue,CCHD,South Glos Users in South Glos Homes,Nursing Homes,Glebe House Nursing Home,1273.34, 01-Nov-2011
1344,Revenue,CCHD,South Glos Users in South Glos Homes,Nursing Homes,Glebe House Nursing Home,776.43, 01-Nov-2011
1345,Revenue,CCHD,South Glos Users in South Glos Homes,Nursing Homes,Glebe House Nursing Home,916.19, 29-Nov-2011
1346,Revenue,CCHD,Elderly Purchasing - South,Nursing Homes,Glebe House Nursing Home,2365.2, 01-Nov-2011
1347,Revenue,CCHD,Elderly Purchasing - South,Nursing Homes,Glebe House Nursing Home,2365.2, 29-Nov-2011
1348,Revenue,CCHD,Elderly Purchasing - North,Nursing Homes,Glebe House Nursing Home,1285, 01-Nov-2011
1349,Revenue,CCHD,Elderly Purchasing - North,Nursing Homes,Glebe House Nursing Home,1285, 29-Nov-2011
1350,Revenue,CCHD,Elderly Purchasing - North,Nursing Homes,Glebe House Nursing Home,1285, 01-Nov-2011
1351,Revenue,CCHD,Elderly Purchasing - North,Nursing Homes,Glebe House Nursing Home,1285, 29-Nov-2011
1352,Revenue,CCHD,Southmead Hospital Purchasing,Nursing Homes,Glebe House Nursing Home,1644, 01-Nov-2011
1353,Revenue,CCHD,Southmead Hospital Purchasing,Nursing Homes,Glebe House Nursing Home,1644, 29-Nov-2011
1354,Revenue,CCHD,Purchasing Phys Dis - South,Nursing Homes,Glenside Centre For Brain Injury,6955.52, 01-Nov-2011
1355,Revenue,CCHD,Purchasing Phys Dis - South,Nursing Homes,Glenside Centre For Brain Injury,6955.52, 29-Nov-2011
1356,Revenue,CCHD,Under 65s PWLD - KH,Residential Homes,Gordena Care Home,2040.52, 01-Nov-2011
1357,Revenue,CCHD,Under 65s PWLD - KH,Residential Homes,Gordena Care Home,2040.52, 29-Nov-2011
1358,Revenue,CCHD,Elderly PWLD - KH,Residential Homes,Gordena Care Home,4624.36, 01-Nov-2011
1359,Revenue,CCHD,Elderly PWLD - KH,Residential Homes,Gordena Care Home,4624.36, 29-Nov-2011
1360,Revenue,CCHD,Elderly PWLD - KH,Residential Homes,Gordena Care Home,2866.12, 01-Nov-2011
1361,Revenue,CCHD,Elderly PWLD - KH,Residential Homes,Gordena Care Home,2866.12, 29-Nov-2011
1362,Revenue,CCHD,Under 65s PWLD - KH,Residential Homes,Gordena Care Home,2036.68, 01-Nov-2011
1363,Revenue,CCHD,Under 65s PWLD - KH,Residential Homes,Gordena Care Home,2036.68, 29-Nov-2011
1364,Revenue,CCHD,Home Care Purch South,Other Small Contracts,Greenbanks Homecare (Western) Limited,4423.56, 21-Nov-2011
1365,Revenue,CCHD,Home Care Purch North,Other Small Contracts,Greenbanks Homecare (Western) Limited,598.3, 21-Nov-2011
1366,Revenue,CCHD,Day Care - South,Private & Voluntary Day Care,Greenbanks Homecare (Western) Limited,138.96, 21-Nov-2011
1367,Revenue,CCHD,Day Care - North,Private & Voluntary Day Care,Greenbanks Homecare (Western) Limited,61.76, 21-Nov-2011
1368,Revenue,CCHD,Carer`s Grant - South,Carers Breaks & Services,Greenbanks Homecare (Western) Limited,69.48, 21-Nov-2011
1369,Revenue,CCHD,Elderly MH Home Care,Other Small Contracts,Greenbanks Homecare (Western) Limited,274.06, 21-Nov-2011
1370,Revenue,CCHD,Home Care Purch South,Other Small Contracts,Greenbanks Homecare (Western) Limited,4531.64, 21-Nov-2011
1371,Revenue,CCHD,Home Care Purch North,Other Small Contracts,Greenbanks Homecare (Western) Limited,876.22, 21-Nov-2011
1372,Revenue,CCHD,Day Care - South,Private & Voluntary Day Care,Greenbanks Homecare (Western) Limited,266.34, 21-Nov-2011
1373,Revenue,CCHD,Day Care - North,Private & Voluntary Day Care,Greenbanks Homecare (Western) Limited,138.96, 21-Nov-2011
1374,Revenue,CCHD,Carer`s Grant - South,Carers Breaks & Services,Greenbanks Homecare (Western) Limited,108.08, 21-Nov-2011
1375,Revenue,CCHD,Under 65s -MH  Home Care Purch,Other Small Contracts,Greenbanks Homecare (Western) Limited,142.82, 21-Nov-2011
1376,Revenue,CCHD,Elderly MH Home Care,Other Small Contracts,Greenbanks Homecare (Western) Limited,339.68, 21-Nov-2011
1377,Revenue,CCHD,Home Care Purch South,Other Small Contracts,Greenbanks Homecare (Western) Limited,4732.36, 10-Nov-2011
1378,Revenue,CCHD,Home Care Purch North,Other Small Contracts,Greenbanks Homecare (Western) Limited,177.56, 10-Nov-2011
1379,Revenue,CCHD,Day Care - South,Private & Voluntary Day Care,Greenbanks Homecare (Western) Limited,150.54, 10-Nov-2011
1380,Revenue,CCHD,Day Care - North,Private & Voluntary Day Care,Greenbanks Homecare (Western) Limited,96.5, 10-Nov-2011
1381,Revenue,CCHD,Carer`s Grant - South,Carers Breaks & Services,Greenbanks Homecare (Western) Limited,104.22, 10-Nov-2011
1382,Revenue,CCHD,Elderly MH Home Care,Other Small Contracts,Greenbanks Homecare (Western) Limited,358.98, 10-Nov-2011
1383,Revenue,CCHD,Home Care Purch South,Other Small Contracts,Greenbanks Homecare (Western) Limited,5006.42, 10-Nov-2011
1384,Revenue,CCHD,Home Care Purch North,Other Small Contracts,Greenbanks Homecare (Western) Limited,254.76, 10-Nov-2011
1385,Revenue,CCHD,Day Care - South,Private & Voluntary Day Care,Greenbanks Homecare (Western) Limited,193, 10-Nov-2011
1386,Revenue,CCHD,Day Care - North,Private & Voluntary Day Care,Greenbanks Homecare (Western) Limited,96.5, 10-Nov-2011
1387,Revenue,CCHD,Carer`s Grant - South,Carers Breaks & Services,Greenbanks Homecare (Western) Limited,108.08, 10-Nov-2011
1388,Revenue,CCHD,Elderly MH Home Care,Other Small Contracts,Greenbanks Homecare (Western) Limited,370.56, 10-Nov-2011
1389,Revenue,CCHD,Elderly MH non-res purchasing,Private & Voluntary Day Care,Greenbanks Homecare (Western) Limited,30.88, 10-Nov-2011
1390,Revenue,CCHD,Home Care Purch South,Other Small Contracts,Greenbanks Homecare (Western) Limited,4655.16, 10-Nov-2011
1391,Revenue,CCHD,Home Care Purch North,Other Small Contracts,Greenbanks Homecare (Western) Limited,216.16, 10-Nov-2011
1392,Revenue,CCHD,Day Care - South,Private & Voluntary Day Care,Greenbanks Homecare (Western) Limited,243.18, 10-Nov-2011
1393,Revenue,CCHD,Day Care - North,Private & Voluntary Day Care,Greenbanks Homecare (Western) Limited,92.64, 10-Nov-2011
1394,Revenue,CCHD,Carer`s Grant - South,Carers Breaks & Services,Greenbanks Homecare (Western) Limited,108.08, 10-Nov-2011
1395,Revenue,CCHD,Elderly MH Home Care,Other Small Contracts,Greenbanks Homecare (Western) Limited,362.84, 10-Nov-2011
1396,Revenue,CCHD,Elderly MH non-res purchasing,Private & Voluntary Day Care,Greenbanks Homecare (Western) Limited,27.02, 10-Nov-2011
1397,Revenue,CCHD,Home Care Purch South,Other Small Contracts,Greenbanks Homecare (Western) Limited,4477.6, 10-Nov-2011
1398,Revenue,CCHD,Home Care Purch North,Other Small Contracts,Greenbanks Homecare (Western) Limited,289.5, 10-Nov-2011
1399,Revenue,CCHD,Day Care - South,Private & Voluntary Day Care,Greenbanks Homecare (Western) Limited,73.34, 10-Nov-2011
1400,Revenue,CCHD,Day Care - North,Private & Voluntary Day Care,Greenbanks Homecare (Western) Limited,92.64, 10-Nov-2011
1401,Revenue,CCHD,Carer`s Grant - South,Carers Breaks & Services,Greenbanks Homecare (Western) Limited,108.08, 10-Nov-2011
1402,Revenue,CCHD,Elderly MH Home Care,Other Small Contracts,Greenbanks Homecare (Western) Limited,285.64, 10-Nov-2011
1403,Revenue,CCHD,Elderly MH non-res purchasing,Private & Voluntary Day Care,Greenbanks Homecare (Western) Limited,27.02, 10-Nov-2011
1404,Revenue,CCHD,Home Care Purch South,Other Small Contracts,Greenbanks Homecare (Western) Limited,4338.64, 21-Nov-2011
1405,Revenue,CCHD,Home Care Purch North,Other Small Contracts,Greenbanks Homecare (Western) Limited,285.64, 21-Nov-2011
1406,Revenue,CCHD,Day Care - South,Private & Voluntary Day Care,Greenbanks Homecare (Western) Limited,150.54, 21-Nov-2011
1407,Revenue,CCHD,Day Care - North,Private & Voluntary Day Care,Greenbanks Homecare (Western) Limited,92.64, 21-Nov-2011
1408,Revenue,CCHD,Carer`s Grant - South,Carers Breaks & Services,Greenbanks Homecare (Western) Limited,108.08, 21-Nov-2011
1409,Revenue,CCHD,Elderly MH Home Care,Other Small Contracts,Greenbanks Homecare (Western) Limited,320.38, 21-Nov-2011
1410,Revenue,CCHD,Elderly MH non-res purchasing,Private & Voluntary Day Care,Greenbanks Homecare (Western) Limited,27.02, 21-Nov-2011
1411,Revenue,CCHD,Home Care Purch South,Other Small Contracts,Greenbanks Homecare (Western) Limited,4527.78, 21-Nov-2011
1412,Revenue,CCHD,Home Care Purch North,Other Small Contracts,Greenbanks Homecare (Western) Limited,239.32, 21-Nov-2011
1413,Revenue,CCHD,Day Care - South,Private & Voluntary Day Care,Greenbanks Homecare (Western) Limited,231.6, 21-Nov-2011
1414,Revenue,CCHD,Day Care - North,Private & Voluntary Day Care,Greenbanks Homecare (Western) Limited,92.64, 21-Nov-2011
1415,Revenue,CCHD,Carer`s Grant - South,Carers Breaks & Services,Greenbanks Homecare (Western) Limited,100.36, 21-Nov-2011
1416,Revenue,CCHD,Elderly MH Home Care,Other Small Contracts,Greenbanks Homecare (Western) Limited,355.12, 21-Nov-2011
1417,Revenue,CCHD,Elderly MH non-res purchasing,Private & Voluntary Day Care,Greenbanks Homecare (Western) Limited,30.88, 21-Nov-2011
1418,Revenue,CCHD,Home Care Purch South,Other Small Contracts,Greenbanks Homecare (Western) Limited,4338.64, 21-Nov-2011
1419,Revenue,CCHD,Home Care Purch North,Other Small Contracts,Greenbanks Homecare (Western) Limited,239.32, 21-Nov-2011
1420,Revenue,CCHD,Day Care - South,Private & Voluntary Day Care,Greenbanks Homecare (Western) Limited,100.36, 21-Nov-2011
1421,Revenue,CCHD,Day Care - North,Private & Voluntary Day Care,Greenbanks Homecare (Western) Limited,92.64, 21-Nov-2011
1422,Revenue,CCHD,Carer`s Grant - South,Carers Breaks & Services,Greenbanks Homecare (Western) Limited,108.08, 21-Nov-2011
1423,Revenue,CCHD,Elderly MH Home Care,Other Small Contracts,Greenbanks Homecare (Western) Limited,382.14, 21-Nov-2011
1424,Revenue,CCHD,Elderly MH non-res purchasing,Private & Voluntary Day Care,Greenbanks Homecare (Western) Limited,23.16, 21-Nov-2011
1425,Revenue,CCHD,Elderly Purchasing - North,Residential Homes,Greensleeves,1291.92, 01-Nov-2011
1426,Revenue,CCHD,Elderly Purchasing - North,Residential Homes,Greensleeves,1291.92, 29-Nov-2011
1427,Revenue,CCHD,Under 65s PWLD - KD,Residential Homes,Greyhound Care Home,3557.96, 01-Nov-2011
1428,Revenue,CCHD,Under 65s PWLD - KD,Residential Homes,Greyhound Care Home,3557.96, 29-Nov-2011
1429,Revenue,CCHD,Elderly Purchasing - South,Residential Homes,Gwendoline House,1465, 01-Nov-2011
1430,Revenue,CCHD,Elderly Purchasing - South,Residential Homes,Gwendoline House,1465, 29-Nov-2011
1431,Revenue,CCHD,Elderly Purchasing - South,Residential Homes,Gwendoline House,1146.28, 01-Nov-2011
1432,Revenue,CCHD,Elderly Purchasing - South,Residential Homes,Gwendoline House,1146.28, 29-Nov-2011
1433,Revenue,CCHD,Elderly Purchasing - South,Residential Homes,Gwendoline House,1202.32, 01-Nov-2011
1434,Revenue,CCHD,Elderly Purchasing - South,Residential Homes,Gwendoline House,1202.32, 29-Nov-2011
1435,Revenue,CCHD,Elderly Mental Health,Residential Homes,Gwendoline House,1219.6, 01-Nov-2011
1436,Revenue,CCHD,Elderly Mental Health,Residential Homes,Gwendoline House,1219.6, 29-Nov-2011
1437,Revenue,CCHD,Elderly Purchasing - South,Residential Homes,Gwendoline House,1413.96, 01-Nov-2011
1438,Revenue,CCHD,Elderly Purchasing - South,Residential Homes,Gwendoline House,1413.96, 29-Nov-2011
1439,Revenue,CCHD,Elderly Purchasing - South,Residential Homes,Gwendoline House,1111.56, 01-Nov-2011
1440,Revenue,CCHD,Elderly Purchasing - South,Residential Homes,Gwendoline House,1111.56, 29-Nov-2011
1441,Revenue,CCHD,Elderly Purchasing - South,Residential Homes,Gwendoline House,987.72, 01-Nov-2011
1442,Revenue,CCHD,Elderly Purchasing - South,Residential Homes,Gwendoline House,987.72, 29-Nov-2011
1443,Revenue,CCHD,Elderly Purchasing - South,Residential Homes,Harefield Hall,1471.92, 01-Nov-2011
1444,Revenue,CCHD,Elderly Purchasing - South,Residential Homes,Harefield Hall,1471.92, 29-Nov-2011
1445,Revenue,CCHD,Elderly Mental Health,Residential Homes,Harefield Hall,1109.4, 01-Nov-2011
1446,Revenue,CCHD,Elderly Mental Health,Residential Homes,Harefield Hall,1109.4, 29-Nov-2011
1447,Revenue,CCHD,Southmead Hospital Purchasing,Nursing Homes,Hc-One Ltd,2379.3, 29-Nov-2011
1448,Revenue,CCHD,Section 117 Placements,Nursing Homes,Hc-One Ltd,2867.94, 29-Nov-2011
1449,Revenue,CCHD,Elderly Purchasing - North,Nursing Homes,Hc-One Ltd,2194.98, 29-Nov-2011
1450,Revenue,CCHD,Elderly Mental Health,Nursing Homes,Hc-One Ltd,2179.5, 29-Nov-2011
1451,Revenue,CCHD,South Glos Users in South Glos Homes,Nursing Homes,Hc-One Ltd,652.2, 29-Nov-2011
1452,Revenue,CCHD,Elderly Mental Health,Nursing Homes,Hc-One Ltd,1816.02, 29-Nov-2011
1453,Revenue,CCHD,Elderly Mental Health,Nursing Homes,Hc-One Ltd,2179.5, 29-Nov-2011
1454,Revenue,CCHD,South Glos Users in South Glos Homes,Nursing Homes,Hc-One Ltd,652.2, 29-Nov-2011
1455,Revenue,CCHD,Elderly Mental Health,Nursing Homes,Hc-One Ltd,1749.72, 29-Nov-2011
1456,Revenue,CCHD,Elderly Mental Health,Nursing Homes,Hc-One Ltd,1311.42, 29-Nov-2011
1457,Revenue,CCHD,South Glos Users in South Glos Homes,Nursing Homes,Hc-One Ltd,652.2, 29-Nov-2011
1458,Revenue,CCHD,Day Care - North,Private & Voluntary Day Care,Headway Bristol,917.28, 08-Nov-2011
1459,Revenue,CCHD,Day Care - South,Private & Voluntary Day Care,Headway Bristol,882, 08-Nov-2011
1460,Revenue,CCHD,Day Care - South,Private & Voluntary Day Care,Headway Bristol,1437.22, 08-Nov-2011
1461,Revenue,CCHD,Day Care - North,Private & Voluntary Day Care,Headway Bristol,846.72, 08-Nov-2011
1462,Revenue,CCHD,Day Care - South,Private & Voluntary Day Care,Headway Bristol,882, 08-Nov-2011
1463,Revenue,CCHD,Day Care - South,Private & Voluntary Day Care,Headway Bristol,776.16, 08-Nov-2011
1464,Revenue,CCHD,Day Care - South,Private & Voluntary Day Care,Headway Bristol,2264.96, 08-Nov-2011
1465,Revenue,CCHD,Day Care - North,Private & Voluntary Day Care,Headway Bristol,1340.64, 08-Nov-2011
1466,Revenue,CCHD,Supported Living - KH,Private & Voluntary Home Care,HFT,3660.6, 08-Nov-2011
1467,Revenue,CCHD,Supported Living - KH,Private & Voluntary Home Care,HFT,3660.6, 21-Nov-2011
1468,Revenue,CCHD,Southmead Hospital Purchasing,Residential Homes,Highgate Studios,2503.76, 29-Nov-2011
1469,Revenue,CCHD,Under 65s PWLD - KD,Residential Homes,Holmleigh Care Homes Ltd,3908.68, 01-Nov-2011
1470,Revenue,CCHD,Under 65s PWLD - KD,Residential Homes,Holmleigh Care Homes Ltd,3908.68, 29-Nov-2011
1471,Revenue,CCHD,Under 65s PWLD - KH,Residential Homes,Holmleigh Care Homes Ltd,4909.68, 01-Nov-2011
1472,Revenue,CCHD,Under 65s PWLD - KH,Residential Homes,Holmleigh Care Homes Ltd,4909.68, 29-Nov-2011
1473,Revenue,CCHD,Under 65s PWLD - KD,Residential Homes,Home Farm Trust Ltd  5-6 Brook Office Pa,2749.36, 01-Nov-2011
1474,Revenue,CCHD,Under 65s PWLD - KD,Residential Homes,Home Farm Trust Ltd  5-6 Brook Office Pa,2749.36, 29-Nov-2011
1475,Revenue,CCHD,Under 65s PWLD - PS,Residential Homes,Home Farm Trust Ltd  5-6 Brook Office Pa,2398.8, 01-Nov-2011
1476,Revenue,CCHD,Under 65s PWLD - PS,Residential Homes,Home Farm Trust Ltd  5-6 Brook Office Pa,2398.8, 29-Nov-2011
1477,Revenue,CCHD,Under 65s PWLD - PS,Residential Homes,Home Farm Trust Ltd  5-6 Brook Office Pa,2861.83, 01-Nov-2011
1478,Revenue,CCHD,Under 65s PWLD - PS,Residential Homes,Home Farm Trust Ltd  5-6 Brook Office Pa,2984.4, 29-Nov-2011
1479,Revenue,CCHD,Under 65s PWLD - KD,Residential Homes,Home Farm Trust Ltd  5-6 Brook Office Pa,3319.88, 01-Nov-2011
1480,Revenue,CCHD,Under 65s PWLD - KD,Residential Homes,Home Farm Trust Ltd  5-6 Brook Office Pa,3319.88, 29-Nov-2011
1481,Revenue,CCHD,Under 65s PWLD - PS,Residential Homes,Home Farm Trust Ltd  5-6 Brook Office Pa,4428.64, 01-Nov-2011
1482,Revenue,CCHD,Under 65s PWLD - PS,Residential Homes,Home Farm Trust Ltd  5-6 Brook Office Pa,4428.64, 29-Nov-2011
1483,Revenue,CCHD,Under 65s PWLD - KD,Residential Homes,Home From Home Care Ltd,3616.98, 28-Nov-2011
1484,Revenue,CCHD,Under 65s PWLD - KD,Residential Homes,Home From Home Care Ltd,8770.4, 01-Nov-2011
1485,Revenue,CCHD,Under 65s PWLD - KD,Residential Homes,Home From Home Care Ltd,8770.4, 29-Nov-2011
1486,Revenue,CCHD,Elderly Purchasing - North,Nursing Homes,Horfield Care Limited,5253.75, 15-Nov-2011
1487,Revenue,CCHD,Frenchay Hospital Purchasing,Nursing Homes,Horfield Care Limited,6443.59, 15-Nov-2011
1488,Revenue,CCHD,Southmead Hospital Purchasing,Nursing Homes,Horfield Care Limited,2675.7, 15-Nov-2011
1489,Revenue,CCHD,Supporting People Programme,Grants to Voluntary Bodies,Housing 21,828, 03-Nov-2011
1490,Revenue,CCHD,Home Care Purch North,Private & Voluntary Home Care,Housing 21,35220.9, 10-Nov-2011
1491,Revenue,CCHD,Home Care Purch South,Private & Voluntary Home Care,Housing 21,22092.54, 01-Nov-2011
1492,Revenue,CCHD,Elderly Purchasing - South,Residential Homes,Jah-Jireh Charity Homes,1241, 01-Nov-2011
1493,Revenue,CCHD,Elderly Purchasing - South,Residential Homes,Jah-Jireh Charity Homes,1241, 29-Nov-2011
1494,Revenue,CCHD,Training - Adult Services,Training Expenses,JEL Learning LLP,800, 04-Nov-2011
1495,Revenue,CCHD,Tenancy Start Up Scheme,Other Supplies & Services,Individual,600, 24-Nov-2011
1496,Revenue,CCHD,Under 65s PWLD - KD,Residential Homes,Kelly House,3482.2, 01-Nov-2011
1497,Revenue,CCHD,Under 65s PWLD - KD,Residential Homes,Kelly House,3482.2, 29-Nov-2011
1498,Revenue,CCHD,S28A - Under 65,Residential Homes,Kelly House,3366.04, 01-Nov-2011
1499,Revenue,CCHD,S28A - Under 65,Residential Homes,Kelly House,3366.04, 29-Nov-2011
1500,Revenue,CCHD,Elderly Mental Health,Residential Homes,Kenver House Residential Home,1496.44, 01-Nov-2011
1501,Revenue,CCHD,Elderly Mental Health,Residential Homes,Kenver House Residential Home,1496.44, 29-Nov-2011
1502,Revenue,CCHD,Section 117 Placements,Residential Homes,Kenver House Residential Home,1848, 01-Nov-2011
1503,Revenue,CCHD,Section 117 Placements,Residential Homes,Kenver House Residential Home,1848, 29-Nov-2011
1504,Revenue,CCHD,Elderly Mental Health,Residential Homes,Kenver House Residential Home,1358.84, 01-Nov-2011
1505,Revenue,CCHD,Elderly Mental Health,Residential Homes,Kenver House Residential Home,1358.84, 29-Nov-2011
1506,Revenue,CCHD,Elderly Mental Health,Residential Homes,Kenver House Residential Home,899.52, 01-Nov-2011
1507,Revenue,CCHD,Elderly Mental Health,Residential Homes,Kenver House Residential Home,899.52, 29-Nov-2011
1508,Revenue,CCHD,Frenchay Hospital Purchasing,Residential Homes,Kenver House Residential Home,1621, 01-Nov-2011
1509,Revenue,CCHD,Frenchay Hospital Purchasing,Residential Homes,Kenver House Residential Home,1621, 29-Nov-2011
1510,Revenue,CCHD,Southmead Hospital Purchasing,Residential Homes,Kenver House Residential Home,1510.32, 01-Nov-2011
1511,Revenue,CCHD,Southmead Hospital Purchasing,Residential Homes,Kenver House Residential Home,1510.32, 29-Nov-2011
1512,Revenue,CCHD,Frenchay Hospital Purchasing,Residential Homes,Kenver House Residential Home,1621, 01-Nov-2011
1513,Revenue,CCHD,Frenchay Hospital Purchasing,Residential Homes,Kenver House Residential Home,1621, 29-Nov-2011
1514,Revenue,CCHD,Frenchay Hospital Purchasing,Residential Homes,Kenver House Residential Home,1595.28, 01-Nov-2011
1515,Revenue,CCHD,Frenchay Hospital Purchasing,Residential Homes,Kenver House Residential Home,1105.4, 01-Nov-2011
1516,Revenue,CCHD,Frenchay Hospital Purchasing,Residential Homes,Kenver House Residential Home,1105.4, 29-Nov-2011
1517,Revenue,CCHD,Frenchay Hospital Purchasing,Residential Homes,Kenver House Residential Home,1046.32, 01-Nov-2011
1518,Revenue,CCHD,Frenchay Hospital Purchasing,Residential Homes,Kenver House Residential Home,1046.32, 29-Nov-2011
1519,Revenue,CCHD,Elderly Mental Health,Residential Homes,Kenver House Residential Home,1178.52, 01-Nov-2011
1520,Revenue,CCHD,Elderly Mental Health,Residential Homes,Kenver House Residential Home,1178.52, 29-Nov-2011
1521,Revenue,CCHD,Elderly Mental Health,Residential Homes,Kenver House Residential Home,1210.44, 01-Nov-2011
1522,Revenue,CCHD,Elderly Mental Health,Residential Homes,Kenver House Residential Home,1210.44, 29-Nov-2011
1523,Revenue,CCHD,Frenchay Hospital Purchasing,Residential Homes,Kenver House Residential Home,1409.04, 01-Nov-2011
1524,Revenue,CCHD,Frenchay Hospital Purchasing,Residential Homes,Kenver House Residential Home,1409.04, 29-Nov-2011
1525,Revenue,CCHD,Elderly Purchasing - South,Residential Homes,Kenver House Residential Home,4912.96, 01-Nov-2011
1526,Revenue,CCHD,Elderly Purchasing - South,Residential Homes,Kenver House Residential Home,1228.24, 01-Nov-2011
1527,Revenue,CCHD,Elderly Purchasing - South,Residential Homes,Kenver House Residential Home,1090.51, 01-Nov-2011
1528,Revenue,CCHD,Elderly Purchasing - South,Residential Homes,Kenver House Residential Home,1228.24, 29-Nov-2011
1529,Revenue,CCHD,Elderly Mental Health,Residential Homes,Kenver House Residential Home,1174.16, 01-Nov-2011
1530,Revenue,CCHD,Elderly Mental Health,Residential Homes,Kenver House Residential Home,1174.16, 29-Nov-2011
1531,Revenue,CCHD,Elderly Mental Health,Residential Homes,Kenver House Residential Home,1387.64, 01-Nov-2011
1532,Revenue,CCHD,Elderly Mental Health,Residential Homes,Kenver House Residential Home,1387.64, 29-Nov-2011
1533,Revenue,CCHD,Elderly Purchasing - South,Residential Homes,Kenver House Residential Home,1382.24, 01-Nov-2011
1534,Revenue,CCHD,Elderly Purchasing - South,Residential Homes,Kenver House Residential Home,1382.24, 29-Nov-2011
1535,Revenue,CCHD,Frenchay Hospital Purchasing,Residential Homes,Kenver House Residential Home,1536.6, 01-Nov-2011
1536,Revenue,CCHD,Elderly Mental Health,Residential Homes,Kenver House Residential Home,1166.85, 01-Nov-2011
1537,Revenue,CCHD,Frenchay Hospital Purchasing,Residential Homes,Kenver House Residential Home,1536.6, 29-Nov-2011
1538,Revenue,CCHD,Elderly Purchasing - South,Residential Homes,Kenver House Residential Home,1565.12, 01-Nov-2011
1539,Revenue,CCHD,Elderly Purchasing - South,Residential Homes,Kenver House Residential Home,1565.12, 29-Nov-2011
1540,Revenue,CCHD,Elderly Mental Health,Residential Homes,Kenver House Residential Home,1447.92, 01-Nov-2011
1541,Revenue,CCHD,Elderly Mental Health,Residential Homes,Kenver House Residential Home,1447.92, 29-Nov-2011
1542,Revenue,CCHD,Elderly Mental Health,Residential Homes,Kenver House Residential Home,1284.48, 01-Nov-2011
1543,Revenue,CCHD,Elderly Mental Health,Residential Homes,Kenver House Residential Home,1284.48, 29-Nov-2011
1544,Revenue,CCHD,Elderly Mental Health,Residential Homes,Kenver House Residential Home,1692.25, 01-Nov-2011
1545,Revenue,CCHD,Elderly Mental Health,Residential Homes,Kenver House Residential Home,1107.36, 01-Nov-2011
1546,Revenue,CCHD,Elderly Mental Health,Residential Homes,Kenver House Residential Home,575.95, 01-Nov-2011
1547,Revenue,CCHD,Elderly Mental Health,Residential Homes,Kenver House Residential Home,1107.36, 29-Nov-2011
1548,Revenue,CCHD,Supporting People Programme,Grants to Voluntary Bodies,Keyring Living Support Networks,2577.6, 03-Nov-2011
1549,Revenue,CCHD,Frenchay Hospital Purchasing,Residential Homes,Kingswood Lodge Care Centre,1135.84, 01-Nov-2011
1550,Revenue,CCHD,Elderly Purchasing - North,Nursing Homes,Kingswood Lodge Care Centre,1245.24, 01-Nov-2011
1551,Revenue,CCHD,Supporting People Programme,Grants to Voluntary Bodies,Kingswood Young Homeless Project,893.82, 10-Nov-2011
1552,Revenue,CCHD,Supporting People Programme,Grants to Voluntary Bodies,Kingswood Young Homeless Project,4399.82, 10-Nov-2011
1553,Revenue,CCHD,Under 65s PWLD - KH,Residential Homes,Kisimul Group,11078.72, 01-Nov-2011
1554,Revenue,CCHD,Under 65s PWLD - KH,Residential Homes,Kisimul Group,11078.72, 29-Nov-2011
1555,Revenue,CCHD,Newton House,Prop.Serv. General Repairs,Kittymead Joinery,945, 02-Nov-2011
1556,Revenue,CCHD,Supporting People Programme,Grants to Voluntary Bodies,Knightstone Housing Association Limited,1189.44, 10-Nov-2011
1557,Revenue,CCHD,Supporting People Programme,Grants to Voluntary Bodies,Knightstone Housing Association Limited,1968, 10-Nov-2011
1558,Revenue,CCHD,Supporting People Programme,Grants to Voluntary Bodies,Knightstone Housing Association Limited,2193.84, 10-Nov-2011
1559,Revenue,CCHD,Supporting People Programme,Grants to Voluntary Bodies,Knightstone Housing Association Limited,2194.4, 10-Nov-2011
1560,Revenue,CCHD,Supporting People Programme,Grants to Voluntary Bodies,Knightstone Housing Association Limited,6717.92, 10-Nov-2011
1561,Revenue,CCHD,Supporting People Programme,Grants to Voluntary Bodies,Knightstone Housing Association Limited,19485.84, 10-Nov-2011
1562,Revenue,CCHD,Contracts & Commissioning Team,Other Small Contracts,Kumari Care Limited,6000, 04-Nov-2011
1563,Revenue,CCHD,Home Care Purch North,Other Small Contracts,Kumari Care Limited,809.87, 01-Nov-2011
1564,Revenue,CCHD,Home Care Purch North,Other Small Contracts,Kumari Care Limited,809.87, 10-Nov-2011
1565,Revenue,CCHD,Home Care Purch North,Other Small Contracts,Kumari Care Limited,809.87, 10-Nov-2011
1566,Revenue,CCHD,Home Care Purch North,Other Small Contracts,Kumari Care Limited,809.87, 18-Nov-2011
1567,Revenue,CCHD,Home Care Purch North,Other Small Contracts,Kumari Care Limited,809.87, 28-Nov-2011
1568,Revenue,CCHD,Section 117 Placements,Residential Homes,Laurel Court,3376, 01-Nov-2011
1569,Revenue,CCHD,Section 117 Placements,Residential Homes,Laurel Court,844, 01-Nov-2011
1570,Revenue,CCHD,Purchasing Phys Dis - North,Nursing Homes,Leonard Cheshire  National Account Centr,2588.28, 01-Nov-2011
1571,Revenue,CCHD,Purchasing Phys Dis - North,Nursing Homes,Leonard Cheshire  National Account Centr,2588.28, 29-Nov-2011
1572,Revenue,CCHD,Purchasing Phys Dis - North,Residential Homes,Leonard Cheshire  National Account Centr,2303.36, 01-Nov-2011
1573,Revenue,CCHD,Purchasing Phys Dis - North,Residential Homes,Leonard Cheshire  National Account Centr,2303.36, 29-Nov-2011
1574,Revenue,CCHD,Under 65s PWLD - KH,Residential Homes,Leonard Cheshire  National Account Centr,2894.92, 01-Nov-2011
1575,Revenue,CCHD,Under 65s PWLD - KH,Residential Homes,Leonard Cheshire  National Account Centr,2894.92, 29-Nov-2011
1576,Revenue,CCHD,Purchasing Phys Dis - North,Nursing Homes,Leonard Cheshire  National Account Centr,2693.2, 01-Nov-2011
1577,Revenue,CCHD,Purchasing Phys Dis - North,Nursing Homes,Leonard Cheshire  National Account Centr,2693.2, 29-Nov-2011
1578,Revenue,CCHD,Elderly Purchasing - North,Residential Homes,Leonard Cheshire  National Account Centr,14437.23, 01-Nov-2011
1579,Revenue,CCHD,Elderly Purchasing - North,Residential Homes,Leonard Cheshire  National Account Centr,3084.48, 29-Nov-2011
1580,Revenue,CCHD,Elderly Purchasing - South,Residential Homes,Leonard Cheshire  National Account Centr,4336.16, 01-Nov-2011
1581,Revenue,CCHD,Elderly Purchasing - South,Residential Homes,Leonard Cheshire  National Account Centr,4336.16, 29-Nov-2011
1582,Revenue,CCHD,Purchasing Phys Dis - North,Nursing Homes,Leonard Cheshire  National Account Centr,2777.24, 01-Nov-2011
1583,Revenue,CCHD,Purchasing Phys Dis - North,Nursing Homes,Leonard Cheshire  National Account Centr,2777.24, 29-Nov-2011
1584,Revenue,CCHD,Purchasing Phys Dis - North,Nursing Homes,Leonard Cheshire  National Account Centr,3143.8, 01-Nov-2011
1585,Revenue,CCHD,Purchasing Phys Dis - North,Nursing Homes,Leonard Cheshire  National Account Centr,3143.8, 29-Nov-2011
1586,Revenue,CCHD,Purchasing Phys Dis - North,Residential Homes,Leonard Cheshire  National Account Centr,2837.08, 01-Nov-2011
1587,Revenue,CCHD,Purchasing Phys Dis - North,Residential Homes,Leonard Cheshire  National Account Centr,2837.08, 29-Nov-2011
1588,Revenue,CCHD,Elderly Purchasing - North,Nursing Homes,Leonard Cheshire  National Account Centr,3946.56, 01-Nov-2011
1589,Revenue,CCHD,Elderly Purchasing - North,Nursing Homes,Leonard Cheshire  National Account Centr,3946.56, 29-Nov-2011
1590,Revenue,CCHD,Purchasing Phys Dis - South,Nursing Homes,Leonard Cheshire  National Account Centr,3140.4, 01-Nov-2011
1591,Revenue,CCHD,Purchasing Phys Dis - South,Nursing Homes,Leonard Cheshire  National Account Centr,3140.4, 29-Nov-2011
1592,Revenue,CCHD,Purchasing Phys Dis - South,Nursing Homes,Leonard Cheshire  National Account Centr,5956.56, 01-Nov-2011
1593,Revenue,CCHD,Purchasing Phys Dis - South,Nursing Homes,Leonard Cheshire  National Account Centr,5956.56, 29-Nov-2011
1594,Revenue,CCHD,Purchasing Phys Dis - North,Nursing Homes,Leonard Cheshire  National Account Centr,5378.48, 01-Nov-2011
1595,Revenue,CCHD,Purchasing Phys Dis - North,Nursing Homes,Leonard Cheshire  National Account Centr,5378.48, 29-Nov-2011
1596,Revenue,CCHD,Elderly Purchasing - South,Nursing Homes,Leonard Cheshire  National Account Centr,2878.32, 01-Nov-2011
1597,Revenue,CCHD,Elderly Purchasing - South,Nursing Homes,Leonard Cheshire  National Account Centr,2878.32, 29-Nov-2011
1598,Revenue,CCHD,Southmead Hospital Purchasing,Nursing Homes,Leonard Cheshire  National Account Centr,2940.48, 01-Nov-2011
1599,Revenue,CCHD,South Glos Users in all other LA Homes,Nursing Homes,Leonard Cheshire  National Account Centr,598.4, 01-Nov-2011
1600,Revenue,CCHD,Southmead Hospital Purchasing,Nursing Homes,Leonard Cheshire  National Account Centr,2940.48, 29-Nov-2011
1601,Revenue,CCHD,South Glos Users in all other LA Homes,Nursing Homes,Leonard Cheshire  National Account Centr,598.4, 29-Nov-2011
1602,Revenue,CCHD,Purchasing Phys Dis - North,Nursing Homes,Leonard Cheshire  National Account Centr,3235.6, 01-Nov-2011
1603,Revenue,CCHD,Purchasing Phys Dis - North,Nursing Homes,Leonard Cheshire  National Account Centr,3235.6, 29-Nov-2011
1604,Revenue,CCHD,Frenchay Hospital Purchasing,Residential Homes,Leonard Cheshire  National Account Centr,3687.8, 01-Nov-2011
1605,Revenue,CCHD,Frenchay Hospital Purchasing,Residential Homes,Leonard Cheshire  National Account Centr,3687.8, 29-Nov-2011
1606,Revenue,CCHD,Elderly Purchasing - North,Nursing Homes,Leonard Cheshire  National Account Centr,4264.84, 01-Nov-2011
1607,Revenue,CCHD,Elderly Purchasing - North,Nursing Homes,Leonard Cheshire  National Account Centr,4264.84, 29-Nov-2011
1608,Revenue,CCHD,S28A - Over 65,Residential Homes,Leonard Cheshire  National Account Centr,2841.44, 01-Nov-2011
1609,Revenue,CCHD,S28A - Over 65,Residential Homes,Leonard Cheshire  National Account Centr,2841.44, 29-Nov-2011
1610,Revenue,CCHD,Tenancy Start Up Scheme,Other Supplies & Services,Lets Direct,1500, 21-Nov-2011
1611,Revenue,CCHD,Under 65s PWLD - KD,Residential Homes,Littlecroft Residential Homes  Longcroft,6427.88, 01-Nov-2011
1612,Revenue,CCHD,Under 65s PWLD - KD,Residential Homes,Littlecroft Residential Homes  Longcroft,6427.88, 29-Nov-2011
1613,Revenue,CCHD,Fiveways Kingswood - Adult Car,Other Supplies & Services,Lloyds TSB Commercial Finance Limited,661, 18-Nov-2011
1614,Revenue,CCHD,Supported Living - KH,Private & Voluntary Home Care,Lloyds TSB Commercial Finance Limited,5667.39, 28-Nov-2011
1615,Revenue,CCHD,Under 65s PWLD - KH,Residential Homes,Longton Court,9361.2, 01-Nov-2011
1616,Revenue,CCHD,Under 65s PWLD - KH,Residential Homes,Longton Court,9361.2, 29-Nov-2011
1617,Revenue,CCHD,Tenancy Start Up Scheme,Other Supplies & Services,Individual,1400, 03-Nov-2011
1618,Revenue,CCHD,Southmead Hospital Purchasing,Nursing Homes,Majestic 3 Limited,1017.48, 01-Nov-2011
1619,Revenue,CCHD,Southmead Hospital Purchasing,Nursing Homes,Majestic 3 Limited,1017.44, 29-Nov-2011
1620,Revenue,CCHD,Elderly Purchasing - North,Residential Homes,Manton Hall Residential Home,1460.76, 01-Nov-2011
1621,Revenue,CCHD,Elderly Purchasing - North,Residential Homes,Manton Hall Residential Home,1460.76, 29-Nov-2011
1622,Revenue,CCHD,Supporting People Programme,Grants to Voluntary Bodies,Maples Community Housing Limited,2401.2, 10-Nov-2011
1623,Revenue,CCHD,Under 65s PWLD - PS,Residential Homes,Marsden Healthcare Limited,865.12, 25-Nov-2011
1624,Revenue,CCHD,Elderly PWLD - KH,Residential Homes,Marsden Healthcare Limited,3134.56, 25-Nov-2011
1625,Revenue,CCHD,Elderly PWLD - KH,Residential Homes,Marsden Healthcare Limited,1481.4, 25-Nov-2011
1626,Revenue,CCHD,Elderly Mental Health,Nursing Homes,Meadow Care Home,1452.96, 01-Nov-2011
1627,Revenue,CCHD,Elderly Mental Health,Nursing Homes,Meadow Care Home,1452.96, 29-Nov-2011
1628,Revenue,CCHD,Home Care Purch South,Private & Voluntary Home Care,Mears Care,47442.58, 28-Nov-2011
1629,Revenue,CCHD,Home Care Purch South,Other Small Contracts,Mears Care,888.3, 07-Nov-2011
1630,Revenue,CCHD,Home Care Purch North,Other Small Contracts,Mears Care,9221.4, 07-Nov-2011
1631,Revenue,CCHD,Day Care - South,Private & Voluntary Day Care,Mears Care,206.8, 07-Nov-2011
1632,Revenue,CCHD,Day Care - North,Private & Voluntary Day Care,Mears Care,366.6, 07-Nov-2011
1633,Revenue,CCHD,Under 65s -MH  Home Care Purch,Other Small Contracts,Mears Care,141, 07-Nov-2011
1634,Revenue,CCHD,Elderly MH Home Care,Other Small Contracts,Mears Care,846, 07-Nov-2011
1635,Revenue,CCHD,Elderly MH non-res purchasing,Private & Voluntary Day Care,Mears Care,126.9, 07-Nov-2011
1636,Revenue,CCHD,Home Care - Elderly LD - KH,Private & Voluntary Home Care,Mears Care,65.8, 07-Nov-2011
1637,Revenue,CCHD,Home Care Purch South,Other Small Contracts,Mears Care,930.6, 07-Nov-2011
1638,Revenue,CCHD,Home Care Purch North,Other Small Contracts,Mears Care,8516.4, 07-Nov-2011
1639,Revenue,CCHD,Day Care - South,Private & Voluntary Day Care,Mears Care,258.5, 07-Nov-2011
1640,Revenue,CCHD,Day Care - North,Private & Voluntary Day Care,Mears Care,338.4, 07-Nov-2011
1641,Revenue,CCHD,Under 65s -MH  Home Care Purch,Other Small Contracts,Mears Care,141, 07-Nov-2011
1642,Revenue,CCHD,Elderly MH Home Care,Other Small Contracts,Mears Care,841.3, 07-Nov-2011
1643,Revenue,CCHD,Elderly MH non-res purchasing,Private & Voluntary Day Care,Mears Care,32.9, 07-Nov-2011
1644,Revenue,CCHD,Home Care - Elderly LD - KH,Private & Voluntary Home Care,Mears Care,70.5, 07-Nov-2011
1645,Revenue,CCHD,Charlton,Cleaning & Domestic Supplies,Medaco,463.58, 25-Nov-2011
1646,Revenue,CCHD,Home Care Purch South,Other Small Contracts,Medacs Home Care,146.2, 28-Nov-2011
1647,Revenue,CCHD,Home Care Purch North,Other Small Contracts,Medacs Home Care,1009.8, 28-Nov-2011
1648,Revenue,CCHD,Day Care - North,Private & Voluntary Day Care,Medacs Home Care,27.2, 28-Nov-2011
1649,Revenue,CCHD,Elderly MH Home Care,Other Small Contracts,Medacs Home Care,272, 28-Nov-2011
1650,Revenue,CCHD,Elderly MH non-res purchasing,Private & Voluntary Day Care,Medacs Home Care,85, 28-Nov-2011
1651,Revenue,CCHD,Home Care Purch South,Other Small Contracts,Medacs Home Care,316.2, 10-Nov-2011
1652,Revenue,CCHD,Home Care Purch North,Other Small Contracts,Medacs Home Care,1111.8, 10-Nov-2011
1653,Revenue,CCHD,Day Care - North,Private & Voluntary Day Care,Medacs Home Care,17, 10-Nov-2011
1654,Revenue,CCHD,Elderly MH Home Care,Other Small Contracts,Medacs Home Care,275.4, 10-Nov-2011
1655,Revenue,CCHD,Elderly MH non-res purchasing,Private & Voluntary Day Care,Medacs Home Care,57.8, 10-Nov-2011
1656,Revenue,CCHD,Home Care Purch South,Other Small Contracts,Medacs Home Care,57.8, 28-Nov-2011
1657,Revenue,CCHD,Home Care Purch North,Other Small Contracts,Medacs Home Care,758.2, 28-Nov-2011
1658,Revenue,CCHD,Day Care - North,Private & Voluntary Day Care,Medacs Home Care,27.2, 28-Nov-2011
1659,Revenue,CCHD,Elderly MH Home Care,Other Small Contracts,Medacs Home Care,88.4, 28-Nov-2011
1660,Revenue,CCHD,Elderly MH non-res purchasing,Private & Voluntary Day Care,Medacs Home Care,23.8, 28-Nov-2011
1661,Revenue,CCHD,Home Care Purch South,Other Small Contracts,Medacs Home Care,146.2, 28-Nov-2011
1662,Revenue,CCHD,Home Care Purch North,Other Small Contracts,Medacs Home Care,1060.8, 28-Nov-2011
1663,Revenue,CCHD,Elderly MH Home Care,Other Small Contracts,Medacs Home Care,258.4, 28-Nov-2011
1664,Revenue,CCHD,Elderly MH non-res purchasing,Private & Voluntary Day Care,Medacs Home Care,95.2, 28-Nov-2011
1665,Revenue,CCHD,Home Care Purch South,Other Small Contracts,Medacs Home Care,57.8, 28-Nov-2011
1666,Revenue,CCHD,Home Care Purch North,Other Small Contracts,Medacs Home Care,1186.6, 28-Nov-2011
1667,Revenue,CCHD,Day Care - North,Private & Voluntary Day Care,Medacs Home Care,27.2, 28-Nov-2011
1668,Revenue,CCHD,Elderly MH Home Care,Other Small Contracts,Medacs Home Care,30.6, 28-Nov-2011
1669,Revenue,CCHD,Elderly MH non-res purchasing,Private & Voluntary Day Care,Medacs Home Care,34, 28-Nov-2011
1670,Revenue,CCHD,Home Care Purch South,Other Small Contracts,Medacs Home Care,54.4, 28-Nov-2011
1671,Revenue,CCHD,Home Care Purch North,Other Small Contracts,Medacs Home Care,1159.4, 28-Nov-2011
1672,Revenue,CCHD,Elderly MH Home Care,Other Small Contracts,Medacs Home Care,183.6, 28-Nov-2011
1673,Revenue,CCHD,Elderly MH non-res purchasing,Private & Voluntary Day Care,Medacs Home Care,30.6, 28-Nov-2011
1674,Revenue,CCHD,Home Care Purch South,Other Small Contracts,Medacs Home Care,57.8, 28-Nov-2011
1675,Revenue,CCHD,Home Care Purch North,Other Small Contracts,Medacs Home Care,938.4, 28-Nov-2011
1676,Revenue,CCHD,Elderly MH Home Care,Other Small Contracts,Medacs Home Care,227.8, 28-Nov-2011
1677,Revenue,CCHD,Elderly MH non-res purchasing,Private & Voluntary Day Care,Medacs Home Care,112.2, 28-Nov-2011
1678,Revenue,CCHD,Home Care Purch South,Other Small Contracts,Medacs Home Care,153, 10-Nov-2011
1679,Revenue,CCHD,Home Care Purch North,Other Small Contracts,Medacs Home Care,1074.4, 10-Nov-2011
1680,Revenue,CCHD,Elderly MH Home Care,Other Small Contracts,Medacs Home Care,269.32, 10-Nov-2011
1681,Revenue,CCHD,Elderly MH non-res purchasing,Private & Voluntary Day Care,Medacs Home Care,88.4, 10-Nov-2011
1682,Revenue,CCHD,Home Care Purch South,Other Small Contracts,Medacs Home Care,51, 28-Nov-2011
1683,Revenue,CCHD,Home Care Purch North,Other Small Contracts,Medacs Home Care,921.4, 28-Nov-2011
1684,Revenue,CCHD,Elderly MH Home Care,Other Small Contracts,Medacs Home Care,112.2, 28-Nov-2011
1685,Revenue,CCHD,Elderly MH non-res purchasing,Private & Voluntary Day Care,Medacs Home Care,34, 28-Nov-2011
1686,Revenue,CCHD,Home Care Purch South,Other Small Contracts,Medacs Home Care,139.4, 10-Nov-2011
1687,Revenue,CCHD,Home Care Purch North,Other Small Contracts,Medacs Home Care,938.4, 10-Nov-2011
1688,Revenue,CCHD,Day Care - North,Private & Voluntary Day Care,Medacs Home Care,27.2, 10-Nov-2011
1689,Revenue,CCHD,Elderly MH Home Care,Other Small Contracts,Medacs Home Care,255, 10-Nov-2011
1690,Revenue,CCHD,Elderly MH non-res purchasing,Private & Voluntary Day Care,Medacs Home Care,81.6, 10-Nov-2011
1691,Revenue,CCHD,Home Care Purch South,Other Small Contracts,Medacs Home Care,105.4, 10-Nov-2011
1692,Revenue,CCHD,Home Care Purch North,Other Small Contracts,Medacs Home Care,948.6, 10-Nov-2011
1693,Revenue,CCHD,Day Care - North,Private & Voluntary Day Care,Medacs Home Care,44.2, 10-Nov-2011
1694,Revenue,CCHD,Elderly MH Home Care,Other Small Contracts,Medacs Home Care,272, 10-Nov-2011
1695,Revenue,CCHD,Elderly MH non-res purchasing,Private & Voluntary Day Care,Medacs Home Care,54.4, 10-Nov-2011
1696,Revenue,CCHD,NRS Contract,Daily Living Equipment,Medequip Assistive Technology Ltd,1086.19, 09-Nov-2011
1697,Revenue,CCHD,NRS Contract,Daily Living Equipment,Medequip Assistive Technology Ltd,45930.6, 22-Nov-2011
1698,Revenue,CCHD,NRS Contract,Daily Living Equipment,Medequip Assistive Technology Ltd,59274.5, 22-Nov-2011
1699,Revenue,CCHD,NRS Contract,Other Supplies & Services,Medequip Assistive Technology Ltd,6553.59, 22-Nov-2011
1700,Revenue,CCHD,Contracts & Commissioning Team,Other Small Contracts,Medico Nursing & Homecare Ltd,13500, 04-Nov-2011
1701,Revenue,CCHD,Home Care Purch North,Other Small Contracts,Medico Nursing & Homecare Ltd,1927.73, 04-Nov-2011
1702,Revenue,CCHD,Home Care Purch North,Other Small Contracts,Medico Nursing & Homecare Ltd,1927.73, 25-Nov-2011
1703,Revenue,CCHD,Home Care Purch North,Other Small Contracts,Medico Nursing & Homecare Ltd,1927.73, 25-Nov-2011
1704,Revenue,CCHD,Under 65s PWLD - KH,Residential Homes,Mencap,2173.8, 01-Nov-2011
1705,Revenue,CCHD,Under 65s PWLD - KH,Residential Homes,Mencap,2173.8, 29-Nov-2011
1706,Revenue,CCHD,Supported Living (S28a),Private & Voluntary Home Care,Mencap - PSH West,3689, 11-Nov-2011
1707,Revenue,CCHD,Supported Living (S28a),Private & Voluntary Home Care,Mencap - PSH West,3689, 11-Nov-2011
1708,Revenue,CCHD,Supported Living (S28a),Private & Voluntary Home Care,Mencap - PSH West,3689, 11-Nov-2011
1709,Revenue,CCHD,Supported Living (S28a),Private & Voluntary Home Care,Mencap - PSH West,3689, 11-Nov-2011
1710,Revenue,CCHD,Supported Living (S28a),Private & Voluntary Home Care,Mencap - PSH West,3689, 11-Nov-2011
1711,Revenue,CCHD,Supported Living (S28a),Private & Voluntary Home Care,Mencap - PSH West,3689, 11-Nov-2011
1712,Revenue,CCHD,Supported Living (S28a),Private & Voluntary Home Care,Mencap - PSH West,3689, 11-Nov-2011
1713,Revenue,CCHD,Supported Living (S28a),Private & Voluntary Home Care,Mencap - PSH West,3689, 11-Nov-2011
1714,Revenue,CCHD,Supported Living (S28a),Private & Voluntary Home Care,Mencap - PSH West,3689, 11-Nov-2011
1715,Revenue,CCHD,Supported Living (S28a),Private & Voluntary Home Care,Mencap - PSH West,3689, 11-Nov-2011
1716,Revenue,CCHD,Supporting People Programme,Grants to Voluntary Bodies,Merlin Housing Society,920.55, 10-Nov-2011
1717,Revenue,CCHD,Supporting People Programme,Grants to Voluntary Bodies,Merlin Housing Society,2172.8, 10-Nov-2011
1718,Revenue,CCHD,Supporting People Programme,Grants to Voluntary Bodies,Merlin Housing Society,2186.3, 10-Nov-2011
1719,Revenue,CCHD,Supporting People Programme,Grants to Voluntary Bodies,Merlin Housing Society,2416.44, 10-Nov-2011
1720,Revenue,CCHD,Supporting People Programme,Grants to Voluntary Bodies,Merlin Housing Society,13808.8, 10-Nov-2011
1721,Revenue,CCHD,Supporting People Programme,Grants to Voluntary Bodies,Merlin Housing Society,41424.66, 10-Nov-2011
1722,Revenue,CCHD,Newton House,Prop.Serv. General Repairs,Merlin Housing Society,250, 16-Nov-2011
1723,Revenue,CCHD,Intermediate Care Accommodation,Other Supplies & Services,Merlin Housing Society,1157.15, 10-Nov-2011
1724,Revenue,CCHD,Intermediate Care Accommodation,Other Supplies & Services,Merlin Housing Society,925.72, 08-Nov-2011
1725,Revenue,CCHD,Intermediate Care Accommodation,Other Supplies & Services,Merlin Housing Society,925.72, 23-Nov-2011
1726,Revenue,CCHD,Contracts & Commissioning Team,Other Small Contracts,Milestones Outreach Dementia Services,1350, 04-Nov-2011
1727,Revenue,CCHD,Home Care Purch South,Other Small Contracts,Milestones Outreach Dementia Services,540, 17-Nov-2011
1728,Revenue,CCHD,Home Care Purch North,Other Small Contracts,Milestones Outreach Dementia Services,56.25, 17-Nov-2011
1729,Revenue,CCHD,Day Care - South,Private & Voluntary Day Care,Milestones Outreach Dementia Services,105, 17-Nov-2011
1730,Revenue,CCHD,Day Care - North,Private & Voluntary Day Care,Milestones Outreach Dementia Services,90, 17-Nov-2011
1731,Revenue,CCHD,Elderly MH Home Care,Other Small Contracts,Milestones Outreach Dementia Services,765, 17-Nov-2011
1732,Revenue,CCHD,Elderly MH non-res purchasing,Private & Voluntary Day Care,Milestones Outreach Dementia Services,753.75, 17-Nov-2011
1733,Revenue,CCHD,Home Care Purch South,Other Small Contracts,Milestones Outreach Dementia Services,585, 23-Nov-2011
1734,Revenue,CCHD,Home Care Purch North,Other Small Contracts,Milestones Outreach Dementia Services,67.5, 23-Nov-2011
1735,Revenue,CCHD,Day Care - South,Private & Voluntary Day Care,Milestones Outreach Dementia Services,30, 23-Nov-2011
1736,Revenue,CCHD,Day Care - North,Private & Voluntary Day Care,Milestones Outreach Dementia Services,41.25, 23-Nov-2011
1737,Revenue,CCHD,Elderly MH Home Care,Other Small Contracts,Milestones Outreach Dementia Services,832.5, 23-Nov-2011
1738,Revenue,CCHD,Elderly MH non-res purchasing,Private & Voluntary Day Care,Milestones Outreach Dementia Services,787.5, 23-Nov-2011
1739,Revenue,CCHD,S28A - Over 65,Residential Homes,Milestones Trust,3283.35, 14-Nov-2011
1740,Revenue,CCHD,Elderly MH non-res purchasing,Private & Voluntary Day Care,Milestones Trust,544.83, 14-Nov-2011
1741,Revenue,CCHD,Supported Living (S28a),Private & Voluntary Home Care,Milestones Trust,965.06, 04-Nov-2011
1742,Revenue,CCHD,Elderly MH non-res purchasing,Private & Voluntary Day Care,Milestones Trust,643.97, 09-Nov-2011
1743,Revenue,CCHD,Section 117 Placements MH Younger,Private & Voluntary Day Care,Milestones Trust,1111.72, 11-Nov-2011
1744,Revenue,CCHD,Elderly MH non-res purchasing,Private & Voluntary Day Care,Milestones Trust,924, 10-Nov-2011
1745,Revenue,CCHD,Section 117 Placements,Private & Voluntary Day Care,Milestones Trust,542.68, 09-Nov-2011
1746,Revenue,CCHD,Supported Living (S28a),Private & Voluntary Home Care,Milestones Trust,4143.36, 07-Nov-2011
1747,Revenue,CCHD,Supported Living (S28a),Private & Voluntary Home Care,Milestones Trust,4143.36, 07-Nov-2011
1748,Revenue,CCHD,Supported Living (S28a),Private & Voluntary Home Care,Milestones Trust,3662.32, 08-Nov-2011
1749,Revenue,CCHD,Supported Living (S28a),Private & Voluntary Home Care,Milestones Trust,3662.32, 08-Nov-2011
1750,Revenue,CCHD,Supported Living (S28a),Private & Voluntary Home Care,Milestones Trust,3662.32, 09-Nov-2011
1751,Revenue,CCHD,Supported Living (S28a),Private & Voluntary Home Care,Milestones Trust,6178.64, 07-Nov-2011
1752,Revenue,CCHD,Supported Living (S28a),Private & Voluntary Home Care,Milestones Trust,738.9, 07-Nov-2011
1753,Revenue,CCHD,Supported Living - PS,Private & Voluntary Home Care,Milestones Trust,811.86, 09-Nov-2011
1754,Revenue,CCHD,Supported Living - PS,Private & Voluntary Home Care,Milestones Trust,799.2, 09-Nov-2011
1755,Revenue,CCHD,Supported Living - KH,Private & Voluntary Home Care,Milestones Trust,1256.6, 11-Nov-2011
1756,Revenue,CCHD,Supported Living (S28a),Private & Voluntary Home Care,Milestones Trust,6563.64, 08-Nov-2011
1757,Revenue,CCHD,Supported Living (S28a),Private & Voluntary Home Care,Milestones Trust,9337.74, 08-Nov-2011
1758,Revenue,CCHD,Supported Living (S28a),Private & Voluntary Home Care,Milestones Trust,3065.25, 08-Nov-2011
1759,Revenue,CCHD,Supported Living (S28a),Private & Voluntary Home Care,Milestones Trust,3209.2, 08-Nov-2011
1760,Revenue,CCHD,Supported Living - KH,Private & Voluntary Home Care,Milestones Trust,2897.25, 14-Nov-2011
1761,Revenue,CCHD,Supported Living (S28a),Private & Voluntary Home Care,Milestones Trust,3135.55, 08-Nov-2011
1762,Revenue,CCHD,Supported Living (S28a),Private & Voluntary Home Care,Milestones Trust,901.2, 07-Nov-2011
1763,Revenue,CCHD,Supported Living - PS,Private & Voluntary Home Care,Milestones Trust,996.08, 09-Nov-2011
1764,Revenue,CCHD,Supported Living - PS,Private & Voluntary Home Care,Milestones Trust,694.1, 09-Nov-2011
1765,Revenue,CCHD,Supported Living - PS,Private & Voluntary Home Care,Milestones Trust,1758.32, 09-Nov-2011
1766,Revenue,CCHD,Supported Living - PS,Private & Voluntary Home Care,Milestones Trust,825.56, 09-Nov-2011
1767,Revenue,CCHD,Supported Living (S28a),Private & Voluntary Home Care,Milestones Trust,601.4, 08-Nov-2011
1768,Revenue,CCHD,Section 117 Placements MH Younger,Private & Voluntary Day Care,Milestones Trust,519.75, 11-Nov-2011
1769,Revenue,CCHD,Supported Living (S28a),Private & Voluntary Home Care,Milestones Trust,5321.18, 08-Nov-2011
1770,Revenue,CCHD,Supported Living - KD,Private & Voluntary Home Care,Milestones Trust,4458.67, 08-Nov-2011
1771,Revenue,CCHD,Purchase of Non-Res Care - PS,Private & Voluntary Day Care,Milestones Trust,803.68, 14-Nov-2011
1772,Revenue,CCHD,Purchase of Non-Res Care - KH,Private & Voluntary Day Care,Milestones Trust,1017.74, 21-Nov-2011
1773,Revenue,CCHD,Purchase of Non-Res Care - PS,Private & Voluntary Day Care,Milestones Trust,1348.84, 14-Nov-2011
1774,Revenue,CCHD,Purchase of Non-Res Care - PS,Private & Voluntary Day Care,Milestones Trust,1133.11, 14-Nov-2011
1775,Revenue,CCHD,Purchase of Non-Res Care - PS,Private & Voluntary Day Care,Milestones Trust,1324.57, 14-Nov-2011
1776,Revenue,CCHD,Purchase of Non-Res Care - KH,Private & Voluntary Day Care,Milestones Trust,1479.22, 18-Nov-2011
1777,Revenue,CCHD,Purchase of Non-Res Care - KH,Private & Voluntary Day Care,Milestones Trust,1171.26, 18-Nov-2011
1778,Revenue,CCHD,Purchase of Non-Res Care - KH,Private & Voluntary Day Care,Milestones Trust,1003.92, 18-Nov-2011
1779,Revenue,CCHD,Purchase of Non-Res Care - PS,Private & Voluntary Day Care,Milestones Trust,1193.31, 11-Nov-2011
1780,Revenue,CCHD,Purchase of Non-Res Care - KH,Private & Voluntary Day Care,Milestones Trust,1552.88, 18-Nov-2011
1781,Revenue,CCHD,Purchase of Non-Res Care - KH,Private & Voluntary Day Care,Milestones Trust,1159.9, 18-Nov-2011
1782,Revenue,CCHD,Supported Living - KH,Private & Voluntary Home Care,Milestones Trust,806.22, 21-Nov-2011
1783,Revenue,CCHD,Supported Living (S28a),Private & Voluntary Home Care,Milestones Trust,940.5, 11-Nov-2011
1784,Revenue,CCHD,Purchase of Non-Res Care - KD,Private & Voluntary Day Care,Milestones Trust,888.03, 25-Nov-2011
1785,Revenue,CCHD,Elderly MH non-res purchasing,Private & Voluntary Day Care,Milestones Trust,703.7, 30-Nov-2011
1786,Revenue,CCHD,Elderly MH non-res purchasing,Private & Voluntary Day Care,Milestones Trust,924, 30-Nov-2011
1787,Revenue,CCHD,Section 117 Placements,Private & Voluntary Day Care,Milestones Trust,500.5, 30-Nov-2011
1788,Revenue,CCHD,Section 117 Placements,Private & Voluntary Day Care,Milestones Trust,694.21, 30-Nov-2011
1789,Revenue,CCHD,Supported Living (S28a),Private & Voluntary Home Care,Milestones Trust,1089.79, 30-Nov-2011
1790,Revenue,CCHD,Elderly MH non-res purchasing,Private & Voluntary Day Care,Milestones Trust,701.98, 30-Nov-2011
1791,Revenue,CCHD,Elderly MH non-res purchasing,Private & Voluntary Day Care,Milestones Trust,697.32, 30-Nov-2011
1792,Revenue,CCHD,Elderly MH non-res purchasing,Private & Voluntary Day Care,Milestones Trust,539, 30-Nov-2011
1793,Revenue,CCHD,Under 65s PWLD - PS,Residential Homes,Miller Farm,3305, 01-Nov-2011
1794,Revenue,CCHD,Under 65s PWLD - PS,Residential Homes,Miller Farm,3305, 29-Nov-2011
1795,Revenue,CCHD,Section 117 Placements,Nursing Homes,Mimosa Healthcare Holdings Ltd,1888, 01-Nov-2011
1796,Revenue,CCHD,Section 117 Placements,Nursing Homes,Mimosa Healthcare Holdings Ltd,1888, 29-Nov-2011
1797,Revenue,CCHD,Under 65s PWLD - KH,Residential Homes,Mmcg  Westcourt,12745.2, 01-Nov-2011
1798,Revenue,CCHD,Under 65s PWLD - KH,Residential Homes,Mmcg  Westcourt,12745.2, 29-Nov-2011
1799,Revenue,CCHD,S28A - Over 65,Nursing Homes,Mortimer House Nursing Home,3227.8, 25-Nov-2011
1800,Revenue,CCHD,Elderly PWLD - PS,Nursing Homes,Mortimer House Nursing Home,2910.2, 25-Nov-2011
1801,Revenue,CCHD,S28A - Over 65,Nursing Homes,Mortimer House Nursing Home,3233, 25-Nov-2011
1802,Revenue,CCHD,Southmead Hospital Purchasing,Residential Homes,Mostyn Lodge Residential Home,1253, 01-Nov-2011
1803,Revenue,CCHD,Southmead Hospital Purchasing,Residential Homes,Mostyn Lodge Residential Home,1253, 29-Nov-2011
1804,Revenue,CCHD,Section 117 Placements,Residential Homes,Mostyn Lodge Residential Home,1848, 01-Nov-2011
1805,Revenue,CCHD,Section 117 Placements,Residential Homes,Mostyn Lodge Residential Home,1848, 29-Nov-2011
1806,Revenue,CCHD,Supported Living - PS,Private & Voluntary Home Care,Moving On,6224.28, 09-Nov-2011
1807,Revenue,CCHD,Tenancy Start Up Scheme,Other Supplies & Services,Individual,700, 29-Nov-2011
1808,Revenue,CCHD,Tenancy Start Up Scheme,Other Supplies & Services,Individual,725, 29-Nov-2011
1809,Revenue,CCHD,Under 65s PWLD - KH,Residential Homes,Mr J Davis & Mrs S Davis,1840, 08-Nov-2011
1810,Revenue,CCHD,Social Lettings Agency,Other Supplies & Services,Individual,565, 11-Nov-2011
1811,Revenue,CCHD,Social Lettings Agency,Other Supplies & Services,Individual,690.84, 11-Nov-2011
1812,Revenue,CCHD,Supporting People Programme,Grants to Voluntary Bodies,Mr Steven Welling,570.46, 01-Nov-2011
1813,Revenue,CCHD,Day Care - South,Private & Voluntary Day Care,Mrs B Kimber,899.38, 03-Nov-2011
1814,Revenue,CCHD,Supported Living - KH,Private & Voluntary Home Care,Mrs B Kimber,916.07, 07-Nov-2011
1815,Revenue,CCHD,Supported Living - KH,Private & Voluntary Home Care,Mrs B Kimber,1258.87, 08-Nov-2011
1816,Revenue,CCHD,Purchase of Non-Res Care - KH,Private & Voluntary Day Care,Mrs B Kimber,1137.76, 08-Nov-2011
1817,Revenue,CCHD,Supported Living - PS,Private & Voluntary Home Care,Mrs B Kimber,10494.22, 29-Nov-2011
1818,Revenue,CCHD,Supported Living - PS,Private & Voluntary Home Care,Mrs B Kimber,8536.46, 29-Nov-2011
1819,Revenue,CCHD,Supported Living - KH,Private & Voluntary Home Care,Mrs B Kimber,708.63, 21-Nov-2011
1820,Revenue,CCHD,Supported Living - KH,Private & Voluntary Home Care,Mrs B Kimber,1157.64, 24-Nov-2011
1821,Revenue,CCHD,Purchase of Non-Res Care - KH,Private & Voluntary Day Care,Mrs B Kimber,1074.72, 21-Nov-2011
1822,Revenue,CCHD,Day Care - South,Private & Voluntary Day Care,Mrs B Kimber,744.6, 21-Nov-2011
1823,Revenue,CCHD,Purchase of Non-Res Care - KD,Private & Voluntary Day Care,Mrs B Kimber,775.18, 18-Nov-2011
1824,Revenue,CCHD,Supported Living - KD,Private & Voluntary Home Care,Mrs B Kimber,1226.51, 24-Nov-2011
1825,Revenue,CCHD,Day Care - South,Private & Voluntary Day Care,Mrs B Kimber,808.54, 28-Nov-2011
1826,Revenue,CCHD,Day Care - North,Private & Voluntary Day Care,Mrs B Kimber,534.44, 21-Nov-2011
1827,Revenue,CCHD,Day Care - North,Private & Voluntary Day Care,Mrs B Kimber,1308.24, 15-Nov-2011
1828,Revenue,CCHD,Contracts & Commissioning Team,Other Small Contracts,Mrs B Kimber,7500, 04-Nov-2011
1829,Revenue,CCHD,Home Care Purch South,Other Small Contracts,Mrs B Kimber,2620.1, 23-Nov-2011
1830,Revenue,CCHD,Home Care Purch North,Other Small Contracts,Mrs B Kimber,2218.22, 23-Nov-2011
1831,Revenue,CCHD,Day Care - South,Private & Voluntary Day Care,Mrs B Kimber,689.5, 23-Nov-2011
1832,Revenue,CCHD,Day Care - North,Private & Voluntary Day Care,Mrs B Kimber,212.76, 23-Nov-2011
1833,Revenue,CCHD,Under 65s -MH  Home Care Purch,Other Small Contracts,Mrs B Kimber,224.58, 23-Nov-2011
1834,Revenue,CCHD,Elderly MH Home Care,Other Small Contracts,Mrs B Kimber,82.74, 23-Nov-2011
1835,Revenue,CCHD,Elderly MH non-res purchasing,Private & Voluntary Day Care,Mrs B Kimber,338.84, 23-Nov-2011
1836,Revenue,CCHD,Supported Living - KD,Private & Voluntary Home Care,Mrs B Kimber,764.36, 23-Nov-2011
1837,Revenue,CCHD,PWLD Home Care - Under 65 - KD,Private & Voluntary Home Care,Mrs B Kimber,47.28, 23-Nov-2011
1838,Revenue,CCHD,PWLD Home Care - Under 65 - KH,Private & Voluntary Home Care,Mrs B Kimber,145.78, 23-Nov-2011
1839,Revenue,CCHD,Home Care - Elderly LD - KD,Private & Voluntary Home Care,Mrs B Kimber,937.72, 23-Nov-2011
1840,Revenue,CCHD,Younger MH non-res purchasing,Private & Voluntary Home Care,Mrs Felicity Cooksley,1676, 21-Nov-2011
1841,Revenue,CCHD,Bed and Breakfast,Recovery of Expenditure,Mrs Jurate Mailuginiene,708.28, 24-Nov-2011
1842,Revenue,CCHD,Tenancy Start Up Scheme,Other Supplies & Services,Individual,675, 21-Nov-2011
1843,Revenue,CCHD,Purchase of Non-Res Care - KD,Private & Voluntary Day Care,Mrs W Thompson,1460, 17-Nov-2011
1844,Revenue,CCHD,Purchase of Non-Res Care - KD,Private & Voluntary Day Care,Mrs W Thompson,554, 17-Nov-2011
1845,Revenue,CCHD,Finance,"Provisions (Food, etc)",Ms Sarah Hannett,1469, 16-Nov-2011
1846,Revenue,CCHD,Alexandra Way,Cleaning & Domestic Supplies,Muzzell Healthcare,796.25, 04-Nov-2011
1847,Revenue,CCHD,Home Care - General,Uniforms & Clothing,Muzzell Healthcare,878.85, 25-Nov-2011
1848,Revenue,CCHD,Alexandra Way,Cleaning & Domestic Supplies,Muzzell Healthcare,692.94, 01-Nov-2011
1849,Revenue,CCHD,Home Care - General,Uniforms & Clothing,Muzzell Healthcare,760, 08-Nov-2011
1850,Revenue,CCHD,Younger MH non-res purchasing,Private & Voluntary Day Care,NAS Services Limited,676.83, 02-Nov-2011
1851,Revenue,CCHD,Younger MH non-res purchasing,Private & Voluntary Day Care,NAS Services Limited,1244.1, 18-Nov-2011
1852,Revenue,CCHD,Younger MH non-res purchasing,Private & Voluntary Day Care,NAS Services Limited,508.95, 18-Nov-2011
1853,Revenue,CCHD,Younger MH non-res purchasing,Private & Voluntary Day Care,Natureworks Training Community Interest,540, 22-Nov-2011
1854,Revenue,CCHD,Purchase of Non-Res Care - KD,Private & Voluntary Day Care,Natureworks Training Community Interest,687.84, 24-Nov-2011
1855,Revenue,CCHD,Contracts & Commissioning Team,Other Small Contracts,Network Health & Social Care,2200, 04-Nov-2011
1856,Revenue,CCHD,Elderly Purchasing - North,Residential Homes,Newton House,850.48, 01-Nov-2011
1857,Revenue,CCHD,Elderly Purchasing - North,Residential Homes,Newton House,850.48, 29-Nov-2011
1858,Revenue,CCHD,Finance,Other Supplies & Services,Nicola Johnson,551, 22-Nov-2011
1859,Revenue,CCHD,Under 65s PWLD - KH,Residential Homes,Nightingale Nursing Home,6074.16, 01-Nov-2011
1860,Revenue,CCHD,Under 65s PWLD - KH,Residential Homes,Nightingale Nursing Home,3037.08, 29-Nov-2011
1861,Revenue,CCHD,Delayed Transfers of Care Gran,Other Supplies & Services,North Bristol NHS Trust,1400, 25-Nov-2011
1862,Revenue,CCHD,Delayed Transfers of Care Gran,Other Supplies & Services,North Bristol NHS Trust,1600, 24-Nov-2011
1863,Revenue,CCHD,Delayed Transfers of Care Gran,Other Supplies & Services,North Bristol NHS Trust,1400, 24-Nov-2011
1864,Revenue,CCHD,Delayed Transfers of Care Gran,Other Supplies & Services,North Bristol NHS Trust,3100, 25-Nov-2011
1865,Revenue,CCHD,Woodleaze,Furniture & Fittings Loose,Northavon Blinds Limited,2336.67, 24-Nov-2011
1866,Revenue,CCHD,Under 65s PWLD - PS,Residential Homes,Norwood   Broadway House,4784.72, 01-Nov-2011
1867,Revenue,CCHD,Under 65s PWLD - PS,Residential Homes,Norwood   Broadway House,4784.72, 29-Nov-2011
1868,Revenue,CCHD,Home Care Purch South,Other Small Contracts,Nursing Solutions Limited,874.8, 21-Nov-2011
1869,Revenue,CCHD,Elderly MH Home Care,Other Small Contracts,Nursing Solutions Limited,356.4, 21-Nov-2011
1870,Revenue,CCHD,Elderly MH non-res purchasing,Private & Voluntary Day Care,Nursing Solutions Limited,372.6, 21-Nov-2011
1871,Revenue,CCHD,Home Care Purch South,Other Small Contracts,Nursing Solutions Limited,935.55, 21-Nov-2011
1872,Revenue,CCHD,Elderly MH Home Care,Other Small Contracts,Nursing Solutions Limited,352.35, 21-Nov-2011
1873,Revenue,CCHD,Elderly MH non-res purchasing,Private & Voluntary Day Care,Nursing Solutions Limited,48.6, 21-Nov-2011
1874,Revenue,CCHD,Home Care Purch South,Other Small Contracts,Nursing Solutions Limited,883.07, 10-Nov-2011
1875,Revenue,CCHD,Elderly MH Home Care,Other Small Contracts,Nursing Solutions Limited,310.78, 10-Nov-2011
1876,Revenue,CCHD,Elderly MH non-res purchasing,Private & Voluntary Day Care,Nursing Solutions Limited,197.08, 10-Nov-2011
1877,Revenue,CCHD,Home Care Purch South,Other Small Contracts,Nursing Solutions Limited,886.86, 10-Nov-2011
1878,Revenue,CCHD,Elderly MH Home Care,Other Small Contracts,Nursing Solutions Limited,329.73, 10-Nov-2011
1879,Revenue,CCHD,Elderly MH non-res purchasing,Private & Voluntary Day Care,Nursing Solutions Limited,45.48, 10-Nov-2011
1880,Revenue,CCHD,Charlton,Refuse Collection Charges,OCS Group UK Ltd,557.43, 03-Nov-2011
1881,Revenue,CCHD,S28A - Under 65,Residential Homes,Orchard End Limited,7466.16, 01-Nov-2011
1882,Revenue,CCHD,S28A - Under 65,Residential Homes,Orchard End Limited,7466.16, 29-Nov-2011
1883,Revenue,CCHD,Elderly Mental Health,Residential Homes,Osborne House,5616.48, 01-Nov-2011
1884,Revenue,CCHD,Elderly Mental Health,Residential Homes,Osborne House,1404.12, 29-Nov-2011
1885,Revenue,CCHD,Elderly Mental Health,Residential Homes,Osbourne Court,3019.89, 01-Nov-2011
1886,Revenue,CCHD,Section 117 Placements,Residential Homes,Osbourne Court,1097.25, 29-Nov-2011
1887,Revenue,CCHD,Elderly Purchasing - North,Residential Homes,Osbourne Court,1935.68, 01-Nov-2011
1888,Revenue,CCHD,Elderly Purchasing - North,Residential Homes,Osbourne Court,967.84, 29-Nov-2011
1889,Revenue,CCHD,Elderly Mental Health,Nursing Homes,Osbourne Court,2731.68, 01-Nov-2011
1890,Revenue,CCHD,Elderly Mental Health,Residential Homes,Osbourne Court,694.5, 01-Nov-2011
1891,Revenue,CCHD,Section 117 Placements,Residential Homes,Osbourne Court,3696, 01-Nov-2011
1892,Revenue,CCHD,Section 117 Placements,Residential Homes,Osbourne Court,1848, 29-Nov-2011
1893,Revenue,CCHD,Section 117 Placements,Residential Homes,Osbourne Court,3376, 01-Nov-2011
1894,Revenue,CCHD,Section 117 Placements,Residential Homes,Osbourne Court,1688, 29-Nov-2011
1895,Revenue,CCHD,Frenchay Hospital Purchasing,Residential Homes,Osbourne Court,1843.5, 01-Nov-2011
1896,Revenue,CCHD,Elderly Purchasing - North,Residential Homes,Osbourne Court,2061.52, 01-Nov-2011
1897,Revenue,CCHD,Elderly Purchasing - North,Residential Homes,Osbourne Court,1030.76, 29-Nov-2011
1898,Revenue,CCHD,Elderly Mental Health,Residential Homes,Osbourne Court,2842, 01-Nov-2011
1899,Revenue,CCHD,Elderly Mental Health,Residential Homes,Osbourne Court,1421, 29-Nov-2011
1900,Revenue,CCHD,Section 117 Placements,Residential Homes,Osbourne Court,3696, 01-Nov-2011
1901,Revenue,CCHD,Section 117 Placements,Residential Homes,Osbourne Court,1848, 29-Nov-2011
1902,Revenue,CCHD,Elderly Purchasing - South,Residential Homes,Osbourne Court,6000, 01-Nov-2011
1903,Revenue,CCHD,Elderly Purchasing - South,Residential Homes,Osbourne Court,1085.14, 01-Nov-2011
